Organisation Name,Organisation Code,Unique Ref No,Effective Date,Directorate where expenditure incurred,Supplier name,Payment Date,Net Amount,Purpose of Spend,Procurement Classification (Higher Level),Procurement Classification (Lower Level),Capital_Revenue
Walsall Council,http://opendatacommunities.org/id/metropolitan-district-council/walsall,WC119-1,31/10/2020,CHILDRENS,247 CARS (WILLENHALL) LIMITED,08/10/2020,"1,710.00",52000-Hire of Vehicle with Driver,Home To School Transport,TRANSPORT,Revenue
Walsall Council,http://opendatacommunities.org/id/metropolitan-district-council/walsall,WC119-2,31/10/2020,RESOURCES AND TRANSFORMATION,4 SIGHT EYECARE CENTRE 002,09/10/2020,300.00,34310-Eye Tests,Corporate HR Transactional Team,DIRECT EMPLOYEES,Revenue
Walsall Council,http://opendatacommunities.org/id/metropolitan-district-council/walsall,WC119-3,31/10/2020,ADULT SOCIAL CARE,5 CARE SERVICES LTD,02/10/2020,501.28,73025-Professional Services-Priv Contractor & Other Agencies,Intermediate Care Service,THIRD PARTY PAYMENTS,Revenue,,,,,,, 
Walsall Council,http://opendatacommunities.org/id/metropolitan-district-council/walsall,WC119-4,31/10/2020,ADULT SOCIAL CARE,5 CARE SERVICES LTD,02/10/2020,948.46,73025-Professional Services-Priv Contractor & Other Agencies,Intermediate Care Service,THIRD PARTY PAYMENTS,Revenue,,,,,,, 
Walsall Council,http://opendatacommunities.org/id/metropolitan-district-council/walsall,WC119-5,31/10/2020,ADULT SOCIAL CARE,5 CARE SERVICES LTD,02/10/2020,285.32,73025-Professional Services-Priv Contractor & Other Agencies,Intermediate Care Service,THIRD PARTY PAYMENTS,Revenue,,,,,,, 
Walsall Council,http://opendatacommunities.org/id/metropolitan-district-council/walsall,WC119-6,31/10/2020,ADULT SOCIAL CARE,5 CARE SERVICES LTD,08/10/2020,"1,991.39",63000-Professional Fees & Services,"Strategy, Commissioning & Delivery Support",SUPPLIES & SERVICES,Revenue,,,,,,, 
Walsall Council,http://opendatacommunities.org/id/metropolitan-district-council/walsall,WC119-7,31/10/2020,ADULT SOCIAL CARE,5 CARE SERVICES LTD,09/10/2020,341.81,73507-Domiciliary Care,Physical Support,THIRD PARTY PAYMENTS,Revenue,,,,,,, 
Walsall Council,http://opendatacommunities.org/id/metropolitan-district-council/walsall,WC119-8,31/10/2020,ADULT SOCIAL CARE,5 CARE SERVICES LTD,09/10/2020,251.93,73507-Domiciliary Care,Physical Support,THIRD PARTY PAYMENTS,Revenue,,,,,,, 
Walsall Council,http://opendatacommunities.org/id/metropolitan-district-council/walsall,WC119-9,31/10/2020,ADULT SOCIAL CARE,5 CARE SERVICES LTD,09/10/2020,539.70,73507-Domiciliary Care,Physical Support,THIRD PARTY PAYMENTS,Revenue,,,,,,, 
Walsall Council,http://opendatacommunities.org/id/metropolitan-district-council/walsall,WC119-10,31/10/2020,ADULT SOCIAL CARE,5 CARE SERVICES LTD,09/10/2020,485.73,73507-Domiciliary Care,Physical Support,THIRD PARTY PAYMENTS,Revenue,,,,,,, 
Walsall Council,http://opendatacommunities.org/id/metropolitan-district-council/walsall,WC119-11,31/10/2020,ADULT SOCIAL CARE,5 CARE SERVICES LTD,09/10/2020,416.34,73507-Domiciliary Care,Mental Health Support,THIRD PARTY PAYMENTS,Revenue,,,,,,, 
Walsall Council,http://opendatacommunities.org/id/metropolitan-district-council/walsall,WC119-12,31/10/2020,ADULT SOCIAL CARE,5 CARE SERVICES LTD,09/10/2020,308.40,73507-Domiciliary Care,Learning Disability Support,THIRD PARTY PAYMENTS,Revenue,,,,,,, 
Walsall Council,http://opendatacommunities.org/id/metropolitan-district-council/walsall,WC119-13,31/10/2020,ADULT SOCIAL CARE,5 CARE SERVICES LTD,09/10/2020,393.21,73507-Domiciliary Care,Physical Support,THIRD PARTY PAYMENTS,Revenue,,,,,,, 
Walsall Council,http://opendatacommunities.org/id/metropolitan-district-council/walsall,WC119-14,31/10/2020,ADULT SOCIAL CARE,5 CARE SERVICES LTD,09/10/2020,516.57,73507-Domiciliary Care,Physical Support,THIRD PARTY PAYMENTS,Revenue,,,,,,, 
Walsall Council,http://opendatacommunities.org/id/metropolitan-district-council/walsall,WC119-15,31/10/2020,ADULT SOCIAL CARE,5 CARE SERVICES LTD,09/10/2020,755.58,73507-Domiciliary Care,Physical Support,THIRD PARTY PAYMENTS,Revenue,,,,,,, 
Walsall Council,http://opendatacommunities.org/id/metropolitan-district-council/walsall,WC119-16,31/10/2020,ADULT SOCIAL CARE,5 CARE SERVICES LTD,09/10/2020,416.34,73507-Domiciliary Care,Physical Support,THIRD PARTY PAYMENTS,Revenue,,,,,,, 
Walsall Council,http://opendatacommunities.org/id/metropolitan-district-council/walsall,WC119-17,31/10/2020,ADULT SOCIAL CARE,5 CARE SERVICES LTD,09/10/2020,296.87,73507-Domiciliary Care,Physical Support,THIRD PARTY PAYMENTS,Revenue,,,,,,, 
Walsall Council,http://opendatacommunities.org/id/metropolitan-district-council/walsall,WC119-18,31/10/2020,ADULT SOCIAL CARE,5 CARE SERVICES LTD,09/10/2020,308.40,73507-Domiciliary Care,Learning Disability Support,THIRD PARTY PAYMENTS,Revenue,,,,,,, 
Walsall Council,http://opendatacommunities.org/id/metropolitan-district-council/walsall,WC119-19,31/10/2020,ADULT SOCIAL CARE,5 CARE SERVICES LTD,09/10/2020,431.76,73507-Domiciliary Care,Physical Support,THIRD PARTY PAYMENTS,Revenue,,,,,,, 
Walsall Council,http://opendatacommunities.org/id/metropolitan-district-council/walsall,WC119-20,31/10/2020,ADULT SOCIAL CARE,5 CARE SERVICES LTD,09/10/2020,925.20,73507-Domiciliary Care,Physical Support,THIRD PARTY PAYMENTS,Revenue,,,,,,, 
Walsall Council,http://opendatacommunities.org/id/metropolitan-district-council/walsall,WC119-21,31/10/2020,ADULT SOCIAL CARE,5 CARE SERVICES LTD,09/10/2020,647.64,73507-Domiciliary Care,Mental Health Support,THIRD PARTY PAYMENTS,Revenue,,,,,,, 
Walsall Council,http://opendatacommunities.org/id/metropolitan-district-council/walsall,WC119-22,31/10/2020,ADULT SOCIAL CARE,5 CARE SERVICES LTD,09/10/2020,323.82,73507-Domiciliary Care,Physical Support,THIRD PARTY PAYMENTS,Revenue,,,,,,, 
Walsall Council,http://opendatacommunities.org/id/metropolitan-district-council/walsall,WC119-23,31/10/2020,ADULT SOCIAL CARE,5 CARE SERVICES LTD,09/10/2020,377.79,73507-Domiciliary Care,Physical Support,THIRD PARTY PAYMENTS,Revenue,,,,,,, 
Walsall Council,http://opendatacommunities.org/id/metropolitan-district-council/walsall,WC119-24,31/10/2020,ADULT SOCIAL CARE,5 CARE SERVICES LTD,09/10/2020,593.67,73507-Domiciliary Care,Social Support,THIRD PARTY PAYMENTS,Revenue,,,,,,, 
Walsall Council,http://opendatacommunities.org/id/metropolitan-district-council/walsall,WC119-25,31/10/2020,ADULT SOCIAL CARE,5 CARE SERVICES LTD,09/10/2020,485.73,73507-Domiciliary Care,Physical Support,THIRD PARTY PAYMENTS,Revenue,,,,,,, 
Walsall Council,http://opendatacommunities.org/id/metropolitan-district-council/walsall,WC119-26,31/10/2020,ADULT SOCIAL CARE,5 CARE SERVICES LTD,09/10/2020,250.60,73507-Domiciliary Care,Physical Support,THIRD PARTY PAYMENTS,Revenue,,,,,,, 
Walsall Council,http://opendatacommunities.org/id/metropolitan-district-council/walsall,WC119-27,31/10/2020,ADULT SOCIAL CARE,5 CARE SERVICES LTD,09/10/2020,485.80,73507-Domiciliary Care,Physical Support,THIRD PARTY PAYMENTS,Revenue,,,,,,, 
Walsall Council,http://opendatacommunities.org/id/metropolitan-district-council/walsall,WC119-28,31/10/2020,ADULT SOCIAL CARE,5 CARE SERVICES LTD,09/10/2020,-416.34,73507-Domiciliary Care,Physical Support,THIRD PARTY PAYMENTS,Revenue,,,,,,, 
Walsall Council,http://opendatacommunities.org/id/metropolitan-district-council/walsall,WC119-29,31/10/2020,ADULT SOCIAL CARE,5 CARE SERVICES LTD,09/10/2020,341.81,73507-Domiciliary Care,Physical Support,THIRD PARTY PAYMENTS,Revenue,,,,,,, 
Walsall Council,http://opendatacommunities.org/id/metropolitan-district-council/walsall,WC119-30,31/10/2020,ADULT SOCIAL CARE,5 CARE SERVICES LTD,09/10/2020,308.40,73507-Domiciliary Care,Learning Disability Support,THIRD PARTY PAYMENTS,Revenue,,,,,,, 
Walsall Council,http://opendatacommunities.org/id/metropolitan-district-council/walsall,WC119-31,31/10/2020,ADULT SOCIAL CARE,5 CARE SERVICES LTD,09/10/2020,431.76,73507-Domiciliary Care,Physical Support,THIRD PARTY PAYMENTS,Revenue,,,,,,, 
Walsall Council,http://opendatacommunities.org/id/metropolitan-district-council/walsall,WC119-32,31/10/2020,ADULT SOCIAL CARE,5 CARE SERVICES LTD,09/10/2020,284.02,73507-Domiciliary Care,Learning Disability Support,THIRD PARTY PAYMENTS,Revenue,,,,,,, 
Walsall Council,http://opendatacommunities.org/id/metropolitan-district-council/walsall,WC119-33,31/10/2020,ADULT SOCIAL CARE,5 CARE SERVICES LTD,09/10/2020,925.20,73507-Domiciliary Care,Physical Support,THIRD PARTY PAYMENTS,Revenue,,,,,,, 
Walsall Council,http://opendatacommunities.org/id/metropolitan-district-council/walsall,WC119-34,31/10/2020,ADULT SOCIAL CARE,5 CARE SERVICES LTD,09/10/2020,539.70,73507-Domiciliary Care,Physical Support,THIRD PARTY PAYMENTS,Revenue,,,,,,, 
Walsall Council,http://opendatacommunities.org/id/metropolitan-district-council/walsall,WC119-35,31/10/2020,ADULT SOCIAL CARE,5 CARE SERVICES LTD,09/10/2020,485.73,73507-Domiciliary Care,Physical Support,THIRD PARTY PAYMENTS,Revenue,,,,,,, 
Walsall Council,http://opendatacommunities.org/id/metropolitan-district-council/walsall,WC119-36,31/10/2020,ADULT SOCIAL CARE,5 CARE SERVICES LTD,09/10/2020,647.64,73507-Domiciliary Care,Mental Health Support,THIRD PARTY PAYMENTS,Revenue,,,,,,, 
Walsall Council,http://opendatacommunities.org/id/metropolitan-district-council/walsall,WC119-37,31/10/2020,ADULT SOCIAL CARE,5 CARE SERVICES LTD,09/10/2020,323.82,73507-Domiciliary Care,Physical Support,THIRD PARTY PAYMENTS,Revenue,,,,,,, 
Walsall Council,http://opendatacommunities.org/id/metropolitan-district-council/walsall,WC119-38,31/10/2020,ADULT SOCIAL CARE,5 CARE SERVICES LTD,09/10/2020,485.80,73507-Domiciliary Care,Physical Support,THIRD PARTY PAYMENTS,Revenue,,,,,,, 
Walsall Council,http://opendatacommunities.org/id/metropolitan-district-council/walsall,WC119-39,31/10/2020,ADULT SOCIAL CARE,5 CARE SERVICES LTD,09/10/2020,393.21,73507-Domiciliary Care,Physical Support,THIRD PARTY PAYMENTS,Revenue,,,,,,, 
Walsall Council,http://opendatacommunities.org/id/metropolitan-district-council/walsall,WC119-40,31/10/2020,ADULT SOCIAL CARE,5 CARE SERVICES LTD,09/10/2020,251.93,73507-Domiciliary Care,Physical Support,THIRD PARTY PAYMENTS,Revenue,,,,,,, 
Walsall Council,http://opendatacommunities.org/id/metropolitan-district-council/walsall,WC119-41,31/10/2020,ADULT SOCIAL CARE,5 CARE SERVICES LTD,09/10/2020,516.57,73507-Domiciliary Care,Physical Support,THIRD PARTY PAYMENTS,Revenue,,,,,,, 
Walsall Council,http://opendatacommunities.org/id/metropolitan-district-council/walsall,WC119-42,31/10/2020,ADULT SOCIAL CARE,5 CARE SERVICES LTD,09/10/2020,755.58,73507-Domiciliary Care,Physical Support,THIRD PARTY PAYMENTS,Revenue,,,,,,, 
Walsall Council,http://opendatacommunities.org/id/metropolitan-district-council/walsall,WC119-43,31/10/2020,ADULT SOCIAL CARE,5 CARE SERVICES LTD,09/10/2020,377.79,73507-Domiciliary Care,Physical Support,THIRD PARTY PAYMENTS,Revenue,,,,,,, 
Walsall Council,http://opendatacommunities.org/id/metropolitan-district-council/walsall,WC119-44,31/10/2020,ADULT SOCIAL CARE,5 CARE SERVICES LTD,09/10/2020,416.34,73507-Domiciliary Care,Mental Health Support,THIRD PARTY PAYMENTS,Revenue,,,,,,, 
Walsall Council,http://opendatacommunities.org/id/metropolitan-district-council/walsall,WC119-45,31/10/2020,ADULT SOCIAL CARE,5 CARE SERVICES LTD,09/10/2020,593.67,73507-Domiciliary Care,Social Support,THIRD PARTY PAYMENTS,Revenue,,,,,,, 
Walsall Council,http://opendatacommunities.org/id/metropolitan-district-council/walsall,WC119-46,31/10/2020,ADULT SOCIAL CARE,5 CARE SERVICES LTD,09/10/2020,250.60,73507-Domiciliary Care,Physical Support,THIRD PARTY PAYMENTS,Revenue,,,,,,, 
Walsall Council,http://opendatacommunities.org/id/metropolitan-district-council/walsall,WC119-47,31/10/2020,ADULT SOCIAL CARE,5 CARE SERVICES LTD,09/10/2020,416.34,73507-Domiciliary Care,Physical Support,THIRD PARTY PAYMENTS,Revenue,,,,,,, 
Walsall Council,http://opendatacommunities.org/id/metropolitan-district-council/walsall,WC119-48,31/10/2020,ADULT SOCIAL CARE,5 CARE SERVICES LTD,09/10/2020,296.87,73507-Domiciliary Care,Physical Support,THIRD PARTY PAYMENTS,Revenue,,,,,,, 
Walsall Council,http://opendatacommunities.org/id/metropolitan-district-council/walsall,WC119-49,31/10/2020,ADULT SOCIAL CARE,5 CARE SERVICES LTD,09/10/2020,377.79,73507-Domiciliary Care,Physical Support,THIRD PARTY PAYMENTS,Revenue,,,,,,, 
Walsall Council,http://opendatacommunities.org/id/metropolitan-district-council/walsall,WC119-50,31/10/2020,ADULT SOCIAL CARE,5 CARE SERVICES LTD,21/10/2020,717.03,73507-Domiciliary Care,THIRD PARTY PAYMENTS,PRIVATE CONTRACTOR,Revenue,,,,,,, 
Walsall Council,http://opendatacommunities.org/id/metropolitan-district-council/walsall,WC119-51,31/10/2020,ADULT SOCIAL CARE,5 CARE SERVICES LTD,21/10/2020,"1,542.00",73507-Domiciliary Care,THIRD PARTY PAYMENTS,PRIVATE CONTRACTOR,Revenue,,,,,,, 
Walsall Council,http://opendatacommunities.org/id/metropolitan-district-council/walsall,WC119-52,31/10/2020,ADULT SOCIAL CARE,5 CARE SERVICES LTD,21/10/2020,"2,220.48",73507-Domiciliary Care,THIRD PARTY PAYMENTS,PRIVATE CONTRACTOR,Revenue,,,,,,, 
Walsall Council,http://opendatacommunities.org/id/metropolitan-district-council/walsall,WC119-53,31/10/2020,ADULT SOCIAL CARE,5 CARE SERVICES LTD,21/10/2020,397.13,73025-Professional Services-Priv Contractor & Other Agencies,THIRD PARTY PAYMENTS,PRIVATE CONTRACTOR,Revenue,,,,,,,Y
Walsall Council,http://opendatacommunities.org/id/metropolitan-district-council/walsall,WC119-54,31/10/2020,ADULT SOCIAL CARE,5 CARE SERVICES LTD,21/10/2020,539.84,73025-Professional Services-Priv Contractor & Other Agencies,THIRD PARTY PAYMENTS,PRIVATE CONTRACTOR,Revenue,,,,,,, 
Walsall Council,http://opendatacommunities.org/id/metropolitan-district-council/walsall,WC119-55,31/10/2020,ADULT SOCIAL CARE,5 CARE SERVICES LTD,21/10/2020,393.28,73025-Professional Services-Priv Contractor & Other Agencies,THIRD PARTY PAYMENTS,PRIVATE CONTRACTOR,Revenue,,,,,,, 
Walsall Council,http://opendatacommunities.org/id/metropolitan-district-council/walsall,WC119-56,31/10/2020,ADULT SOCIAL CARE,5 CARE SERVICES LTD,23/10/2020,516.57,73507-Domiciliary Care,THIRD PARTY PAYMENTS,PRIVATE CONTRACTOR,Revenue,,,,,,, 
Walsall Council,http://opendatacommunities.org/id/metropolitan-district-council/walsall,WC119-57,31/10/2020,ADULT SOCIAL CARE,5 CARE SERVICES LTD,23/10/2020,341.81,73507-Domiciliary Care,THIRD PARTY PAYMENTS,PRIVATE CONTRACTOR,Revenue,,,,,,, 
Walsall Council,http://opendatacommunities.org/id/metropolitan-district-council/walsall,WC119-58,31/10/2020,ADULT SOCIAL CARE,5 CARE SERVICES LTD,23/10/2020,416.34,73507-Domiciliary Care,THIRD PARTY PAYMENTS,PRIVATE CONTRACTOR,Revenue,,,,,,, 
Walsall Council,http://opendatacommunities.org/id/metropolitan-district-council/walsall,WC119-59,31/10/2020,ADULT SOCIAL CARE,5 CARE SERVICES LTD,23/10/2020,539.70,73507-Domiciliary Care,THIRD PARTY PAYMENTS,PRIVATE CONTRACTOR,Revenue,,,,,,, 
Walsall Council,http://opendatacommunities.org/id/metropolitan-district-council/walsall,WC119-60,31/10/2020,ADULT SOCIAL CARE,5 CARE SERVICES LTD,23/10/2020,485.73,73507-Domiciliary Care,THIRD PARTY PAYMENTS,PRIVATE CONTRACTOR,Revenue,,,,,,, 
Walsall Council,http://opendatacommunities.org/id/metropolitan-district-council/walsall,WC119-61,31/10/2020,ADULT SOCIAL CARE,5 CARE SERVICES LTD,23/10/2020,251.93,73507-Domiciliary Care,THIRD PARTY PAYMENTS,PRIVATE CONTRACTOR,Revenue,,,,,,, 
Walsall Council,http://opendatacommunities.org/id/metropolitan-district-council/walsall,WC119-62,31/10/2020,ADULT SOCIAL CARE,5 CARE SERVICES LTD,23/10/2020,616.80,73507-Domiciliary Care,THIRD PARTY PAYMENTS,PRIVATE CONTRACTOR,Revenue,,,,,,, 
Walsall Council,http://opendatacommunities.org/id/metropolitan-district-council/walsall,WC119-63,31/10/2020,ADULT SOCIAL CARE,5 CARE SERVICES LTD,23/10/2020,349.52,73507-Domiciliary Care,THIRD PARTY PAYMENTS,PRIVATE CONTRACTOR,Revenue,,,,,,, 
Walsall Council,http://opendatacommunities.org/id/metropolitan-district-council/walsall,WC119-64,31/10/2020,ADULT SOCIAL CARE,5 CARE SERVICES LTD,23/10/2020,296.87,73507-Domiciliary Care,THIRD PARTY PAYMENTS,PRIVATE CONTRACTOR,Revenue,,,,,,, 
Walsall Council,http://opendatacommunities.org/id/metropolitan-district-council/walsall,WC119-65,31/10/2020,ADULT SOCIAL CARE,5 CARE SERVICES LTD,23/10/2020,485.73,73507-Domiciliary Care,THIRD PARTY PAYMENTS,PRIVATE CONTRACTOR,Revenue,,,,,,, 
Walsall Council,http://opendatacommunities.org/id/metropolitan-district-council/walsall,WC119-66,31/10/2020,ADULT SOCIAL CARE,5 CARE SERVICES LTD,23/10/2020,377.79,73507-Domiciliary Care,THIRD PARTY PAYMENTS,PRIVATE CONTRACTOR,Revenue,,,,,,, 
Walsall Council,http://opendatacommunities.org/id/metropolitan-district-council/walsall,WC119-67,31/10/2020,ADULT SOCIAL CARE,5 CARE SERVICES LTD,23/10/2020,593.67,73507-Domiciliary Care,THIRD PARTY PAYMENTS,PRIVATE CONTRACTOR,Revenue,,,,,,, 
Walsall Council,http://opendatacommunities.org/id/metropolitan-district-council/walsall,WC119-68,31/10/2020,ADULT SOCIAL CARE,5 CARE SERVICES LTD,23/10/2020,308.40,73507-Domiciliary Care,THIRD PARTY PAYMENTS,PRIVATE CONTRACTOR,Revenue,,,,,,, 
Walsall Council,http://opendatacommunities.org/id/metropolitan-district-council/walsall,WC119-69,31/10/2020,ADULT SOCIAL CARE,5 CARE SERVICES LTD,23/10/2020,431.76,73507-Domiciliary Care,THIRD PARTY PAYMENTS,PRIVATE CONTRACTOR,Revenue,,,,,,, 
Walsall Council,http://opendatacommunities.org/id/metropolitan-district-council/walsall,WC119-70,31/10/2020,ADULT SOCIAL CARE,5 CARE SERVICES LTD,23/10/2020,925.20,73507-Domiciliary Care,THIRD PARTY PAYMENTS,PRIVATE CONTRACTOR,Revenue,,,,,,, 
Walsall Council,http://opendatacommunities.org/id/metropolitan-district-council/walsall,WC119-71,31/10/2020,ADULT SOCIAL CARE,5 CARE SERVICES LTD,23/10/2020,647.64,73507-Domiciliary Care,THIRD PARTY PAYMENTS,PRIVATE CONTRACTOR,Revenue,,,,,,, 
Walsall Council,http://opendatacommunities.org/id/metropolitan-district-council/walsall,WC119-72,31/10/2020,ADULT SOCIAL CARE,5 CARE SERVICES LTD,23/10/2020,323.82,73507-Domiciliary Care,THIRD PARTY PAYMENTS,PRIVATE CONTRACTOR,Revenue,,,,,,, 
Walsall Council,http://opendatacommunities.org/id/metropolitan-district-council/walsall,WC119-73,31/10/2020,ADULT SOCIAL CARE,5 CARE SERVICES LTD,23/10/2020,485.80,73507-Domiciliary Care,THIRD PARTY PAYMENTS,PRIVATE CONTRACTOR,Revenue,,,,,,, 
Walsall Council,http://opendatacommunities.org/id/metropolitan-district-council/walsall,WC119-74,31/10/2020,ADULT SOCIAL CARE,5 CARE SERVICES LTD,23/10/2020,393.21,73507-Domiciliary Care,THIRD PARTY PAYMENTS,PRIVATE CONTRACTOR,Revenue,,,,,,, 
Walsall Council,http://opendatacommunities.org/id/metropolitan-district-council/walsall,WC119-75,31/10/2020,ADULT SOCIAL CARE,5 CARE SERVICES LTD,23/10/2020,755.58,73507-Domiciliary Care,THIRD PARTY PAYMENTS,PRIVATE CONTRACTOR,Revenue,,,,,,, 
Walsall Council,http://opendatacommunities.org/id/metropolitan-district-council/walsall,WC119-76,31/10/2020,ADULT SOCIAL CARE,5 CARE SERVICES LTD,23/10/2020,393.21,73507-Domiciliary Care,THIRD PARTY PAYMENTS,PRIVATE CONTRACTOR,Revenue,,,,,,, 
Walsall Council,http://opendatacommunities.org/id/metropolitan-district-council/walsall,WC119-77,31/10/2020,ADULT SOCIAL CARE,5 CARE SERVICES LTD,23/10/2020,377.79,73507-Domiciliary Care,THIRD PARTY PAYMENTS,PRIVATE CONTRACTOR,Revenue,,,,,,, 
Walsall Council,http://opendatacommunities.org/id/metropolitan-district-council/walsall,WC119-78,31/10/2020,ADULT SOCIAL CARE,5 CARE SERVICES LTD,23/10/2020,485.80,73507-Domiciliary Care,THIRD PARTY PAYMENTS,PRIVATE CONTRACTOR,Revenue,,,,,,, 
Walsall Council,http://opendatacommunities.org/id/metropolitan-district-council/walsall,WC119-79,31/10/2020,ADULT SOCIAL CARE,5 CARE SERVICES LTD,23/10/2020,308.40,73507-Domiciliary Care,THIRD PARTY PAYMENTS,PRIVATE CONTRACTOR,Revenue,,,,,,, 
Walsall Council,http://opendatacommunities.org/id/metropolitan-district-council/walsall,WC119-80,31/10/2020,ADULT SOCIAL CARE,5 CARE SERVICES LTD,23/10/2020,431.76,73507-Domiciliary Care,THIRD PARTY PAYMENTS,PRIVATE CONTRACTOR,Revenue,,,,,,, 
Walsall Council,http://opendatacommunities.org/id/metropolitan-district-council/walsall,WC119-81,31/10/2020,ADULT SOCIAL CARE,5 CARE SERVICES LTD,23/10/2020,253.18,73507-Domiciliary Care,THIRD PARTY PAYMENTS,PRIVATE CONTRACTOR,Revenue,,,,,,, 
Walsall Council,http://opendatacommunities.org/id/metropolitan-district-council/walsall,WC119-82,31/10/2020,ADULT SOCIAL CARE,5 CARE SERVICES LTD,23/10/2020,925.20,73507-Domiciliary Care,THIRD PARTY PAYMENTS,PRIVATE CONTRACTOR,Revenue,,,,,,, 
Walsall Council,http://opendatacommunities.org/id/metropolitan-district-council/walsall,WC119-83,31/10/2020,ADULT SOCIAL CARE,5 CARE SERVICES LTD,23/10/2020,755.58,73507-Domiciliary Care,THIRD PARTY PAYMENTS,PRIVATE CONTRACTOR,Revenue,,,,,,, 
Walsall Council,http://opendatacommunities.org/id/metropolitan-district-council/walsall,WC119-84,31/10/2020,ADULT SOCIAL CARE,5 CARE SERVICES LTD,23/10/2020,593.67,73507-Domiciliary Care,THIRD PARTY PAYMENTS,PRIVATE CONTRACTOR,Revenue,,,,,,, 
Walsall Council,http://opendatacommunities.org/id/metropolitan-district-council/walsall,WC119-85,31/10/2020,ADULT SOCIAL CARE,5 CARE SERVICES LTD,23/10/2020,341.81,73507-Domiciliary Care,THIRD PARTY PAYMENTS,PRIVATE CONTRACTOR,Revenue,,,,,,, 
Walsall Council,http://opendatacommunities.org/id/metropolitan-district-council/walsall,WC119-86,31/10/2020,ADULT SOCIAL CARE,5 CARE SERVICES LTD,23/10/2020,516.57,73507-Domiciliary Care,THIRD PARTY PAYMENTS,PRIVATE CONTRACTOR,Revenue,,,,,,, 
Walsall Council,http://opendatacommunities.org/id/metropolitan-district-council/walsall,WC119-87,31/10/2020,ADULT SOCIAL CARE,5 CARE SERVICES LTD,23/10/2020,370.08,73507-Domiciliary Care,THIRD PARTY PAYMENTS,PRIVATE CONTRACTOR,Revenue,,,,,,, 
Walsall Council,http://opendatacommunities.org/id/metropolitan-district-council/walsall,WC119-88,31/10/2020,ADULT SOCIAL CARE,5 CARE SERVICES LTD,23/10/2020,647.64,73507-Domiciliary Care,THIRD PARTY PAYMENTS,PRIVATE CONTRACTOR,Revenue,,,,,,, 
Walsall Council,http://opendatacommunities.org/id/metropolitan-district-council/walsall,WC119-89,31/10/2020,ADULT SOCIAL CARE,5 CARE SERVICES LTD,23/10/2020,323.82,73507-Domiciliary Care,THIRD PARTY PAYMENTS,PRIVATE CONTRACTOR,Revenue,,,,,,, 
Walsall Council,http://opendatacommunities.org/id/metropolitan-district-council/walsall,WC119-90,31/10/2020,ADULT SOCIAL CARE,5 CARE SERVICES LTD,23/10/2020,539.70,73507-Domiciliary Care,THIRD PARTY PAYMENTS,PRIVATE CONTRACTOR,Revenue,,,,,,, 
Walsall Council,http://opendatacommunities.org/id/metropolitan-district-council/walsall,WC119-91,31/10/2020,ADULT SOCIAL CARE,5 CARE SERVICES LTD,23/10/2020,485.73,73507-Domiciliary Care,THIRD PARTY PAYMENTS,PRIVATE CONTRACTOR,Revenue,,,,,,, 
Walsall Council,http://opendatacommunities.org/id/metropolitan-district-council/walsall,WC119-92,31/10/2020,ADULT SOCIAL CARE,5 CARE SERVICES LTD,23/10/2020,296.87,73507-Domiciliary Care,THIRD PARTY PAYMENTS,PRIVATE CONTRACTOR,Revenue,,,,,,, 
Walsall Council,http://opendatacommunities.org/id/metropolitan-district-council/walsall,WC119-93,31/10/2020,ADULT SOCIAL CARE,5 CARE SERVICES LTD,23/10/2020,377.79,73507-Domiciliary Care,THIRD PARTY PAYMENTS,PRIVATE CONTRACTOR,Revenue,,,,,,, 
Walsall Council,http://opendatacommunities.org/id/metropolitan-district-council/walsall,WC119-94,31/10/2020,ADULT SOCIAL CARE,5 CARE SERVICES LTD,23/10/2020,251.93,73507-Domiciliary Care,THIRD PARTY PAYMENTS,PRIVATE CONTRACTOR,Revenue,,,,,,, 
Walsall Council,http://opendatacommunities.org/id/metropolitan-district-council/walsall,WC119-95,31/10/2020,ADULT SOCIAL CARE,5 CARE SERVICES LTD,23/10/2020,308.40,73507-Domiciliary Care,THIRD PARTY PAYMENTS,PRIVATE CONTRACTOR,Revenue,,,,,,, 
Walsall Council,http://opendatacommunities.org/id/metropolitan-district-council/walsall,WC119-96,31/10/2020,ADULT SOCIAL CARE,5 CARE SERVICES LTD,23/10/2020,349.52,73507-Domiciliary Care,THIRD PARTY PAYMENTS,PRIVATE CONTRACTOR,Revenue,,,,,,, 
Walsall Council,http://opendatacommunities.org/id/metropolitan-district-council/walsall,WC119-97,31/10/2020,ADULT SOCIAL CARE,5 CARE SERVICES LTD,28/10/2020,"2,652.00",63000-Professional Fees & Services,SUPPLIES & SERVICES,SERVICES,Revenue,,,,,,, 
Walsall Council,http://opendatacommunities.org/id/metropolitan-district-council/walsall,WC119-98,31/10/2020,RESOURCES AND TRANSFORMATION,A D T FIRE AND SECURITY PLC,02/10/2020,459.26,60008-Repair & Maintenance of Furniture & Equipment,Centralised Maintenance,SUPPLIES & SERVICES,Revenue,,,,,,, 
Walsall Council,http://opendatacommunities.org/id/metropolitan-district-council/walsall,WC119-99,31/10/2020,CHILDRENS,A D T FIRE AND SECURITY PLC,14/10/2020,434.09,40023-Fire Fighting Equipment Maintenance,PREMISES,REPAIRS & MAINTENANCE,Revenue,,,,,,, 
Walsall Council,http://opendatacommunities.org/id/metropolitan-district-council/walsall,WC119-100,31/10/2020,CHILDRENS,A D T FIRE AND SECURITY PLC,14/10/2020,434.09,40023-Fire Fighting Equipment Maintenance,PREMISES,REPAIRS & MAINTENANCE,Revenue,,,,,,, 
Walsall Council,http://opendatacommunities.org/id/metropolitan-district-council/walsall,WC119-101,31/10/2020,ECONOMY & ENVIRONMENT,A D T FIRE AND SECURITY PLC,19/10/2020,956.63,60500-Materials,SUPPLIES & SERVICES,EQUIPMENT FURNITURE & MATERIALS,Revenue,,,,,,, 
Walsall Council,http://opendatacommunities.org/id/metropolitan-district-council/walsall,WC119-102,31/10/2020,ECONOMY & ENVIRONMENT,A D T FIRE AND SECURITY PLC,28/10/2020,930.07,40011-Security & Alarm Maintenance,PREMISES,REPAIRS & MAINTENANCE,Revenue,,,,,,, 
Walsall Council,http://opendatacommunities.org/id/metropolitan-district-council/walsall,WC119-103,31/10/2020,ECONOMY & ENVIRONMENT,AAINA COMMUNITY HUB,13/10/2020,"1,035.40",66500-Grants to Other Orgs,SUPPLIES & SERVICES,GRANTS (EXP) & SUBSCRIPTIONS,Revenue,,,,,,, 
Walsall Council,http://opendatacommunities.org/id/metropolitan-district-council/walsall,WC119-104,31/10/2020,ECONOMY & ENVIRONMENT,AAINA COMMUNITY HUB,30/10/2020,"10,000.00",60500-Materials,SUPPLIES & SERVICES,EQUIPMENT FURNITURE & MATERIALS,Revenue,,,,,,, 
Walsall Council,http://opendatacommunities.org/id/metropolitan-district-council/walsall,WC119-105,31/10/2020,ADULT SOCIAL CARE,ABBEY COURT NURSING & RESIDEN,22/10/2020,"2,696.00",73503-Nursing EMI,THIRD PARTY PAYMENTS,PRIVATE CONTRACTOR,Revenue,,,,,,, 
Walsall Council,http://opendatacommunities.org/id/metropolitan-district-council/walsall,WC119-106,31/10/2020,ADULT SOCIAL CARE,ABBEY COURT NURSING & RESIDEN,22/10/2020,"2,044.00",73500-Residential,THIRD PARTY PAYMENTS,PRIVATE CONTRACTOR,Revenue,,,,,,, 
Walsall Council,http://opendatacommunities.org/id/metropolitan-district-council/walsall,WC119-107,31/10/2020,ADULT SOCIAL CARE,ABBEY COURT NURSING & RESIDEN,22/10/2020,"2,308.00",73501-Residential EMI,THIRD PARTY PAYMENTS,PRIVATE CONTRACTOR,Revenue,,,,,,, 
Walsall Council,http://opendatacommunities.org/id/metropolitan-district-council/walsall,WC119-108,31/10/2020,ADULT SOCIAL CARE,ABBEY COURT NURSING & RESIDEN,22/10/2020,"2,548.00",73501-Residential EMI,THIRD PARTY PAYMENTS,PRIVATE CONTRACTOR,Revenue,,,,,,, 
Walsall Council,http://opendatacommunities.org/id/metropolitan-district-council/walsall,WC119-109,31/10/2020,ADULT SOCIAL CARE,ABBEY COURT NURSING & RESIDEN,22/10/2020,"2,308.00",73501-Residential EMI,THIRD PARTY PAYMENTS,PRIVATE CONTRACTOR,Revenue,,,,,,, 
Walsall Council,http://opendatacommunities.org/id/metropolitan-district-council/walsall,WC119-110,31/10/2020,ADULT SOCIAL CARE,ABBEY COURT NURSING & RESIDEN,22/10/2020,"2,308.00",73501-Residential EMI,THIRD PARTY PAYMENTS,PRIVATE CONTRACTOR,Revenue,,,,,,, 
Walsall Council,http://opendatacommunities.org/id/metropolitan-district-council/walsall,WC119-111,31/10/2020,ADULT SOCIAL CARE,ABBEY HEALTHCARE HOMES LTD,22/10/2020,"3,102.72",73500-Residential,THIRD PARTY PAYMENTS,PRIVATE CONTRACTOR,Revenue,,,,,,, 
Walsall Council,http://opendatacommunities.org/id/metropolitan-district-council/walsall,WC119-112,31/10/2020,ADULT SOCIAL CARE,ABBEY HEALTHCARE HOMES LTD,22/10/2020,"3,102.72",73500-Residential,THIRD PARTY PAYMENTS,PRIVATE CONTRACTOR,Revenue,,,,,,, 
Walsall Council,http://opendatacommunities.org/id/metropolitan-district-council/walsall,WC119-113,31/10/2020,ADULT SOCIAL CARE,ABBEY HEALTHCARE HOMES LTD,22/10/2020,"2,372.64",73500-Residential,THIRD PARTY PAYMENTS,PRIVATE CONTRACTOR,Revenue,,,,,,, 
Walsall Council,http://opendatacommunities.org/id/metropolitan-district-council/walsall,WC119-114,31/10/2020,ADULT SOCIAL CARE,ABBEY HEALTHCARE HOMES LTD,22/10/2020,"3,516.40",73500-Residential,THIRD PARTY PAYMENTS,PRIVATE CONTRACTOR,Revenue,,,,,,, 
Walsall Council,http://opendatacommunities.org/id/metropolitan-district-council/walsall,WC119-115,31/10/2020,CHILDRENS,ABC DAY NURSERY (WILLENHALL) LIMITED,16/10/2020,"1,037.40",66505-Other-Grants to Other Orgs,SUPPLIES & SERVICES,GRANTS (EXP) & SUBSCRIPTIONS,Revenue,,,,,,, 
Walsall Council,http://opendatacommunities.org/id/metropolitan-district-council/walsall,WC119-116,31/10/2020,ECONOMY & ENVIRONMENT,ABEL ALARM CO LTD,13/10/2020,"1,021.00",60008-Repair & Maintenance of Furniture & Equipment,SUPPLIES & SERVICES,EQUIPMENT FURNITURE & MATERIALS,Revenue,,,,,,, 
Walsall Council,http://opendatacommunities.org/id/metropolitan-district-council/walsall,WC119-117,31/10/2020,ECONOMY & ENVIRONMENT,ABEL ALARM CO LTD,13/10/2020,"1,091.00",60008-Repair & Maintenance of Furniture & Equipment,SUPPLIES & SERVICES,EQUIPMENT FURNITURE & MATERIALS,Revenue,,,,,,, 
Walsall Council,http://opendatacommunities.org/id/metropolitan-district-council/walsall,WC119-118,31/10/2020,CHILDRENS,ABLEWELL CARS,08/10/2020,738.00,52000-Hire of Vehicle with Driver,Home To School Transport,TRANSPORT,Revenue,,,,,,, 
Walsall Council,http://opendatacommunities.org/id/metropolitan-district-council/walsall,WC119-119,31/10/2020,CHILDRENS,ABLEWELL CARS,08/10/2020,"1,414.40",52000-Hire of Vehicle with Driver,Home To School Transport,TRANSPORT,Revenue,,,,,,, 
Walsall Council,http://opendatacommunities.org/id/metropolitan-district-council/walsall,WC119-120,31/10/2020,CHILDRENS,ABLEWELL CARS,08/10/2020,950.40,52000-Hire of Vehicle with Driver,Home To School Transport,TRANSPORT,Revenue,,,,,,, 
Walsall Council,http://opendatacommunities.org/id/metropolitan-district-council/walsall,WC119-121,31/10/2020,CHILDRENS,ABLEWELL CARS,08/10/2020,"1,168.00",52000-Hire of Vehicle with Driver,Home To School Transport,TRANSPORT,Revenue,,,,,,, 
Walsall Council,http://opendatacommunities.org/id/metropolitan-district-council/walsall,WC119-122,31/10/2020,CHILDRENS,ABLEWELL CARS,08/10/2020,285.00,52000-Hire of Vehicle with Driver,Home To School Transport,TRANSPORT,Revenue,,,,,,, 
Walsall Council,http://opendatacommunities.org/id/metropolitan-district-council/walsall,WC119-123,31/10/2020,CHILDRENS,ABS TAXIS (ALDRIDGE),08/10/2020,"1,895.22",52000-Hire of Vehicle with Driver,Home To School Transport,TRANSPORT,Revenue,,,,,,, 
Walsall Council,http://opendatacommunities.org/id/metropolitan-district-council/walsall,WC119-124,31/10/2020,CHILDRENS,ABS TAXIS (ALDRIDGE),08/10/2020,"1,231.92",52000-Hire of Vehicle with Driver,Home To School Transport,TRANSPORT,Revenue,,,,,,, 
Walsall Council,http://opendatacommunities.org/id/metropolitan-district-council/walsall,WC119-125,31/10/2020,CHILDRENS,ABS TAXIS (ALDRIDGE),08/10/2020,833.00,52000-Hire of Vehicle with Driver,Home To School Transport,TRANSPORT,Revenue,,,,,,, 
Walsall Council,http://opendatacommunities.org/id/metropolitan-district-council/walsall,WC119-126,31/10/2020,CHILDRENS,ABS TAXIS (ALDRIDGE),08/10/2020,"1,616.95",52000-Hire of Vehicle with Driver,Home To School Transport,TRANSPORT,Revenue,,,,,,, 
Walsall Council,http://opendatacommunities.org/id/metropolitan-district-council/walsall,WC119-127,31/10/2020,CHILDRENS,ACCALIA CARE SERVICES LTD,02/10/2020,"19,980.00",74036-External Residential Care-Oth Agency Provision,Independent Residential Homes,THIRD PARTY PAYMENTS,Revenue,,,,,,, 
Walsall Council,http://opendatacommunities.org/id/metropolitan-district-council/walsall,WC119-128,31/10/2020,CHILDRENS,ACCALIA CARE SERVICES LTD,02/10/2020,"19,980.00",74036-External Residential Care-Oth Agency Provision,Independent Residential Homes,THIRD PARTY PAYMENTS,Revenue,,,,,,, 
Walsall Council,http://opendatacommunities.org/id/metropolitan-district-council/walsall,WC119-129,31/10/2020,CHILDRENS,ACCALIA CARE SERVICES LTD,30/10/2020,"19,980.00",74036-External Residential Care-Oth Agency Provision,THIRD PARTY PAYMENTS,PRIVATE CONTRACTOR,Revenue,,,,,,, 
Walsall Council,http://opendatacommunities.org/id/metropolitan-district-council/walsall,WC119-130,31/10/2020,CHILDRENS,ACCALIA CARE SERVICES LTD,30/10/2020,"19,980.00",74036-External Residential Care-Oth Agency Provision,THIRD PARTY PAYMENTS,PRIVATE CONTRACTOR,Revenue,,,,,,, 
Walsall Council,http://opendatacommunities.org/id/metropolitan-district-council/walsall,WC119-131,31/10/2020,ADULT SOCIAL CARE,ACCOMPLISH GROUP LTD,23/10/2020,"59,306.55",73500-Residential,THIRD PARTY PAYMENTS,PRIVATE CONTRACTOR,Revenue,,,,,,, 
Walsall Council,http://opendatacommunities.org/id/metropolitan-district-council/walsall,WC119-132,31/10/2020,ADULT SOCIAL CARE,ACCORD - AGE MATTERS,29/10/2020,-381.71,76423-Direct Payments Support,TRANSFER PAYMENTS,ADULT SOCIAL SERVICES CLIENT,Revenue,,,,,,, 
Walsall Council,http://opendatacommunities.org/id/metropolitan-district-council/walsall,WC119-133,31/10/2020,ADULT SOCIAL CARE,ACCORD HOUSING ASSOCIATION LIMITED - HOBS MEADOW,22/10/2020,"4,659.64",73500-Residential,THIRD PARTY PAYMENTS,PRIVATE CONTRACTOR,Revenue,,,,,,, 
Walsall Council,http://opendatacommunities.org/id/metropolitan-district-council/walsall,WC119-134,31/10/2020,ADULT SOCIAL CARE,ACCORD HOUSING ASSOCIATION LIMITED - HOBS MEADOW,22/10/2020,"4,659.64",73500-Residential,THIRD PARTY PAYMENTS,PRIVATE CONTRACTOR,Revenue,,,,,,, 
Walsall Council,http://opendatacommunities.org/id/metropolitan-district-council/walsall,WC119-135,31/10/2020,ADULT SOCIAL CARE,ACCORD HOUSING ASSOCIATION LIMITED - HOBS MEADOW,22/10/2020,"4,659.64",73500-Residential,THIRD PARTY PAYMENTS,PRIVATE CONTRACTOR,Revenue,,,,,,, 
Walsall Council,http://opendatacommunities.org/id/metropolitan-district-council/walsall,WC119-136,31/10/2020,ADULT SOCIAL CARE,ACCORD HOUSING ASSOCIATION LIMITED - HOBS MEADOW,22/10/2020,"4,659.64",73500-Residential,THIRD PARTY PAYMENTS,PRIVATE CONTRACTOR,Revenue,,,,,,, 
Walsall Council,http://opendatacommunities.org/id/metropolitan-district-council/walsall,WC119-137,31/10/2020,CHILDRENS,ACCORD HOUSING ASSOCIATION LTD#135,06/10/2020,"47,217.50",73025-Professional Services-Priv Contractor & Other Agencies,Domestic Violence Refuge,THIRD PARTY PAYMENTS,Revenue,,,,,,, 
Walsall Council,http://opendatacommunities.org/id/metropolitan-district-council/walsall,WC119-138,31/10/2020,CHILDRENS,ACCORD HOUSING ASSOCIATION LTD#135,09/10/2020,"28,502.83",63000-Professional Fees & Services,Housing First,SUPPLIES & SERVICES,Revenue,,,,,,, 
Walsall Council,http://opendatacommunities.org/id/metropolitan-district-council/walsall,WC119-139,31/10/2020,ADULT SOCIAL CARE,ACCORD HOUSING ASSOCIATION LTD#135,09/10/2020,"5,052.47",70000-Social Services-Fees to Voluntary Bodies,Complex Needs SLA,THIRD PARTY PAYMENTS,Revenue,,,,,,, 
Walsall Council,http://opendatacommunities.org/id/metropolitan-district-council/walsall,WC119-140,31/10/2020,ADULT SOCIAL CARE,ACCORD HOUSING ASSOCIATION LTD#135,09/10/2020,"4,904.55",70000-Social Services-Fees to Voluntary Bodies,Complex Needs SLA,THIRD PARTY PAYMENTS,Revenue,,,,,,, 
Walsall Council,http://opendatacommunities.org/id/metropolitan-district-council/walsall,WC119-141,31/10/2020,ADULT SOCIAL CARE,ACCORD HOUSING ASSOCIATION LTD#135,09/10/2020,672.35,63102-Consultant Fees,Falls Prevention Age UK,SUPPLIES & SERVICES,Revenue,,,,,,, 
Walsall Council,http://opendatacommunities.org/id/metropolitan-district-council/walsall,WC119-142,31/10/2020,ECONOMY & ENVIRONMENT,ACCORD HOUSING ASSOCIATION LTD#135,09/10/2020,"1,666.67",63000-Professional Fees & Services,Integrated Communities Programme,SUPPLIES & SERVICES,Revenue,,,,,,, 
Walsall Council,http://opendatacommunities.org/id/metropolitan-district-council/walsall,WC119-143,31/10/2020,ADULT SOCIAL CARE,ACCORD HOUSING ASSOCIATION LTD#135,12/10/2020,"1,208.04",73507-Domiciliary Care,THIRD PARTY PAYMENTS,PRIVATE CONTRACTOR,Revenue,,,,,,, 
Walsall Council,http://opendatacommunities.org/id/metropolitan-district-council/walsall,WC119-144,31/10/2020,ADULT SOCIAL CARE,ACCORD HOUSING ASSOCIATION LTD#135,12/10/2020,"1,907.08",73507-Domiciliary Care,THIRD PARTY PAYMENTS,PRIVATE CONTRACTOR,Revenue,,,,,,, 
Walsall Council,http://opendatacommunities.org/id/metropolitan-district-council/walsall,WC119-145,31/10/2020,ADULT SOCIAL CARE,ACCORD HOUSING ASSOCIATION LTD#135,12/10/2020,452.32,73507-Domiciliary Care,THIRD PARTY PAYMENTS,PRIVATE CONTRACTOR,Revenue,,,,,,, 
Walsall Council,http://opendatacommunities.org/id/metropolitan-district-council/walsall,WC119-146,31/10/2020,ADULT SOCIAL CARE,ACCORD HOUSING ASSOCIATION LTD#135,12/10/2020,556.50,73507-Domiciliary Care,THIRD PARTY PAYMENTS,PRIVATE CONTRACTOR,Revenue,,,,,,, 
Walsall Council,http://opendatacommunities.org/id/metropolitan-district-council/walsall,WC119-147,31/10/2020,ADULT SOCIAL CARE,ACCORD HOUSING ASSOCIATION LTD#135,12/10/2020,503.72,73507-Domiciliary Care,THIRD PARTY PAYMENTS,PRIVATE CONTRACTOR,Revenue,,,,,,, 
Walsall Council,http://opendatacommunities.org/id/metropolitan-district-council/walsall,WC119-148,31/10/2020,ADULT SOCIAL CARE,ACCORD HOUSING ASSOCIATION LTD#135,12/10/2020,"1,439.20",73507-Domiciliary Care,THIRD PARTY PAYMENTS,PRIVATE CONTRACTOR,Revenue,,,,,,, 
Walsall Council,http://opendatacommunities.org/id/metropolitan-district-council/walsall,WC119-149,31/10/2020,ADULT SOCIAL CARE,ACCORD HOUSING ASSOCIATION LTD#135,12/10/2020,503.72,73507-Domiciliary Care,THIRD PARTY PAYMENTS,PRIVATE CONTRACTOR,Revenue,,,,,,, 
Walsall Council,http://opendatacommunities.org/id/metropolitan-district-council/walsall,WC119-150,31/10/2020,ADULT SOCIAL CARE,ACCORD HOUSING ASSOCIATION LTD#135,12/10/2020,"1,202.76",73507-Domiciliary Care,THIRD PARTY PAYMENTS,PRIVATE CONTRACTOR,Revenue,,,,,,, 
Walsall Council,http://opendatacommunities.org/id/metropolitan-district-council/walsall,WC119-151,31/10/2020,ADULT SOCIAL CARE,ACCORD HOUSING ASSOCIATION LTD#135,12/10/2020,755.72,73507-Domiciliary Care,THIRD PARTY PAYMENTS,PRIVATE CONTRACTOR,Revenue,,,,,,, 
Walsall Council,http://opendatacommunities.org/id/metropolitan-district-council/walsall,WC119-152,31/10/2020,ADULT SOCIAL CARE,ACCORD HOUSING ASSOCIATION LTD#135,12/10/2020,367.51,73507-Domiciliary Care,THIRD PARTY PAYMENTS,PRIVATE CONTRACTOR,Revenue,,,,,,, 
Walsall Council,http://opendatacommunities.org/id/metropolitan-district-council/walsall,WC119-153,31/10/2020,ADULT SOCIAL CARE,ACCORD HOUSING ASSOCIATION LTD#135,12/10/2020,493.44,73507-Domiciliary Care,THIRD PARTY PAYMENTS,PRIVATE CONTRACTOR,Revenue,,,,,,, 
Walsall Council,http://opendatacommunities.org/id/metropolitan-district-council/walsall,WC119-154,31/10/2020,ADULT SOCIAL CARE,ACCORD HOUSING ASSOCIATION LTD#135,12/10/2020,"1,048.56",73508-Community Supported Living/Supported Accommodation,THIRD PARTY PAYMENTS,PRIVATE CONTRACTOR,Revenue,,,,,,, 
Walsall Council,http://opendatacommunities.org/id/metropolitan-district-council/walsall,WC119-155,31/10/2020,ADULT SOCIAL CARE,ACCORD HOUSING ASSOCIATION LTD#135,12/10/2020,393.21,73507-Domiciliary Care,THIRD PARTY PAYMENTS,PRIVATE CONTRACTOR,Revenue,,,,,,, 
Walsall Council,http://opendatacommunities.org/id/metropolitan-district-council/walsall,WC119-156,31/10/2020,ADULT SOCIAL CARE,ACCORD HOUSING ASSOCIATION LTD#135,12/10/2020,961.32,73507-Domiciliary Care,THIRD PARTY PAYMENTS,PRIVATE CONTRACTOR,Revenue,,,,,,, 
Walsall Council,http://opendatacommunities.org/id/metropolitan-district-council/walsall,WC119-157,31/10/2020,ADULT SOCIAL CARE,ACCORD HOUSING ASSOCIATION LTD#135,12/10/2020,"1,490.60",73507-Domiciliary Care,THIRD PARTY PAYMENTS,PRIVATE CONTRACTOR,Revenue,,,,,,, 
Walsall Council,http://opendatacommunities.org/id/metropolitan-district-council/walsall,WC119-158,31/10/2020,ADULT SOCIAL CARE,ACCORD HOUSING ASSOCIATION LTD#135,12/10/2020,"1,352.06",73507-Domiciliary Care,THIRD PARTY PAYMENTS,PRIVATE CONTRACTOR,Revenue,,,,,,, 
Walsall Council,http://opendatacommunities.org/id/metropolitan-district-council/walsall,WC119-159,31/10/2020,ADULT SOCIAL CARE,ACCORD HOUSING ASSOCIATION LTD#135,12/10/2020,925.20,73507-Domiciliary Care,THIRD PARTY PAYMENTS,PRIVATE CONTRACTOR,Revenue,,,,,,, 
Walsall Council,http://opendatacommunities.org/id/metropolitan-district-council/walsall,WC119-160,31/10/2020,ADULT SOCIAL CARE,ACCORD HOUSING ASSOCIATION LTD#135,12/10/2020,771.00,73507-Domiciliary Care,THIRD PARTY PAYMENTS,PRIVATE CONTRACTOR,Revenue,,,,,,, 
Walsall Council,http://opendatacommunities.org/id/metropolitan-district-council/walsall,WC119-161,31/10/2020,ADULT SOCIAL CARE,ACCORD HOUSING ASSOCIATION LTD#135,12/10/2020,"2,285.92",73507-Domiciliary Care,THIRD PARTY PAYMENTS,PRIVATE CONTRACTOR,Revenue,,,,,,, 
Walsall Council,http://opendatacommunities.org/id/metropolitan-district-council/walsall,WC119-162,31/10/2020,ADULT SOCIAL CARE,ACCORD HOUSING ASSOCIATION LTD#135,12/10/2020,"1,187.48",73507-Domiciliary Care,THIRD PARTY PAYMENTS,PRIVATE CONTRACTOR,Revenue,,,,,,, 
Walsall Council,http://opendatacommunities.org/id/metropolitan-district-council/walsall,WC119-163,31/10/2020,ADULT SOCIAL CARE,ACCORD HOUSING ASSOCIATION LTD#135,12/10/2020,992.16,73507-Domiciliary Care,THIRD PARTY PAYMENTS,PRIVATE CONTRACTOR,Revenue,,,,,,, 
Walsall Council,http://opendatacommunities.org/id/metropolitan-district-council/walsall,WC119-164,31/10/2020,ADULT SOCIAL CARE,ACCORD HOUSING ASSOCIATION LTD#135,12/10/2020,452.32,73507-Domiciliary Care,THIRD PARTY PAYMENTS,PRIVATE CONTRACTOR,Revenue,,,,,,, 
Walsall Council,http://opendatacommunities.org/id/metropolitan-district-council/walsall,WC119-165,31/10/2020,ADULT SOCIAL CARE,ACCORD HOUSING ASSOCIATION LTD#135,12/10/2020,287.84,73507-Domiciliary Care,THIRD PARTY PAYMENTS,PRIVATE CONTRACTOR,Revenue,,,,,,, 
Walsall Council,http://opendatacommunities.org/id/metropolitan-district-council/walsall,WC119-166,31/10/2020,ADULT SOCIAL CARE,ACCORD HOUSING ASSOCIATION LTD#135,12/10/2020,493.44,73507-Domiciliary Care,THIRD PARTY PAYMENTS,PRIVATE CONTRACTOR,Revenue,,,,,,, 
Walsall Council,http://opendatacommunities.org/id/metropolitan-district-council/walsall,WC119-167,31/10/2020,ADULT SOCIAL CARE,ACCORD HOUSING ASSOCIATION LTD#135,12/10/2020,953.62,73507-Domiciliary Care,THIRD PARTY PAYMENTS,PRIVATE CONTRACTOR,Revenue,,,,,,, 
Walsall Council,http://opendatacommunities.org/id/metropolitan-district-council/walsall,WC119-168,31/10/2020,ADULT SOCIAL CARE,ACCORD HOUSING ASSOCIATION LTD#135,12/10/2020,575.68,73507-Domiciliary Care,THIRD PARTY PAYMENTS,PRIVATE CONTRACTOR,Revenue,,,,,,, 
Walsall Council,http://opendatacommunities.org/id/metropolitan-district-council/walsall,WC119-169,31/10/2020,ADULT SOCIAL CARE,ACCORD HOUSING ASSOCIATION LTD#135,12/10/2020,647.64,73507-Domiciliary Care,THIRD PARTY PAYMENTS,PRIVATE CONTRACTOR,Revenue,,,,,,, 
Walsall Council,http://opendatacommunities.org/id/metropolitan-district-council/walsall,WC119-170,31/10/2020,ADULT SOCIAL CARE,ACCORD HOUSING ASSOCIATION LTD#135,12/10/2020,524.28,73507-Domiciliary Care,THIRD PARTY PAYMENTS,PRIVATE CONTRACTOR,Revenue,,,,,,, 
Walsall Council,http://opendatacommunities.org/id/metropolitan-district-council/walsall,WC119-171,31/10/2020,ADULT SOCIAL CARE,ACCORD HOUSING ASSOCIATION LTD#135,12/10/2020,719.60,73507-Domiciliary Care,THIRD PARTY PAYMENTS,PRIVATE CONTRACTOR,Revenue,,,,,,, 
Walsall Council,http://opendatacommunities.org/id/metropolitan-district-council/walsall,WC119-172,31/10/2020,ADULT SOCIAL CARE,ACCORD HOUSING ASSOCIATION LTD#135,12/10/2020,"1,107.74",73507-Domiciliary Care,THIRD PARTY PAYMENTS,PRIVATE CONTRACTOR,Revenue,,,,,,, 
Walsall Council,http://opendatacommunities.org/id/metropolitan-district-council/walsall,WC119-173,31/10/2020,CHILDRENS,ACCORD HOUSING ASSOCIATION LTD#135,19/10/2020,"1,068.40",43000-Rents,PREMISES,RENTS,Revenue,,,,,,, 
Walsall Council,http://opendatacommunities.org/id/metropolitan-district-council/walsall,WC119-174,31/10/2020,ADULT SOCIAL CARE,ACCORD HOUSING ASSOCIATION LTD#135,21/10/2020,462.66,73507-Domiciliary Care,THIRD PARTY PAYMENTS,PRIVATE CONTRACTOR,Revenue,,,,,,, 
Walsall Council,http://opendatacommunities.org/id/metropolitan-district-council/walsall,WC119-175,31/10/2020,ADULT SOCIAL CARE,ACCORD HOUSING ASSOCIATION LTD#135,21/10/2020,"1,177.20",73507-Domiciliary Care,THIRD PARTY PAYMENTS,PRIVATE CONTRACTOR,Revenue,,,,,,, 
Walsall Council,http://opendatacommunities.org/id/metropolitan-district-council/walsall,WC119-176,31/10/2020,ADULT SOCIAL CARE,ACCORD HOUSING ASSOCIATION LTD#135,21/10/2020,"1,907.08",73507-Domiciliary Care,THIRD PARTY PAYMENTS,PRIVATE CONTRACTOR,Revenue,,,,,,, 
Walsall Council,http://opendatacommunities.org/id/metropolitan-district-council/walsall,WC119-177,31/10/2020,ADULT SOCIAL CARE,ACCORD HOUSING ASSOCIATION LTD#135,21/10/2020,452.32,73507-Domiciliary Care,THIRD PARTY PAYMENTS,PRIVATE CONTRACTOR,Revenue,,,,,,, 
Walsall Council,http://opendatacommunities.org/id/metropolitan-district-council/walsall,WC119-178,31/10/2020,ADULT SOCIAL CARE,ACCORD HOUSING ASSOCIATION LTD#135,21/10/2020,503.72,73507-Domiciliary Care,THIRD PARTY PAYMENTS,PRIVATE CONTRACTOR,Revenue,,,,,,, 
Walsall Council,http://opendatacommunities.org/id/metropolitan-district-council/walsall,WC119-179,31/10/2020,ADULT SOCIAL CARE,ACCORD HOUSING ASSOCIATION LTD#135,21/10/2020,"1,439.20",73507-Domiciliary Care,THIRD PARTY PAYMENTS,PRIVATE CONTRACTOR,Revenue,,,,,,, 
Walsall Council,http://opendatacommunities.org/id/metropolitan-district-council/walsall,WC119-180,31/10/2020,ADULT SOCIAL CARE,ACCORD HOUSING ASSOCIATION LTD#135,21/10/2020,503.72,73507-Domiciliary Care,THIRD PARTY PAYMENTS,PRIVATE CONTRACTOR,Revenue,,,,,,, 
Walsall Council,http://opendatacommunities.org/id/metropolitan-district-council/walsall,WC119-181,31/10/2020,ADULT SOCIAL CARE,ACCORD HOUSING ASSOCIATION LTD#135,21/10/2020,"1,202.76",73507-Domiciliary Care,THIRD PARTY PAYMENTS,PRIVATE CONTRACTOR,Revenue,,,,,,, 
Walsall Council,http://opendatacommunities.org/id/metropolitan-district-council/walsall,WC119-182,31/10/2020,ADULT SOCIAL CARE,ACCORD HOUSING ASSOCIATION LTD#135,21/10/2020,755.72,73507-Domiciliary Care,THIRD PARTY PAYMENTS,PRIVATE CONTRACTOR,Revenue,,,,,,, 
Walsall Council,http://opendatacommunities.org/id/metropolitan-district-council/walsall,WC119-183,31/10/2020,ADULT SOCIAL CARE,ACCORD HOUSING ASSOCIATION LTD#135,21/10/2020,493.44,73507-Domiciliary Care,THIRD PARTY PAYMENTS,PRIVATE CONTRACTOR,Revenue,,,,,,, 
Walsall Council,http://opendatacommunities.org/id/metropolitan-district-council/walsall,WC119-184,31/10/2020,ADULT SOCIAL CARE,ACCORD HOUSING ASSOCIATION LTD#135,21/10/2020,"1,048.56",73508-Community Supported Living/Supported Accommodation,THIRD PARTY PAYMENTS,PRIVATE CONTRACTOR,Revenue,,,,,,, 
Walsall Council,http://opendatacommunities.org/id/metropolitan-district-council/walsall,WC119-185,31/10/2020,ADULT SOCIAL CARE,ACCORD HOUSING ASSOCIATION LTD#135,21/10/2020,526.85,73507-Domiciliary Care,THIRD PARTY PAYMENTS,PRIVATE CONTRACTOR,Revenue,,,,,,, 
Walsall Council,http://opendatacommunities.org/id/metropolitan-district-council/walsall,WC119-186,31/10/2020,ADULT SOCIAL CARE,ACCORD HOUSING ASSOCIATION LTD#135,21/10/2020,575.68,73507-Domiciliary Care,THIRD PARTY PAYMENTS,PRIVATE CONTRACTOR,Revenue,,,,,,, 
Walsall Council,http://opendatacommunities.org/id/metropolitan-district-council/walsall,WC119-187,31/10/2020,ADULT SOCIAL CARE,ACCORD HOUSING ASSOCIATION LTD#135,21/10/2020,359.80,73507-Domiciliary Care,THIRD PARTY PAYMENTS,PRIVATE CONTRACTOR,Revenue,,,,,,, 
Walsall Council,http://opendatacommunities.org/id/metropolitan-district-council/walsall,WC119-188,31/10/2020,ADULT SOCIAL CARE,ACCORD HOUSING ASSOCIATION LTD#135,21/10/2020,"1,146.36",73507-Domiciliary Care,THIRD PARTY PAYMENTS,PRIVATE CONTRACTOR,Revenue,,,,,,, 
Walsall Council,http://opendatacommunities.org/id/metropolitan-district-council/walsall,WC119-189,31/10/2020,ADULT SOCIAL CARE,ACCORD HOUSING ASSOCIATION LTD#135,21/10/2020,"1,295.28",73507-Domiciliary Care,THIRD PARTY PAYMENTS,PRIVATE CONTRACTOR,Revenue,,,,,,, 
Walsall Council,http://opendatacommunities.org/id/metropolitan-district-council/walsall,WC119-190,31/10/2020,ADULT SOCIAL CARE,ACCORD HOUSING ASSOCIATION LTD#135,21/10/2020,"1,573.12",73507-Domiciliary Care,THIRD PARTY PAYMENTS,PRIVATE CONTRACTOR,Revenue,,,,,,, 
Walsall Council,http://opendatacommunities.org/id/metropolitan-district-council/walsall,WC119-191,31/10/2020,ADULT SOCIAL CARE,ACCORD HOUSING ASSOCIATION LTD#135,21/10/2020,925.20,73507-Domiciliary Care,THIRD PARTY PAYMENTS,PRIVATE CONTRACTOR,Revenue,,,,,,, 
Walsall Council,http://opendatacommunities.org/id/metropolitan-district-council/walsall,WC119-192,31/10/2020,ADULT SOCIAL CARE,ACCORD HOUSING ASSOCIATION LTD#135,21/10/2020,"2,285.92",73507-Domiciliary Care,THIRD PARTY PAYMENTS,PRIVATE CONTRACTOR,Revenue,,,,,,, 
Walsall Council,http://opendatacommunities.org/id/metropolitan-district-council/walsall,WC119-193,31/10/2020,ADULT SOCIAL CARE,ACCORD HOUSING ASSOCIATION LTD#135,21/10/2020,"1,187.48",73507-Domiciliary Care,THIRD PARTY PAYMENTS,PRIVATE CONTRACTOR,Revenue,,,,,,, 
Walsall Council,http://opendatacommunities.org/id/metropolitan-district-council/walsall,WC119-194,31/10/2020,ADULT SOCIAL CARE,ACCORD HOUSING ASSOCIATION LTD#135,21/10/2020,992.16,73507-Domiciliary Care,THIRD PARTY PAYMENTS,PRIVATE CONTRACTOR,Revenue,,,,,,, 
Walsall Council,http://opendatacommunities.org/id/metropolitan-district-council/walsall,WC119-195,31/10/2020,ADULT SOCIAL CARE,ACCORD HOUSING ASSOCIATION LTD#135,21/10/2020,452.32,73507-Domiciliary Care,THIRD PARTY PAYMENTS,PRIVATE CONTRACTOR,Revenue,,,,,,, 
Walsall Council,http://opendatacommunities.org/id/metropolitan-district-council/walsall,WC119-196,31/10/2020,ADULT SOCIAL CARE,ACCORD HOUSING ASSOCIATION LTD#135,21/10/2020,287.84,73507-Domiciliary Care,THIRD PARTY PAYMENTS,PRIVATE CONTRACTOR,Revenue,,,,,,,Y
Walsall Council,http://opendatacommunities.org/id/metropolitan-district-council/walsall,WC119-197,31/10/2020,ADULT SOCIAL CARE,ACCORD HOUSING ASSOCIATION LTD#135,21/10/2020,454.90,73507-Domiciliary Care,THIRD PARTY PAYMENTS,PRIVATE CONTRACTOR,Revenue,,,,,,,Y
Walsall Council,http://opendatacommunities.org/id/metropolitan-district-council/walsall,WC119-198,31/10/2020,ADULT SOCIAL CARE,ACCORD HOUSING ASSOCIATION LTD#135,21/10/2020,575.68,73507-Domiciliary Care,THIRD PARTY PAYMENTS,PRIVATE CONTRACTOR,Revenue,,,,,,, 
Walsall Council,http://opendatacommunities.org/id/metropolitan-district-council/walsall,WC119-199,31/10/2020,ADULT SOCIAL CARE,ACCORD HOUSING ASSOCIATION LTD#135,21/10/2020,524.28,73507-Domiciliary Care,THIRD PARTY PAYMENTS,PRIVATE CONTRACTOR,Revenue,,,,,,, 
Walsall Council,http://opendatacommunities.org/id/metropolitan-district-council/walsall,WC119-200,31/10/2020,ADULT SOCIAL CARE,ACCORD HOUSING ASSOCIATION LTD#135,21/10/2020,719.60,73507-Domiciliary Care,THIRD PARTY PAYMENTS,PRIVATE CONTRACTOR,Revenue,,,,,,, 
Walsall Council,http://opendatacommunities.org/id/metropolitan-district-council/walsall,WC119-201,31/10/2020,ADULT SOCIAL CARE,ACCORD HOUSING ASSOCIATION LTD#135,21/10/2020,601.43,73507-Domiciliary Care,THIRD PARTY PAYMENTS,PRIVATE CONTRACTOR,Revenue,,,,,,,Y
Walsall Council,http://opendatacommunities.org/id/metropolitan-district-council/walsall,WC119-202,31/10/2020,ADULT SOCIAL CARE,ACCORD HOUSING ASSOCIATION LTD#135,21/10/2020,"11,933.27",63102-Consultant Fees,SUPPLIES & SERVICES,SERVICES,Revenue,,,,,,, 
Walsall Council,http://opendatacommunities.org/id/metropolitan-district-council/walsall,WC119-203,31/10/2020,ADULT SOCIAL CARE,ACCORD HOUSING ASSOCIATION LTD#135,22/10/2020,"6,503.40",73500-Residential,THIRD PARTY PAYMENTS,PRIVATE CONTRACTOR,Revenue,,,,,,, 
Walsall Council,http://opendatacommunities.org/id/metropolitan-district-council/walsall,WC119-204,31/10/2020,ADULT SOCIAL CARE,ACCORD HOUSING ASSOCIATION LTD#135,22/10/2020,"6,503.40",73500-Residential,THIRD PARTY PAYMENTS,PRIVATE CONTRACTOR,Revenue,,,,,,, 
Walsall Council,http://opendatacommunities.org/id/metropolitan-district-council/walsall,WC119-205,31/10/2020,ADULT SOCIAL CARE,ACCORD HOUSING ASSOCIATION LTD#135,22/10/2020,"5,807.56",73500-Residential,THIRD PARTY PAYMENTS,PRIVATE CONTRACTOR,Revenue,,,,,,, 
Walsall Council,http://opendatacommunities.org/id/metropolitan-district-council/walsall,WC119-206,31/10/2020,CHILDRENS,ACCORD HOUSING ASSOCIATION LTD#135,27/10/2020,396.59,43000-Rents,PREMISES,RENTS,Revenue,,,,,,, 
Walsall Council,http://opendatacommunities.org/id/metropolitan-district-council/walsall,WC119-207,31/10/2020,CHILDRENS,ACCORD HOUSING ASSOCIATION LTD#135,27/10/2020,"1,835.10",43000-Rents,PREMISES,RENTS,Revenue,,,,,,, 
Walsall Council,http://opendatacommunities.org/id/metropolitan-district-council/walsall,WC119-208,31/10/2020,CHILDRENS,ACCORD HOUSING ASSOCIATION LTD#135,27/10/2020,"2,135.65",43000-Rents,PREMISES,RENTS,Revenue,,,,,,, 
Walsall Council,http://opendatacommunities.org/id/metropolitan-district-council/walsall,WC119-209,31/10/2020,CHILDRENS,ACCORD HOUSING ASSOCIATION LTD#135,27/10/2020,"2,389.97",43000-Rents,PREMISES,RENTS,Revenue,,,,,,, 
Walsall Council,http://opendatacommunities.org/id/metropolitan-district-council/walsall,WC119-210,31/10/2020,CHILDRENS,ACCORD HOUSING ASSOCIATION LTD#135,27/10/2020,516.50,43000-Rents,PREMISES,RENTS,Revenue,,,,,,, 
Walsall Council,http://opendatacommunities.org/id/metropolitan-district-council/walsall,WC119-211,31/10/2020,ADULT SOCIAL CARE,ACCORD HOUSING ASSOCIATION LTD#135,29/10/2020,"7,437.50",63102-Consultant Fees,SUPPLIES & SERVICES,SERVICES,Revenue,,,,,,, 
Walsall Council,http://opendatacommunities.org/id/metropolitan-district-council/walsall,WC119-212,31/10/2020,ADULT SOCIAL CARE,ACE CARE AGENCY,15/10/2020,"5,750.00",63000-Professional Fees & Services,SUPPLIES & SERVICES,SERVICES,Revenue,,,,,,, 
Walsall Council,http://opendatacommunities.org/id/metropolitan-district-council/walsall,WC119-213,31/10/2020,CHILDRENS,ACE CARS & MINIBUSES LTD,08/10/2020,"1,857.25",52000-Hire of Vehicle with Driver,Home To School Transport,TRANSPORT,Revenue,,,,,,, 
Walsall Council,http://opendatacommunities.org/id/metropolitan-district-council/walsall,WC119-214,31/10/2020,CHILDRENS,ACE CARS & MINIBUSES LTD,08/10/2020,"1,857.25",52000-Hire of Vehicle with Driver,Home To School Transport,TRANSPORT,Revenue,,,,,,, 
Walsall Council,http://opendatacommunities.org/id/metropolitan-district-council/walsall,WC119-215,31/10/2020,CHILDRENS,ACE CARS & MINIBUSES LTD,08/10/2020,"1,870.00",52000-Hire of Vehicle with Driver,Home To School Transport,TRANSPORT,Revenue,,,,,,, 
Walsall Council,http://opendatacommunities.org/id/metropolitan-district-council/walsall,WC119-216,31/10/2020,CHILDRENS,ACE CARS & MINIBUSES LTD,08/10/2020,"1,564.00",52000-Hire of Vehicle with Driver,Home To School Transport,TRANSPORT,Revenue,,,,,,, 
Walsall Council,http://opendatacommunities.org/id/metropolitan-district-council/walsall,WC119-217,31/10/2020,CHILDRENS,ACE CARS & MINIBUSES LTD,08/10/2020,"2,626.50",52000-Hire of Vehicle with Driver,Home To School Transport,TRANSPORT,Revenue,,,,,,, 
Walsall Council,http://opendatacommunities.org/id/metropolitan-district-council/walsall,WC119-218,31/10/2020,CHILDRENS,ACE CARS & MINIBUSES LTD,08/10/2020,"2,541.50",52000-Hire of Vehicle with Driver,Home To School Transport,TRANSPORT,Revenue,,,,,,, 
Walsall Council,http://opendatacommunities.org/id/metropolitan-district-council/walsall,WC119-219,31/10/2020,CHILDRENS,ACE CARS & MINIBUSES LTD,08/10/2020,408.00,52000-Hire of Vehicle with Driver,Home To School Transport,TRANSPORT,Revenue,,,,,,, 
Walsall Council,http://opendatacommunities.org/id/metropolitan-district-council/walsall,WC119-220,31/10/2020,CHILDRENS,ACE CARS & MINIBUSES LTD,08/10/2020,748.00,52000-Hire of Vehicle with Driver,Home To School Transport,TRANSPORT,Revenue,,,,,,, 
Walsall Council,http://opendatacommunities.org/id/metropolitan-district-council/walsall,WC119-221,31/10/2020,CHILDRENS,ACE CARS & MINIBUSES LTD,08/10/2020,"3,306.50",52000-Hire of Vehicle with Driver,Home To School Transport,TRANSPORT,Revenue,,,,,,, 
Walsall Council,http://opendatacommunities.org/id/metropolitan-district-council/walsall,WC119-222,31/10/2020,CHILDRENS,ACE CARS & MINIBUSES LTD,08/10/2020,750.00,52000-Hire of Vehicle with Driver,Home To School Transport,TRANSPORT,Revenue,,,,,,, 
Walsall Council,http://opendatacommunities.org/id/metropolitan-district-council/walsall,WC119-223,31/10/2020,CHILDRENS,ACE CARS & MINIBUSES LTD,08/10/2020,"2,813.50",52000-Hire of Vehicle with Driver,Home To School Transport,TRANSPORT,Revenue,,,,,,, 
Walsall Council,http://opendatacommunities.org/id/metropolitan-district-council/walsall,WC119-224,31/10/2020,CHILDRENS,ACE CARS & MINIBUSES LTD,08/10/2020,960.00,52000-Hire of Vehicle with Driver,Home To School Transport,TRANSPORT,Revenue,,,,,,, 
Walsall Council,http://opendatacommunities.org/id/metropolitan-district-council/walsall,WC119-225,31/10/2020,CHILDRENS,ACE CARS & MINIBUSES LTD,08/10/2020,"1,413.00",52000-Hire of Vehicle with Driver,Home To School Transport,TRANSPORT,Revenue,,,,,,, 
Walsall Council,http://opendatacommunities.org/id/metropolitan-district-council/walsall,WC119-226,31/10/2020,CHILDRENS,ACE CARS & MINIBUSES LTD,08/10/2020,"1,170.00",52000-Hire of Vehicle with Driver,Home To School Transport,TRANSPORT,Revenue,,,,,,, 
Walsall Council,http://opendatacommunities.org/id/metropolitan-district-council/walsall,WC119-227,31/10/2020,CHILDRENS,ACE CARS & MINIBUSES LTD,08/10/2020,"2,346.00",52000-Hire of Vehicle with Driver,Home To School Transport,TRANSPORT,Revenue,,,,,,, 
Walsall Council,http://opendatacommunities.org/id/metropolitan-district-council/walsall,WC119-228,31/10/2020,CHILDRENS,ACE CARS & MINIBUSES LTD,08/10/2020,"1,759.50",52000-Hire of Vehicle with Driver,Home To School Transport,TRANSPORT,Revenue,,,,,,, 
Walsall Council,http://opendatacommunities.org/id/metropolitan-district-council/walsall,WC119-229,31/10/2020,CHILDRENS,ACE CARS & MINIBUSES LTD,08/10/2020,"2,150.50",52000-Hire of Vehicle with Driver,Home To School Transport,TRANSPORT,Revenue,,,,,,, 
Walsall Council,http://opendatacommunities.org/id/metropolitan-district-council/walsall,WC119-230,31/10/2020,CHILDRENS,ACE CARS & MINIBUSES LTD,08/10/2020,"2,337.50",52000-Hire of Vehicle with Driver,Home To School Transport,TRANSPORT,Revenue,,,,,,, 
Walsall Council,http://opendatacommunities.org/id/metropolitan-district-council/walsall,WC119-231,31/10/2020,CHILDRENS,ACE CARS & MINIBUSES LTD,08/10/2020,"1,759.50",52000-Hire of Vehicle with Driver,Home To School Transport,TRANSPORT,Revenue,,,,,,, 
Walsall Council,http://opendatacommunities.org/id/metropolitan-district-council/walsall,WC119-232,31/10/2020,CHILDRENS,ACE CARS & MINIBUSES LTD,08/10/2020,"2,624.70",52000-Hire of Vehicle with Driver,Home To School Transport,TRANSPORT,Revenue,,,,,,, 
Walsall Council,http://opendatacommunities.org/id/metropolitan-district-council/walsall,WC119-233,31/10/2020,CHILDRENS,ACE CARS & MINIBUSES LTD,08/10/2020,"1,105.00",52000-Hire of Vehicle with Driver,Home To School Transport,TRANSPORT,Revenue,,,,,,, 
Walsall Council,http://opendatacommunities.org/id/metropolitan-district-council/walsall,WC119-234,31/10/2020,CHILDRENS,ACE CARS & MINIBUSES LTD,08/10/2020,"2,812.50",52000-Hire of Vehicle with Driver,Home To School Transport,TRANSPORT,Revenue,,,,,,, 
Walsall Council,http://opendatacommunities.org/id/metropolitan-district-council/walsall,WC119-235,31/10/2020,CHILDRENS,ACE CARS & MINIBUSES LTD,08/10/2020,"2,179.85",52000-Hire of Vehicle with Driver,Home To School Transport,TRANSPORT,Revenue,,,,,,, 
Walsall Council,http://opendatacommunities.org/id/metropolitan-district-council/walsall,WC119-236,31/10/2020,CHILDRENS,ACE CARS & MINIBUSES LTD,08/10/2020,"2,626.50",52000-Hire of Vehicle with Driver,Home To School Transport,TRANSPORT,Revenue,,,,,,, 
Walsall Council,http://opendatacommunities.org/id/metropolitan-district-council/walsall,WC119-237,31/10/2020,CHILDRENS,ACE CARS & MINIBUSES LTD,08/10/2020,"1,113.50",52000-Hire of Vehicle with Driver,Home To School Transport,TRANSPORT,Revenue,,,,,,, 
Walsall Council,http://opendatacommunities.org/id/metropolitan-district-council/walsall,WC119-238,31/10/2020,CHILDRENS,ACE CARS & MINIBUSES LTD,08/10/2020,"1,650.00",52000-Hire of Vehicle with Driver,Home To School Transport,TRANSPORT,Revenue,,,,,,, 
Walsall Council,http://opendatacommunities.org/id/metropolitan-district-council/walsall,WC119-239,31/10/2020,CHILDRENS,ACE CARS & MINIBUSES LTD,08/10/2020,"1,955.00",52000-Hire of Vehicle with Driver,Home To School Transport,TRANSPORT,Revenue,,,,,,,Y
Walsall Council,http://opendatacommunities.org/id/metropolitan-district-council/walsall,WC119-240,31/10/2020,CHILDRENS,ACE CARS & MINIBUSES LTD,08/10/2020,"2,150.50",52000-Hire of Vehicle with Driver,Home To School Transport,TRANSPORT,Revenue,,,,,,,Y
Walsall Council,http://opendatacommunities.org/id/metropolitan-district-council/walsall,WC119-241,31/10/2020,CHILDRENS,ACE CARS & MINIBUSES LTD,08/10/2020,"1,320.00",52000-Hire of Vehicle with Driver,Home To School Transport,TRANSPORT,Revenue,,,,,,,Y
Walsall Council,http://opendatacommunities.org/id/metropolitan-district-council/walsall,WC119-242,31/10/2020,CHILDRENS,ACE CARS & MINIBUSES LTD,12/10/2020,"4,042.00",52000-Hire of Vehicle with Driver,TRANSPORT,DIRECT TRANSPORT COSTS,Revenue,,,,,,,Y
Walsall Council,http://opendatacommunities.org/id/metropolitan-district-council/walsall,WC119-243,31/10/2020,ADULT SOCIAL CARE,ACEPAY LTD (COTTAGE NUR HOME),22/10/2020,-256.71,73502-Nursing,THIRD PARTY PAYMENTS,PRIVATE CONTRACTOR,Revenue,,,,,,, 
Walsall Council,http://opendatacommunities.org/id/metropolitan-district-council/walsall,WC119-244,31/10/2020,ADULT SOCIAL CARE,ACEPAY LTD (COTTAGE NUR HOME),22/10/2020,"2,396.00",73502-Nursing,THIRD PARTY PAYMENTS,PRIVATE CONTRACTOR,Revenue,,,,,,, 
Walsall Council,http://opendatacommunities.org/id/metropolitan-district-council/walsall,WC119-245,31/10/2020,ADULT SOCIAL CARE,ACEPAY LTD (COTTAGE NUR HOME),22/10/2020,"2,396.00",73502-Nursing,THIRD PARTY PAYMENTS,PRIVATE CONTRACTOR,Revenue,,,,,,, 
Walsall Council,http://opendatacommunities.org/id/metropolitan-district-council/walsall,WC119-246,31/10/2020,ADULT SOCIAL CARE,ACEPAY LTD (COTTAGE NUR HOME),22/10/2020,"2,396.00",73502-Nursing,THIRD PARTY PAYMENTS,PRIVATE CONTRACTOR,Revenue,,,,,,, 
Walsall Council,http://opendatacommunities.org/id/metropolitan-district-council/walsall,WC119-247,31/10/2020,ADULT SOCIAL CARE,ACEPAY LTD (COTTAGE NUR HOME),22/10/2020,"2,396.00",73502-Nursing,THIRD PARTY PAYMENTS,PRIVATE CONTRACTOR,Revenue,,,,,,, 
Walsall Council,http://opendatacommunities.org/id/metropolitan-district-council/walsall,WC119-248,31/10/2020,ADULT SOCIAL CARE,ACEPAY LTD (COTTAGE NUR HOME),22/10/2020,"2,396.00",73502-Nursing,THIRD PARTY PAYMENTS,PRIVATE CONTRACTOR,Revenue,,,,,,, 
Walsall Council,http://opendatacommunities.org/id/metropolitan-district-council/walsall,WC119-249,31/10/2020,ADULT SOCIAL CARE,ACEPAY LTD (COTTAGE NUR HOME),22/10/2020,"2,396.00",73502-Nursing,THIRD PARTY PAYMENTS,PRIVATE CONTRACTOR,Revenue,,,,,,, 
Walsall Council,http://opendatacommunities.org/id/metropolitan-district-council/walsall,WC119-250,31/10/2020,ADULT SOCIAL CARE,ACEPAY LTD (COTTAGE NUR HOME),22/10/2020,"1,112.57",73502-Nursing,THIRD PARTY PAYMENTS,PRIVATE CONTRACTOR,Revenue,,,,,,, 
Walsall Council,http://opendatacommunities.org/id/metropolitan-district-council/walsall,WC119-251,31/10/2020,ADULT SOCIAL CARE,ACEPAY LTD (COTTAGE NUR HOME),22/10/2020,"2,044.00",73500-Residential,THIRD PARTY PAYMENTS,PRIVATE CONTRACTOR,Revenue,,,,,,, 
Walsall Council,http://opendatacommunities.org/id/metropolitan-district-council/walsall,WC119-252,31/10/2020,ADULT SOCIAL CARE,ACEPAY LTD (COTTAGE NUR HOME),22/10/2020,"2,396.00",73502-Nursing,THIRD PARTY PAYMENTS,PRIVATE CONTRACTOR,Revenue,,,,,,, 
Walsall Council,http://opendatacommunities.org/id/metropolitan-district-council/walsall,WC119-253,31/10/2020,ADULT SOCIAL CARE,ACEPAY LTD (COTTAGE NUR HOME),22/10/2020,"2,396.00",73502-Nursing,THIRD PARTY PAYMENTS,PRIVATE CONTRACTOR,Revenue,,,,,,, 
Walsall Council,http://opendatacommunities.org/id/metropolitan-district-council/walsall,WC119-254,31/10/2020,ADULT SOCIAL CARE,ACEPAY LTD (COTTAGE NUR HOME),22/10/2020,"1,112.43",73502-Nursing,THIRD PARTY PAYMENTS,PRIVATE CONTRACTOR,Revenue,,,,,,, 
Walsall Council,http://opendatacommunities.org/id/metropolitan-district-council/walsall,WC119-255,31/10/2020,ADULT SOCIAL CARE,ACEPAY LTD (COTTAGE NUR HOME),22/10/2020,"2,396.00",73502-Nursing,THIRD PARTY PAYMENTS,PRIVATE CONTRACTOR,Revenue,,,,,,, 
Walsall Council,http://opendatacommunities.org/id/metropolitan-district-council/walsall,WC119-256,31/10/2020,ADULT SOCIAL CARE,ACEPAY LTD (COTTAGE NUR HOME),22/10/2020,"2,308.00",73501-Residential EMI,THIRD PARTY PAYMENTS,PRIVATE CONTRACTOR,Revenue,,,,,,, 
Walsall Council,http://opendatacommunities.org/id/metropolitan-district-council/walsall,WC119-257,31/10/2020,ADULT SOCIAL CARE,ACEPAY LTD (COTTAGE NUR HOME),22/10/2020,"2,396.00",73502-Nursing,THIRD PARTY PAYMENTS,PRIVATE CONTRACTOR,Revenue,,,,,,, 
Walsall Council,http://opendatacommunities.org/id/metropolitan-district-council/walsall,WC119-258,31/10/2020,ADULT SOCIAL CARE,ACEPAY LTD (COTTAGE NUR HOME),22/10/2020,"2,396.00",73502-Nursing,THIRD PARTY PAYMENTS,PRIVATE CONTRACTOR,Revenue,,,,,,, 
Walsall Council,http://opendatacommunities.org/id/metropolitan-district-council/walsall,WC119-259,31/10/2020,ADULT SOCIAL CARE,ACEPAY LTD (COTTAGE NUR HOME),22/10/2020,"2,396.00",73502-Nursing,THIRD PARTY PAYMENTS,PRIVATE CONTRACTOR,Revenue,,,,,,, 
Walsall Council,http://opendatacommunities.org/id/metropolitan-district-council/walsall,WC119-260,31/10/2020,ADULT SOCIAL CARE,ACEPAY LTD (COTTAGE NUR HOME),22/10/2020,"2,396.00",73502-Nursing,THIRD PARTY PAYMENTS,PRIVATE CONTRACTOR,Revenue,,,,,,, 
Walsall Council,http://opendatacommunities.org/id/metropolitan-district-council/walsall,WC119-261,31/10/2020,ADULT SOCIAL CARE,ACEPAY LTD (COTTAGE NUR HOME),22/10/2020,"2,396.00",73502-Nursing,THIRD PARTY PAYMENTS,PRIVATE CONTRACTOR,Revenue,,,,,,, 
Walsall Council,http://opendatacommunities.org/id/metropolitan-district-council/walsall,WC119-262,31/10/2020,CHILDRENS,ACORN CARE & EDUCATION LTD (SALES),16/10/2020,"14,053.34",63000-Professional Fees & Services,SUPPLIES & SERVICES,SERVICES,Revenue,,,,,,, 
Walsall Council,http://opendatacommunities.org/id/metropolitan-district-council/walsall,WC119-263,31/10/2020,CHILDRENS,ACORN CARE & EDUCATION LTD (SALES),16/10/2020,"16,166.66",63000-Professional Fees & Services,SUPPLIES & SERVICES,SERVICES,Revenue,,,,,,, 
Walsall Council,http://opendatacommunities.org/id/metropolitan-district-council/walsall,WC119-264,31/10/2020,CHILDRENS,ACORN CARE & EDUCATION LTD (SALES),16/10/2020,"6,333.34",63000-Professional Fees & Services,SUPPLIES & SERVICES,SERVICES,Revenue,,,,,,, 
Walsall Council,http://opendatacommunities.org/id/metropolitan-district-council/walsall,WC119-265,31/10/2020,CHILDRENS,ACORN CARE & EDUCATION LTD (SALES),26/10/2020,"17,302.00",63000-Professional Fees & Services,SUPPLIES & SERVICES,SERVICES,Revenue,,,,,,, 
Walsall Council,http://opendatacommunities.org/id/metropolitan-district-council/walsall,WC119-266,31/10/2020,CHILDRENS,ACORN FOSTERING SERVICES LTD,02/10/2020,"3,380.00",74037-Independent Foster Care-Oth Agency Provision,External Foster Care Provision,THIRD PARTY PAYMENTS,Revenue,,,,,,, 
Walsall Council,http://opendatacommunities.org/id/metropolitan-district-council/walsall,WC119-267,31/10/2020,CHILDRENS,ACORN FOSTERING SERVICES LTD,30/10/2020,"3,380.00",74037-Independent Foster Care-Oth Agency Provision,THIRD PARTY PAYMENTS,PRIVATE CONTRACTOR,Revenue,,,,,,, 
Walsall Council,http://opendatacommunities.org/id/metropolitan-district-council/walsall,WC119-268,31/10/2020,RESOURCES AND TRANSFORMATION,ACORNS CHILDRENS HOSPICE TRUST,27/10/2020,"2,550.00",01045-Private Grants,CAPITAL,CAPITAL GRANTS,Captial,,,,,,, 
Walsall Council,http://opendatacommunities.org/id/metropolitan-district-council/walsall,WC119-269,31/10/2020,CHILDRENS,ACPAS LIMITED,13/10/2020,697.50,63000-Professional Fees & Services,SUPPLIES & SERVICES,SERVICES,Revenue,,,,,,, 
Walsall Council,http://opendatacommunities.org/id/metropolitan-district-council/walsall,WC119-270,31/10/2020,CHILDRENS,ACPAS LIMITED,14/10/2020,697.50,63000-Professional Fees & Services,SUPPLIES & SERVICES,SERVICES,Revenue,,,,,,, 
Walsall Council,http://opendatacommunities.org/id/metropolitan-district-council/walsall,WC119-271,31/10/2020,CHILDRENS,ACPAS LIMITED,28/10/2020,842.40,63000-Professional Fees & Services,SUPPLIES & SERVICES,SERVICES,Revenue,,,,,,, 
Walsall Council,http://opendatacommunities.org/id/metropolitan-district-council/walsall,WC119-272,31/10/2020,CHILDRENS,ACPAS LIMITED,28/10/2020,842.40,63000-Professional Fees & Services,SUPPLIES & SERVICES,SERVICES,Revenue,,,,,,, 
Walsall Council,http://opendatacommunities.org/id/metropolitan-district-council/walsall,WC119-273,31/10/2020,ECONOMY & ENVIRONMENT,ACTION GRAPHICS & DISPLAY LTD,26/10/2020,514.00,60000-Purchase of Furniture & Equipment,SUPPLIES & SERVICES,EQUIPMENT FURNITURE & MATERIALS,Revenue,,,,,,, 
Walsall Council,http://opendatacommunities.org/id/metropolitan-district-council/walsall,WC119-274,31/10/2020,CHILDRENS,ACTIVE CARE SOLUTIONS LTD,02/10/2020,"3,139.52",74037-Independent Foster Care-Oth Agency Provision,External Foster Care Provision,THIRD PARTY PAYMENTS,Revenue,,,,,,, 
Walsall Council,http://opendatacommunities.org/id/metropolitan-district-council/walsall,WC119-275,31/10/2020,CHILDRENS,ACTIVE CARE SOLUTIONS LTD,02/10/2020,"2,596.36",74037-Independent Foster Care-Oth Agency Provision,External Foster Care Provision,THIRD PARTY PAYMENTS,Revenue,,,,,,, 
Walsall Council,http://opendatacommunities.org/id/metropolitan-district-council/walsall,WC119-276,31/10/2020,CHILDRENS,ACTIVE CARE SOLUTIONS LTD,30/10/2020,"3,139.52",74037-Independent Foster Care-Oth Agency Provision,THIRD PARTY PAYMENTS,PRIVATE CONTRACTOR,Revenue,,,,,,, 
Walsall Council,http://opendatacommunities.org/id/metropolitan-district-council/walsall,WC119-277,31/10/2020,CHILDRENS,ACTIVE CARE SOLUTIONS LTD,30/10/2020,"2,596.36",74037-Independent Foster Care-Oth Agency Provision,THIRD PARTY PAYMENTS,PRIVATE CONTRACTOR,Revenue,,,,,,, 
Walsall Council,http://opendatacommunities.org/id/metropolitan-district-council/walsall,WC119-278,31/10/2020,CHILDRENS,ACTIVE CARE SOLUTIONS LTD,30/10/2020,-768.87,74037-Independent Foster Care-Oth Agency Provision,THIRD PARTY PAYMENTS,PRIVATE CONTRACTOR,Revenue,,,,,,, 
Walsall Council,http://opendatacommunities.org/id/metropolitan-district-council/walsall,WC119-279,31/10/2020,CHILDRENS,ACTIVE CARE SOLUTIONS LTD,30/10/2020,-262.54,74037-Independent Foster Care-Oth Agency Provision,THIRD PARTY PAYMENTS,PRIVATE CONTRACTOR,Revenue,,,,,,, 
Walsall Council,http://opendatacommunities.org/id/metropolitan-district-council/walsall,WC119-280,31/10/2020,ADULT SOCIAL CARE,ADVANCE HEALTH CARE (UK) LTD,01/10/2020,485.73,73025-Professional Services-Priv Contractor & Other Agencies,Intermediate Care Service,THIRD PARTY PAYMENTS,Revenue,,,,,,, 
Walsall Council,http://opendatacommunities.org/id/metropolitan-district-council/walsall,WC119-281,31/10/2020,ADULT SOCIAL CARE,ADVANCE HEALTH CARE (UK) LTD,09/10/2020,485.73,73507-Domiciliary Care,Social Support,THIRD PARTY PAYMENTS,Revenue,,,,,,, 
Walsall Council,http://opendatacommunities.org/id/metropolitan-district-council/walsall,WC119-282,31/10/2020,ADULT SOCIAL CARE,ADVANCE HEALTH CARE (UK) LTD,09/10/2020,359.80,73507-Domiciliary Care,Physical Support,THIRD PARTY PAYMENTS,Revenue,,,,,,, 
Walsall Council,http://opendatacommunities.org/id/metropolitan-district-council/walsall,WC119-283,31/10/2020,ADULT SOCIAL CARE,ADVANCE HEALTH CARE (UK) LTD,09/10/2020,431.76,73507-Domiciliary Care,Physical Support,THIRD PARTY PAYMENTS,Revenue,,,,,,, 
Walsall Council,http://opendatacommunities.org/id/metropolitan-district-council/walsall,WC119-284,31/10/2020,ADULT SOCIAL CARE,ADVANCE HEALTH CARE (UK) LTD,09/10/2020,485.73,73507-Domiciliary Care,Physical Support,THIRD PARTY PAYMENTS,Revenue,,,,,,, 
Walsall Council,http://opendatacommunities.org/id/metropolitan-district-council/walsall,WC119-285,31/10/2020,ADULT SOCIAL CARE,ADVANCE HEALTH CARE (UK) LTD,09/10/2020,462.60,73507-Domiciliary Care,Physical Support,THIRD PARTY PAYMENTS,Revenue,,,,,,,Y
Walsall Council,http://opendatacommunities.org/id/metropolitan-district-council/walsall,WC119-286,31/10/2020,ADULT SOCIAL CARE,ADVANCE HEALTH CARE (UK) LTD,09/10/2020,485.73,73507-Domiciliary Care,Physical Support,THIRD PARTY PAYMENTS,Revenue,,,,,,, 
Walsall Council,http://opendatacommunities.org/id/metropolitan-district-council/walsall,WC119-287,31/10/2020,ADULT SOCIAL CARE,ADVANCE HEALTH CARE (UK) LTD,09/10/2020,524.28,73507-Domiciliary Care,Physical Support,THIRD PARTY PAYMENTS,Revenue,,,,,,, 
Walsall Council,http://opendatacommunities.org/id/metropolitan-district-council/walsall,WC119-288,31/10/2020,ADULT SOCIAL CARE,ADVANCE HEALTH CARE (UK) LTD,09/10/2020,269.85,73507-Domiciliary Care,Physical Support,THIRD PARTY PAYMENTS,Revenue,,,,,,, 
Walsall Council,http://opendatacommunities.org/id/metropolitan-district-council/walsall,WC119-289,31/10/2020,ADULT SOCIAL CARE,ADVANCE HEALTH CARE (UK) LTD,09/10/2020,404.81,73507-Domiciliary Care,Physical Support,THIRD PARTY PAYMENTS,Revenue,,,,,,, 
Walsall Council,http://opendatacommunities.org/id/metropolitan-district-council/walsall,WC119-290,31/10/2020,ADULT SOCIAL CARE,ADVANCE HEALTH CARE (UK) LTD,09/10/2020,431.76,73507-Domiciliary Care,Physical Support,THIRD PARTY PAYMENTS,Revenue,,,,,,, 
Walsall Council,http://opendatacommunities.org/id/metropolitan-district-council/walsall,WC119-291,31/10/2020,ADULT SOCIAL CARE,ADVANCE HEALTH CARE (UK) LTD,09/10/2020,485.73,73507-Domiciliary Care,Physical Support,THIRD PARTY PAYMENTS,Revenue,,,,,,, 
Walsall Council,http://opendatacommunities.org/id/metropolitan-district-council/walsall,WC119-292,31/10/2020,ADULT SOCIAL CARE,ADVANCE HEALTH CARE (UK) LTD,09/10/2020,485.73,73507-Domiciliary Care,Physical Support,THIRD PARTY PAYMENTS,Revenue,,,,,,,Y
Walsall Council,http://opendatacommunities.org/id/metropolitan-district-council/walsall,WC119-293,31/10/2020,ADULT SOCIAL CARE,ADVANCE HEALTH CARE (UK) LTD,09/10/2020,323.82,73507-Domiciliary Care,Physical Support,THIRD PARTY PAYMENTS,Revenue,,,,,,, 
Walsall Council,http://opendatacommunities.org/id/metropolitan-district-council/walsall,WC119-294,31/10/2020,ADULT SOCIAL CARE,ADVANCE HEALTH CARE (UK) LTD,09/10/2020,788.99,73507-Domiciliary Care,Physical Support,THIRD PARTY PAYMENTS,Revenue,,,,,,, 
Walsall Council,http://opendatacommunities.org/id/metropolitan-district-council/walsall,WC119-295,31/10/2020,ADULT SOCIAL CARE,ADVANCE HEALTH CARE (UK) LTD,09/10/2020,701.61,73507-Domiciliary Care,Physical Support,THIRD PARTY PAYMENTS,Revenue,,,,,,, 
Walsall Council,http://opendatacommunities.org/id/metropolitan-district-council/walsall,WC119-296,31/10/2020,ADULT SOCIAL CARE,ADVANCE HEALTH CARE (UK) LTD,09/10/2020,593.88,73507-Domiciliary Care,Physical Support,THIRD PARTY PAYMENTS,Revenue,,,,,,, 
Walsall Council,http://opendatacommunities.org/id/metropolitan-district-council/walsall,WC119-297,31/10/2020,ADULT SOCIAL CARE,ADVANCE HEALTH CARE (UK) LTD,09/10/2020,485.73,73507-Domiciliary Care,Physical Support,THIRD PARTY PAYMENTS,Revenue,,,,,,, 
Walsall Council,http://opendatacommunities.org/id/metropolitan-district-council/walsall,WC119-298,31/10/2020,ADULT SOCIAL CARE,ADVANCE HEALTH CARE (UK) LTD,09/10/2020,863.52,73507-Domiciliary Care,Social Support,THIRD PARTY PAYMENTS,Revenue,,,,,,, 
Walsall Council,http://opendatacommunities.org/id/metropolitan-district-council/walsall,WC119-299,31/10/2020,ADULT SOCIAL CARE,ADVANCE HEALTH CARE (UK) LTD,09/10/2020,323.82,73507-Domiciliary Care,Social Support,THIRD PARTY PAYMENTS,Revenue,,,,,,, 
Walsall Council,http://opendatacommunities.org/id/metropolitan-district-council/walsall,WC119-300,31/10/2020,ADULT SOCIAL CARE,ADVANCE HEALTH CARE (UK) LTD,09/10/2020,431.76,73507-Domiciliary Care,Physical Support,THIRD PARTY PAYMENTS,Revenue,,,,,,, 
Walsall Council,http://opendatacommunities.org/id/metropolitan-district-council/walsall,WC119-301,31/10/2020,ADULT SOCIAL CARE,ADVANCE HEALTH CARE (UK) LTD,09/10/2020,431.76,73507-Domiciliary Care,Social Support,THIRD PARTY PAYMENTS,Revenue,,,,,,, 
Walsall Council,http://opendatacommunities.org/id/metropolitan-district-council/walsall,WC119-302,31/10/2020,ADULT SOCIAL CARE,ADVANCE HEALTH CARE (UK) LTD,09/10/2020,377.79,73507-Domiciliary Care,Physical Support,THIRD PARTY PAYMENTS,Revenue,,,,,,, 
Walsall Council,http://opendatacommunities.org/id/metropolitan-district-council/walsall,WC119-303,31/10/2020,ADULT SOCIAL CARE,ADVANCE HEALTH CARE (UK) LTD,09/10/2020,431.76,73507-Domiciliary Care,Physical Support,THIRD PARTY PAYMENTS,Revenue,,,,,,, 
Walsall Council,http://opendatacommunities.org/id/metropolitan-district-council/walsall,WC119-304,31/10/2020,ADULT SOCIAL CARE,ADVANCE HEALTH CARE (UK) LTD,09/10/2020,485.73,73507-Domiciliary Care,Social Support,THIRD PARTY PAYMENTS,Revenue,,,,,,, 
Walsall Council,http://opendatacommunities.org/id/metropolitan-district-council/walsall,WC119-305,31/10/2020,ADULT SOCIAL CARE,ADVANCE HEALTH CARE (UK) LTD,09/10/2020,431.76,73507-Domiciliary Care,Physical Support,THIRD PARTY PAYMENTS,Revenue,,,,,,, 
Walsall Council,http://opendatacommunities.org/id/metropolitan-district-council/walsall,WC119-306,31/10/2020,ADULT SOCIAL CARE,ADVANCE HEALTH CARE (UK) LTD,09/10/2020,377.79,73507-Domiciliary Care,Physical Support,THIRD PARTY PAYMENTS,Revenue,,,,,,, 
Walsall Council,http://opendatacommunities.org/id/metropolitan-district-council/walsall,WC119-307,31/10/2020,ADULT SOCIAL CARE,ADVANCE HEALTH CARE (UK) LTD,09/10/2020,377.79,73507-Domiciliary Care,Physical Support,THIRD PARTY PAYMENTS,Revenue,,,,,,, 
Walsall Council,http://opendatacommunities.org/id/metropolitan-district-council/walsall,WC119-308,31/10/2020,ADULT SOCIAL CARE,ADVANCE HEALTH CARE (UK) LTD,09/10/2020,485.73,73507-Domiciliary Care,Physical Support,THIRD PARTY PAYMENTS,Revenue,,,,,,, 
Walsall Council,http://opendatacommunities.org/id/metropolitan-district-council/walsall,WC119-309,31/10/2020,ADULT SOCIAL CARE,ADVANCE HEALTH CARE (UK) LTD,09/10/2020,-308.40,73507-Domiciliary Care,Physical Support,THIRD PARTY PAYMENTS,Revenue,,,,,,, 
Walsall Council,http://opendatacommunities.org/id/metropolitan-district-council/walsall,WC119-310,31/10/2020,ADULT SOCIAL CARE,ADVANCE HEALTH CARE (UK) LTD,09/10/2020,485.73,73507-Domiciliary Care,Physical Support,THIRD PARTY PAYMENTS,Revenue,,,,,,, 
Walsall Council,http://opendatacommunities.org/id/metropolitan-district-council/walsall,WC119-311,31/10/2020,ADULT SOCIAL CARE,ADVANCE HEALTH CARE (UK) LTD,09/10/2020,824.97,73507-Domiciliary Care,Physical Support,THIRD PARTY PAYMENTS,Revenue,,,,,,, 
Walsall Council,http://opendatacommunities.org/id/metropolitan-district-council/walsall,WC119-312,31/10/2020,ADULT SOCIAL CARE,ADVANCE HEALTH CARE (UK) LTD,09/10/2020,485.73,73507-Domiciliary Care,Physical Support,THIRD PARTY PAYMENTS,Revenue,,,,,,, 
Walsall Council,http://opendatacommunities.org/id/metropolitan-district-council/walsall,WC119-313,31/10/2020,ADULT SOCIAL CARE,ADVANCE HEALTH CARE (UK) LTD,09/10/2020,485.73,73507-Domiciliary Care,Physical Support,THIRD PARTY PAYMENTS,Revenue,,,,,,, 
Walsall Council,http://opendatacommunities.org/id/metropolitan-district-council/walsall,WC119-314,31/10/2020,ADULT SOCIAL CARE,ADVANCE HEALTH CARE (UK) LTD,09/10/2020,269.92,73507-Domiciliary Care,Social Support,THIRD PARTY PAYMENTS,Revenue,,,,,,, 
Walsall Council,http://opendatacommunities.org/id/metropolitan-district-council/walsall,WC119-315,31/10/2020,ADULT SOCIAL CARE,ADVANCE HEALTH CARE (UK) LTD,09/10/2020,431.76,73507-Domiciliary Care,Physical Support,THIRD PARTY PAYMENTS,Revenue,,,,,,, 
Walsall Council,http://opendatacommunities.org/id/metropolitan-district-council/walsall,WC119-316,31/10/2020,ADULT SOCIAL CARE,ADVANCE HEALTH CARE (UK) LTD,09/10/2020,539.70,73507-Domiciliary Care,Physical Support,THIRD PARTY PAYMENTS,Revenue,,,,,,, 
Walsall Council,http://opendatacommunities.org/id/metropolitan-district-council/walsall,WC119-317,31/10/2020,ADULT SOCIAL CARE,ADVANCE HEALTH CARE (UK) LTD,09/10/2020,385.50,73507-Domiciliary Care,Physical Support,THIRD PARTY PAYMENTS,Revenue,,,,,,, 
Walsall Council,http://opendatacommunities.org/id/metropolitan-district-council/walsall,WC119-318,31/10/2020,ADULT SOCIAL CARE,ADVANCE HEALTH CARE (UK) LTD,09/10/2020,485.80,73507-Domiciliary Care,Physical Support,THIRD PARTY PAYMENTS,Revenue,,,,,,, 
Walsall Council,http://opendatacommunities.org/id/metropolitan-district-council/walsall,WC119-319,31/10/2020,ADULT SOCIAL CARE,ADVANCE HEALTH CARE (UK) LTD,09/10/2020,501.15,73507-Domiciliary Care,Physical Support,THIRD PARTY PAYMENTS,Revenue,,,,,,, 
Walsall Council,http://opendatacommunities.org/id/metropolitan-district-council/walsall,WC119-320,31/10/2020,ADULT SOCIAL CARE,ADVANCE HEALTH CARE (UK) LTD,09/10/2020,431.76,73507-Domiciliary Care,Physical Support,THIRD PARTY PAYMENTS,Revenue,,,,,,, 
Walsall Council,http://opendatacommunities.org/id/metropolitan-district-council/walsall,WC119-321,31/10/2020,ADULT SOCIAL CARE,ADVANCE HEALTH CARE (UK) LTD,09/10/2020,-431.76,73507-Domiciliary Care,Physical Support,THIRD PARTY PAYMENTS,Revenue,,,,,,, 
Walsall Council,http://opendatacommunities.org/id/metropolitan-district-council/walsall,WC119-322,31/10/2020,ADULT SOCIAL CARE,ADVANCE HEALTH CARE (UK) LTD,09/10/2020,462.60,73507-Domiciliary Care,Physical Support,THIRD PARTY PAYMENTS,Revenue,,,,,,, 
Walsall Council,http://opendatacommunities.org/id/metropolitan-district-council/walsall,WC119-323,31/10/2020,ADULT SOCIAL CARE,ADVANCE HEALTH CARE (UK) LTD,09/10/2020,323.82,73507-Domiciliary Care,Physical Support,THIRD PARTY PAYMENTS,Revenue,,,,,,, 
Walsall Council,http://opendatacommunities.org/id/metropolitan-district-council/walsall,WC119-324,31/10/2020,ADULT SOCIAL CARE,ADVANCE HEALTH CARE (UK) LTD,09/10/2020,485.73,73507-Domiciliary Care,Social Support,THIRD PARTY PAYMENTS,Revenue,,,,,,, 
Walsall Council,http://opendatacommunities.org/id/metropolitan-district-council/walsall,WC119-325,31/10/2020,ADULT SOCIAL CARE,ADVANCE HEALTH CARE (UK) LTD,09/10/2020,359.80,73507-Domiciliary Care,Physical Support,THIRD PARTY PAYMENTS,Revenue,,,,,,, 
Walsall Council,http://opendatacommunities.org/id/metropolitan-district-council/walsall,WC119-326,31/10/2020,ADULT SOCIAL CARE,ADVANCE HEALTH CARE (UK) LTD,09/10/2020,404.81,73507-Domiciliary Care,Physical Support,THIRD PARTY PAYMENTS,Revenue,,,,,,, 
Walsall Council,http://opendatacommunities.org/id/metropolitan-district-council/walsall,WC119-327,31/10/2020,ADULT SOCIAL CARE,ADVANCE HEALTH CARE (UK) LTD,09/10/2020,524.28,73507-Domiciliary Care,Physical Support,THIRD PARTY PAYMENTS,Revenue,,,,,,, 
Walsall Council,http://opendatacommunities.org/id/metropolitan-district-council/walsall,WC119-328,31/10/2020,ADULT SOCIAL CARE,ADVANCE HEALTH CARE (UK) LTD,09/10/2020,269.85,73507-Domiciliary Care,Physical Support,THIRD PARTY PAYMENTS,Revenue,,,,,,, 
Walsall Council,http://opendatacommunities.org/id/metropolitan-district-council/walsall,WC119-329,31/10/2020,ADULT SOCIAL CARE,ADVANCE HEALTH CARE (UK) LTD,09/10/2020,377.79,73507-Domiciliary Care,Physical Support,THIRD PARTY PAYMENTS,Revenue,,,,,,, 
Walsall Council,http://opendatacommunities.org/id/metropolitan-district-council/walsall,WC119-330,31/10/2020,ADULT SOCIAL CARE,ADVANCE HEALTH CARE (UK) LTD,09/10/2020,377.79,73507-Domiciliary Care,Physical Support,THIRD PARTY PAYMENTS,Revenue,,,,,,, 
Walsall Council,http://opendatacommunities.org/id/metropolitan-district-council/walsall,WC119-331,31/10/2020,ADULT SOCIAL CARE,ADVANCE HEALTH CARE (UK) LTD,09/10/2020,431.76,73507-Domiciliary Care,Physical Support,THIRD PARTY PAYMENTS,Revenue,,,,,,, 
Walsall Council,http://opendatacommunities.org/id/metropolitan-district-council/walsall,WC119-332,31/10/2020,ADULT SOCIAL CARE,ADVANCE HEALTH CARE (UK) LTD,09/10/2020,485.73,73507-Domiciliary Care,Physical Support,THIRD PARTY PAYMENTS,Revenue,,,,,,, 
Walsall Council,http://opendatacommunities.org/id/metropolitan-district-council/walsall,WC119-333,31/10/2020,ADULT SOCIAL CARE,ADVANCE HEALTH CARE (UK) LTD,09/10/2020,485.73,73507-Domiciliary Care,Physical Support,THIRD PARTY PAYMENTS,Revenue,,,,,,, 
Walsall Council,http://opendatacommunities.org/id/metropolitan-district-council/walsall,WC119-334,31/10/2020,ADULT SOCIAL CARE,ADVANCE HEALTH CARE (UK) LTD,09/10/2020,431.76,73507-Domiciliary Care,Physical Support,THIRD PARTY PAYMENTS,Revenue,,,,,,, 
Walsall Council,http://opendatacommunities.org/id/metropolitan-district-council/walsall,WC119-335,31/10/2020,ADULT SOCIAL CARE,ADVANCE HEALTH CARE (UK) LTD,09/10/2020,485.80,73507-Domiciliary Care,Physical Support,THIRD PARTY PAYMENTS,Revenue,,,,,,, 
Walsall Council,http://opendatacommunities.org/id/metropolitan-district-council/walsall,WC119-336,31/10/2020,ADULT SOCIAL CARE,ADVANCE HEALTH CARE (UK) LTD,09/10/2020,501.15,73507-Domiciliary Care,Physical Support,THIRD PARTY PAYMENTS,Revenue,,,,,,, 
Walsall Council,http://opendatacommunities.org/id/metropolitan-district-council/walsall,WC119-337,31/10/2020,ADULT SOCIAL CARE,ADVANCE HEALTH CARE (UK) LTD,09/10/2020,431.76,73507-Domiciliary Care,Physical Support,THIRD PARTY PAYMENTS,Revenue,,,,,,, 
Walsall Council,http://opendatacommunities.org/id/metropolitan-district-council/walsall,WC119-338,31/10/2020,ADULT SOCIAL CARE,ADVANCE HEALTH CARE (UK) LTD,09/10/2020,485.73,73507-Domiciliary Care,Physical Support,THIRD PARTY PAYMENTS,Revenue,,,,,,, 
Walsall Council,http://opendatacommunities.org/id/metropolitan-district-council/walsall,WC119-339,31/10/2020,ADULT SOCIAL CARE,ADVANCE HEALTH CARE (UK) LTD,09/10/2020,323.82,73507-Domiciliary Care,Physical Support,THIRD PARTY PAYMENTS,Revenue,,,,,,, 
Walsall Council,http://opendatacommunities.org/id/metropolitan-district-council/walsall,WC119-340,31/10/2020,ADULT SOCIAL CARE,ADVANCE HEALTH CARE (UK) LTD,09/10/2020,439.47,73507-Domiciliary Care,Physical Support,THIRD PARTY PAYMENTS,Revenue,,,,,,, 
Walsall Council,http://opendatacommunities.org/id/metropolitan-district-council/walsall,WC119-341,31/10/2020,ADULT SOCIAL CARE,ADVANCE HEALTH CARE (UK) LTD,09/10/2020,809.55,73507-Domiciliary Care,Physical Support,THIRD PARTY PAYMENTS,Revenue,,,,,,, 
Walsall Council,http://opendatacommunities.org/id/metropolitan-district-council/walsall,WC119-342,31/10/2020,ADULT SOCIAL CARE,ADVANCE HEALTH CARE (UK) LTD,09/10/2020,701.61,73507-Domiciliary Care,Physical Support,THIRD PARTY PAYMENTS,Revenue,,,,,,, 
Walsall Council,http://opendatacommunities.org/id/metropolitan-district-council/walsall,WC119-343,31/10/2020,ADULT SOCIAL CARE,ADVANCE HEALTH CARE (UK) LTD,09/10/2020,593.88,73507-Domiciliary Care,Physical Support,THIRD PARTY PAYMENTS,Revenue,,,,,,, 
Walsall Council,http://opendatacommunities.org/id/metropolitan-district-council/walsall,WC119-344,31/10/2020,ADULT SOCIAL CARE,ADVANCE HEALTH CARE (UK) LTD,09/10/2020,485.73,73507-Domiciliary Care,Physical Support,THIRD PARTY PAYMENTS,Revenue,,,,,,, 
Walsall Council,http://opendatacommunities.org/id/metropolitan-district-council/walsall,WC119-345,31/10/2020,ADULT SOCIAL CARE,ADVANCE HEALTH CARE (UK) LTD,09/10/2020,863.52,73507-Domiciliary Care,Social Support,THIRD PARTY PAYMENTS,Revenue,,,,,,, 
Walsall Council,http://opendatacommunities.org/id/metropolitan-district-council/walsall,WC119-346,31/10/2020,ADULT SOCIAL CARE,ADVANCE HEALTH CARE (UK) LTD,09/10/2020,323.82,73507-Domiciliary Care,Social Support,THIRD PARTY PAYMENTS,Revenue,,,,,,, 
Walsall Council,http://opendatacommunities.org/id/metropolitan-district-council/walsall,WC119-347,31/10/2020,ADULT SOCIAL CARE,ADVANCE HEALTH CARE (UK) LTD,09/10/2020,431.76,73507-Domiciliary Care,Physical Support,THIRD PARTY PAYMENTS,Revenue,,,,,,, 
Walsall Council,http://opendatacommunities.org/id/metropolitan-district-council/walsall,WC119-348,31/10/2020,ADULT SOCIAL CARE,ADVANCE HEALTH CARE (UK) LTD,09/10/2020,431.76,73507-Domiciliary Care,Physical Support,THIRD PARTY PAYMENTS,Revenue,,,,,,, 
Walsall Council,http://opendatacommunities.org/id/metropolitan-district-council/walsall,WC119-349,31/10/2020,ADULT SOCIAL CARE,ADVANCE HEALTH CARE (UK) LTD,09/10/2020,485.73,73507-Domiciliary Care,Physical Support,THIRD PARTY PAYMENTS,Revenue,,,,,,, 
Walsall Council,http://opendatacommunities.org/id/metropolitan-district-council/walsall,WC119-350,31/10/2020,ADULT SOCIAL CARE,ADVANCE HEALTH CARE (UK) LTD,09/10/2020,824.97,73507-Domiciliary Care,Physical Support,THIRD PARTY PAYMENTS,Revenue,,,,,,, 
Walsall Council,http://opendatacommunities.org/id/metropolitan-district-council/walsall,WC119-351,31/10/2020,ADULT SOCIAL CARE,ADVANCE HEALTH CARE (UK) LTD,09/10/2020,485.73,73507-Domiciliary Care,Physical Support,THIRD PARTY PAYMENTS,Revenue,,,,,,, 
Walsall Council,http://opendatacommunities.org/id/metropolitan-district-council/walsall,WC119-352,31/10/2020,ADULT SOCIAL CARE,ADVANCE HEALTH CARE (UK) LTD,09/10/2020,485.73,73507-Domiciliary Care,Physical Support,THIRD PARTY PAYMENTS,Revenue,,,,,,, 
Walsall Council,http://opendatacommunities.org/id/metropolitan-district-council/walsall,WC119-353,31/10/2020,ADULT SOCIAL CARE,ADVANCE HEALTH CARE (UK) LTD,09/10/2020,485.73,73507-Domiciliary Care,Physical Support,THIRD PARTY PAYMENTS,Revenue,,,,,,, 
Walsall Council,http://opendatacommunities.org/id/metropolitan-district-council/walsall,WC119-354,31/10/2020,ADULT SOCIAL CARE,ADVANCE HEALTH CARE (UK) LTD,09/10/2020,292.98,73507-Domiciliary Care,Physical Support,THIRD PARTY PAYMENTS,Revenue,,,,,,, 
Walsall Council,http://opendatacommunities.org/id/metropolitan-district-council/walsall,WC119-355,31/10/2020,ADULT SOCIAL CARE,ADVANCE HEALTH CARE (UK) LTD,09/10/2020,431.76,73507-Domiciliary Care,Physical Support,THIRD PARTY PAYMENTS,Revenue,,,,,,, 
Walsall Council,http://opendatacommunities.org/id/metropolitan-district-council/walsall,WC119-356,31/10/2020,ADULT SOCIAL CARE,ADVANCE HEALTH CARE (UK) LTD,09/10/2020,485.73,73507-Domiciliary Care,Physical Support,THIRD PARTY PAYMENTS,Revenue,,,,,,, 
Walsall Council,http://opendatacommunities.org/id/metropolitan-district-council/walsall,WC119-357,31/10/2020,ADULT SOCIAL CARE,ADVANCE HEALTH CARE (UK) LTD,09/10/2020,431.76,73507-Domiciliary Care,Physical Support,THIRD PARTY PAYMENTS,Revenue,,,,,,, 
Walsall Council,http://opendatacommunities.org/id/metropolitan-district-council/walsall,WC119-358,31/10/2020,ADULT SOCIAL CARE,ADVANCE HEALTH CARE (UK) LTD,09/10/2020,539.70,73507-Domiciliary Care,Physical Support,THIRD PARTY PAYMENTS,Revenue,,,,,,, 
Walsall Council,http://opendatacommunities.org/id/metropolitan-district-council/walsall,WC119-359,31/10/2020,ADULT SOCIAL CARE,ADVANCE HEALTH CARE (UK) LTD,09/10/2020,431.76,73507-Domiciliary Care,Physical Support,THIRD PARTY PAYMENTS,Revenue,,,,,,, 
Walsall Council,http://opendatacommunities.org/id/metropolitan-district-council/walsall,WC119-360,31/10/2020,ADULT SOCIAL CARE,ADVANCE HEALTH CARE (UK) LTD,09/10/2020,431.76,73507-Domiciliary Care,Physical Support,THIRD PARTY PAYMENTS,Revenue,,,,,,, 
Walsall Council,http://opendatacommunities.org/id/metropolitan-district-council/walsall,WC119-361,31/10/2020,ADULT SOCIAL CARE,ADVANCE HEALTH CARE (UK) LTD,09/10/2020,323.82,73507-Domiciliary Care,Physical Support,THIRD PARTY PAYMENTS,Revenue,,,,,,, 
Walsall Council,http://opendatacommunities.org/id/metropolitan-district-council/walsall,WC119-362,31/10/2020,ADULT SOCIAL CARE,ADVANCE HEALTH CARE (UK) LTD,09/10/2020,377.79,73507-Domiciliary Care,Physical Support,THIRD PARTY PAYMENTS,Revenue,,,,,,, 
Walsall Council,http://opendatacommunities.org/id/metropolitan-district-council/walsall,WC119-363,31/10/2020,ADULT SOCIAL CARE,ADVANCE HEALTH CARE (UK) LTD,09/10/2020,485.73,73507-Domiciliary Care,Social Support,THIRD PARTY PAYMENTS,Revenue,,,,,,, 
Walsall Council,http://opendatacommunities.org/id/metropolitan-district-council/walsall,WC119-364,31/10/2020,ADULT SOCIAL CARE,ADVANCE HEALTH CARE (UK) LTD,09/10/2020,359.80,73507-Domiciliary Care,Social Support,THIRD PARTY PAYMENTS,Revenue,,,,,,, 
Walsall Council,http://opendatacommunities.org/id/metropolitan-district-council/walsall,WC119-365,31/10/2020,ADULT SOCIAL CARE,ADVANCE HEALTH CARE (UK) LTD,09/10/2020,485.73,73025-Professional Services-Priv Contractor & Other Agencies,Intermediate Care Service,THIRD PARTY PAYMENTS,Revenue,,,,,,, 
Walsall Council,http://opendatacommunities.org/id/metropolitan-district-council/walsall,WC119-366,31/10/2020,ADULT SOCIAL CARE,ADVANCE HEALTH CARE (UK) LTD,09/10/2020,485.73,73025-Professional Services-Priv Contractor & Other Agencies,Intermediate Care Service,THIRD PARTY PAYMENTS,Revenue,,,,,,, 
Walsall Council,http://opendatacommunities.org/id/metropolitan-district-council/walsall,WC119-367,31/10/2020,ADULT SOCIAL CARE,ADVANCE HEALTH CARE (UK) LTD,09/10/2020,377.79,73025-Professional Services-Priv Contractor & Other Agencies,Intermediate Care Service,THIRD PARTY PAYMENTS,Revenue,,,,,,, 
Walsall Council,http://opendatacommunities.org/id/metropolitan-district-council/walsall,WC119-368,31/10/2020,ADULT SOCIAL CARE,ADVANCE HEALTH CARE (UK) LTD,09/10/2020,485.73,73025-Professional Services-Priv Contractor & Other Agencies,Intermediate Care Service,THIRD PARTY PAYMENTS,Revenue,,,,,,, 
Walsall Council,http://opendatacommunities.org/id/metropolitan-district-council/walsall,WC119-369,31/10/2020,ADULT SOCIAL CARE,ADVANCE HEALTH CARE (UK) LTD,09/10/2020,485.73,73025-Professional Services-Priv Contractor & Other Agencies,Intermediate Care Service,THIRD PARTY PAYMENTS,Revenue,,,,,,, 
Walsall Council,http://opendatacommunities.org/id/metropolitan-district-council/walsall,WC119-370,31/10/2020,ADULT SOCIAL CARE,ADVANCE HEALTH CARE (UK) LTD,09/10/2020,485.73,73025-Professional Services-Priv Contractor & Other Agencies,Intermediate Care Service,THIRD PARTY PAYMENTS,Revenue,,,,,,, 
Walsall Council,http://opendatacommunities.org/id/metropolitan-district-council/walsall,WC119-371,31/10/2020,ADULT SOCIAL CARE,ADVANCE HEALTH CARE (UK) LTD,09/10/2020,485.73,73025-Professional Services-Priv Contractor & Other Agencies,Intermediate Care Service,THIRD PARTY PAYMENTS,Revenue,,,,,,, 
Walsall Council,http://opendatacommunities.org/id/metropolitan-district-council/walsall,WC119-372,31/10/2020,ADULT SOCIAL CARE,ADVANCE HEALTH CARE (UK) LTD,09/10/2020,254.43,73025-Professional Services-Priv Contractor & Other Agencies,Intermediate Care Service,THIRD PARTY PAYMENTS,Revenue,,,,,,, 
Walsall Council,http://opendatacommunities.org/id/metropolitan-district-council/walsall,WC119-373,31/10/2020,ADULT SOCIAL CARE,ADVANCE HEALTH CARE (UK) LTD,12/10/2020,485.73,73025-Professional Services-Priv Contractor & Other Agencies,THIRD PARTY PAYMENTS,PRIVATE CONTRACTOR,Revenue,,,,,,, 
Walsall Council,http://opendatacommunities.org/id/metropolitan-district-council/walsall,WC119-374,31/10/2020,ADULT SOCIAL CARE,ADVANCE HEALTH CARE (UK) LTD,12/10/2020,262.14,73025-Professional Services-Priv Contractor & Other Agencies,THIRD PARTY PAYMENTS,PRIVATE CONTRACTOR,Revenue,,,,,,, 
Walsall Council,http://opendatacommunities.org/id/metropolitan-district-council/walsall,WC119-375,31/10/2020,ADULT SOCIAL CARE,ADVANCE HEALTH CARE (UK) LTD,12/10/2020,485.73,73025-Professional Services-Priv Contractor & Other Agencies,THIRD PARTY PAYMENTS,PRIVATE CONTRACTOR,Revenue,,,,,,, 
Walsall Council,http://opendatacommunities.org/id/metropolitan-district-council/walsall,WC119-376,31/10/2020,ADULT SOCIAL CARE,ADVANCE HEALTH CARE (UK) LTD,13/10/2020,485.73,73025-Professional Services-Priv Contractor & Other Agencies,THIRD PARTY PAYMENTS,PRIVATE CONTRACTOR,Revenue,,,,,,, 
Walsall Council,http://opendatacommunities.org/id/metropolitan-district-council/walsall,WC119-377,31/10/2020,ADULT SOCIAL CARE,ADVANCE HEALTH CARE (UK) LTD,13/10/2020,485.73,73025-Professional Services-Priv Contractor & Other Agencies,THIRD PARTY PAYMENTS,PRIVATE CONTRACTOR,Revenue,,,,,,, 
Walsall Council,http://opendatacommunities.org/id/metropolitan-district-council/walsall,WC119-378,31/10/2020,ADULT SOCIAL CARE,ADVANCE HEALTH CARE (UK) LTD,16/10/2020,485.73,73025-Professional Services-Priv Contractor & Other Agencies,THIRD PARTY PAYMENTS,PRIVATE CONTRACTOR,Revenue,,,,,,, 
Walsall Council,http://opendatacommunities.org/id/metropolitan-district-council/walsall,WC119-379,31/10/2020,ADULT SOCIAL CARE,ADVANCE HEALTH CARE (UK) LTD,16/10/2020,377.79,73025-Professional Services-Priv Contractor & Other Agencies,THIRD PARTY PAYMENTS,PRIVATE CONTRACTOR,Revenue,,,,,,, 
Walsall Council,http://opendatacommunities.org/id/metropolitan-district-council/walsall,WC119-380,31/10/2020,ADULT SOCIAL CARE,ADVANCE HEALTH CARE (UK) LTD,16/10/2020,485.73,73025-Professional Services-Priv Contractor & Other Agencies,THIRD PARTY PAYMENTS,PRIVATE CONTRACTOR,Revenue,,,,,,, 
Walsall Council,http://opendatacommunities.org/id/metropolitan-district-council/walsall,WC119-381,31/10/2020,ADULT SOCIAL CARE,ADVANCE HEALTH CARE (UK) LTD,16/10/2020,485.73,73025-Professional Services-Priv Contractor & Other Agencies,THIRD PARTY PAYMENTS,PRIVATE CONTRACTOR,Revenue,,,,,,, 
Walsall Council,http://opendatacommunities.org/id/metropolitan-district-council/walsall,WC119-382,31/10/2020,ADULT SOCIAL CARE,ADVANCE HEALTH CARE (UK) LTD,16/10/2020,485.73,73025-Professional Services-Priv Contractor & Other Agencies,THIRD PARTY PAYMENTS,PRIVATE CONTRACTOR,Revenue,,,,,,, 
Walsall Council,http://opendatacommunities.org/id/metropolitan-district-council/walsall,WC119-383,31/10/2020,ADULT SOCIAL CARE,ADVANCE HEALTH CARE (UK) LTD,16/10/2020,485.73,73025-Professional Services-Priv Contractor & Other Agencies,THIRD PARTY PAYMENTS,PRIVATE CONTRACTOR,Revenue,,,,,,, 
Walsall Council,http://opendatacommunities.org/id/metropolitan-district-council/walsall,WC119-384,31/10/2020,ADULT SOCIAL CARE,ADVANCE HEALTH CARE (UK) LTD,16/10/2020,485.73,73025-Professional Services-Priv Contractor & Other Agencies,THIRD PARTY PAYMENTS,PRIVATE CONTRACTOR,Revenue,,,,,,, 
Walsall Council,http://opendatacommunities.org/id/metropolitan-district-council/walsall,WC119-385,31/10/2020,ADULT SOCIAL CARE,ADVANCE HEALTH CARE (UK) LTD,21/10/2020,485.73,73025-Professional Services-Priv Contractor & Other Agencies,THIRD PARTY PAYMENTS,PRIVATE CONTRACTOR,Revenue,,,,,,, 
Walsall Council,http://opendatacommunities.org/id/metropolitan-district-council/walsall,WC119-386,31/10/2020,ADULT SOCIAL CARE,ADVANCE HEALTH CARE (UK) LTD,21/10/2020,485.73,73025-Professional Services-Priv Contractor & Other Agencies,THIRD PARTY PAYMENTS,PRIVATE CONTRACTOR,Revenue,,,,,,, 
Walsall Council,http://opendatacommunities.org/id/metropolitan-district-council/walsall,WC119-387,31/10/2020,ADULT SOCIAL CARE,ADVANCE HEALTH CARE (UK) LTD,21/10/2020,485.73,73025-Professional Services-Priv Contractor & Other Agencies,THIRD PARTY PAYMENTS,PRIVATE CONTRACTOR,Revenue,,,,,,, 
Walsall Council,http://opendatacommunities.org/id/metropolitan-district-council/walsall,WC119-388,31/10/2020,ADULT SOCIAL CARE,ADVANCE HEALTH CARE (UK) LTD,21/10/2020,485.73,73025-Professional Services-Priv Contractor & Other Agencies,THIRD PARTY PAYMENTS,PRIVATE CONTRACTOR,Revenue,,,,,,, 
Walsall Council,http://opendatacommunities.org/id/metropolitan-district-council/walsall,WC119-389,31/10/2020,ADULT SOCIAL CARE,ADVANCE HEALTH CARE (UK) LTD,21/10/2020,485.73,73025-Professional Services-Priv Contractor & Other Agencies,THIRD PARTY PAYMENTS,PRIVATE CONTRACTOR,Revenue,,,,,,, 
Walsall Council,http://opendatacommunities.org/id/metropolitan-district-council/walsall,WC119-390,31/10/2020,ADULT SOCIAL CARE,ADVANCE HEALTH CARE (UK) LTD,21/10/2020,269.85,73025-Professional Services-Priv Contractor & Other Agencies,THIRD PARTY PAYMENTS,PRIVATE CONTRACTOR,Revenue,,,,,,, 
Walsall Council,http://opendatacommunities.org/id/metropolitan-district-council/walsall,WC119-391,31/10/2020,ADULT SOCIAL CARE,ADVANCE HEALTH CARE (UK) LTD,21/10/2020,817.40,73507-Domiciliary Care,THIRD PARTY PAYMENTS,PRIVATE CONTRACTOR,Revenue,,,,,,, 
Walsall Council,http://opendatacommunities.org/id/metropolitan-district-council/walsall,WC119-392,31/10/2020,ADULT SOCIAL CARE,ADVANCE HEALTH CARE (UK) LTD,21/10/2020,"2,695.93",73507-Domiciliary Care,THIRD PARTY PAYMENTS,PRIVATE CONTRACTOR,Revenue,,,,,,, 
Walsall Council,http://opendatacommunities.org/id/metropolitan-district-council/walsall,WC119-393,31/10/2020,ADULT SOCIAL CARE,ADVANCE HEALTH CARE (UK) LTD,21/10/2020,760.72,73507-Domiciliary Care,THIRD PARTY PAYMENTS,PRIVATE CONTRACTOR,Revenue,,,,,,, 
Walsall Council,http://opendatacommunities.org/id/metropolitan-district-council/walsall,WC119-394,31/10/2020,ADULT SOCIAL CARE,ADVANCE HEALTH CARE (UK) LTD,21/10/2020,"1,017.72",73507-Domiciliary Care,THIRD PARTY PAYMENTS,PRIVATE CONTRACTOR,Revenue,,,,,,, 
Walsall Council,http://opendatacommunities.org/id/metropolitan-district-council/walsall,WC119-395,31/10/2020,ADULT SOCIAL CARE,ADVANCE HEALTH CARE (UK) LTD,21/10/2020,842.96,73507-Domiciliary Care,THIRD PARTY PAYMENTS,PRIVATE CONTRACTOR,Revenue,,,,,,, 
Walsall Council,http://opendatacommunities.org/id/metropolitan-district-council/walsall,WC119-396,31/10/2020,ADULT SOCIAL CARE,ADVANCE HEALTH CARE (UK) LTD,21/10/2020,673.48,73507-Domiciliary Care,THIRD PARTY PAYMENTS,PRIVATE CONTRACTOR,Revenue,,,,,,, 
Walsall Council,http://opendatacommunities.org/id/metropolitan-district-council/walsall,WC119-397,31/10/2020,ADULT SOCIAL CARE,ADVANCE HEALTH CARE (UK) LTD,21/10/2020,740.16,73507-Domiciliary Care,THIRD PARTY PAYMENTS,PRIVATE CONTRACTOR,Revenue,,,,,,, 
Walsall Council,http://opendatacommunities.org/id/metropolitan-district-council/walsall,WC119-398,31/10/2020,ADULT SOCIAL CARE,ADVANCE HEALTH CARE (UK) LTD,23/10/2020,593.88,73507-Domiciliary Care,THIRD PARTY PAYMENTS,PRIVATE CONTRACTOR,Revenue,,,,,,, 
Walsall Council,http://opendatacommunities.org/id/metropolitan-district-council/walsall,WC119-399,31/10/2020,ADULT SOCIAL CARE,ADVANCE HEALTH CARE (UK) LTD,23/10/2020,"-3,758.28",73507-Domiciliary Care,THIRD PARTY PAYMENTS,PRIVATE CONTRACTOR,Revenue,,,,,,, 
Walsall Council,http://opendatacommunities.org/id/metropolitan-district-council/walsall,WC119-400,31/10/2020,ADULT SOCIAL CARE,ADVANCE HEALTH CARE (UK) LTD,23/10/2020,485.73,73507-Domiciliary Care,THIRD PARTY PAYMENTS,PRIVATE CONTRACTOR,Revenue,,,,,,, 
Walsall Council,http://opendatacommunities.org/id/metropolitan-district-council/walsall,WC119-401,31/10/2020,ADULT SOCIAL CARE,ADVANCE HEALTH CARE (UK) LTD,23/10/2020,863.52,73507-Domiciliary Care,THIRD PARTY PAYMENTS,PRIVATE CONTRACTOR,Revenue,,,,,,, 
Walsall Council,http://opendatacommunities.org/id/metropolitan-district-council/walsall,WC119-402,31/10/2020,ADULT SOCIAL CARE,ADVANCE HEALTH CARE (UK) LTD,23/10/2020,323.82,73507-Domiciliary Care,THIRD PARTY PAYMENTS,PRIVATE CONTRACTOR,Revenue,,,,,,, 
Walsall Council,http://opendatacommunities.org/id/metropolitan-district-council/walsall,WC119-403,31/10/2020,ADULT SOCIAL CARE,ADVANCE HEALTH CARE (UK) LTD,23/10/2020,462.60,73507-Domiciliary Care,THIRD PARTY PAYMENTS,PRIVATE CONTRACTOR,Revenue,,,,,,, 
Walsall Council,http://opendatacommunities.org/id/metropolitan-district-council/walsall,WC119-404,31/10/2020,ADULT SOCIAL CARE,ADVANCE HEALTH CARE (UK) LTD,23/10/2020,431.76,73507-Domiciliary Care,THIRD PARTY PAYMENTS,PRIVATE CONTRACTOR,Revenue,,,,,,, 
Walsall Council,http://opendatacommunities.org/id/metropolitan-district-council/walsall,WC119-405,31/10/2020,ADULT SOCIAL CARE,ADVANCE HEALTH CARE (UK) LTD,23/10/2020,485.73,73507-Domiciliary Care,THIRD PARTY PAYMENTS,PRIVATE CONTRACTOR,Revenue,,,,,,, 
Walsall Council,http://opendatacommunities.org/id/metropolitan-district-council/walsall,WC119-406,31/10/2020,ADULT SOCIAL CARE,ADVANCE HEALTH CARE (UK) LTD,23/10/2020,485.73,73507-Domiciliary Care,THIRD PARTY PAYMENTS,PRIVATE CONTRACTOR,Revenue,,,,,,, 
Walsall Council,http://opendatacommunities.org/id/metropolitan-district-council/walsall,WC119-407,31/10/2020,ADULT SOCIAL CARE,ADVANCE HEALTH CARE (UK) LTD,23/10/2020,377.79,73507-Domiciliary Care,THIRD PARTY PAYMENTS,PRIVATE CONTRACTOR,Revenue,,,,,,, 
Walsall Council,http://opendatacommunities.org/id/metropolitan-district-council/walsall,WC119-408,31/10/2020,ADULT SOCIAL CARE,ADVANCE HEALTH CARE (UK) LTD,23/10/2020,485.73,73507-Domiciliary Care,THIRD PARTY PAYMENTS,PRIVATE CONTRACTOR,Revenue,,,,,,, 
Walsall Council,http://opendatacommunities.org/id/metropolitan-district-council/walsall,WC119-409,31/10/2020,ADULT SOCIAL CARE,ADVANCE HEALTH CARE (UK) LTD,23/10/2020,524.28,73507-Domiciliary Care,THIRD PARTY PAYMENTS,PRIVATE CONTRACTOR,Revenue,,,,,,, 
Walsall Council,http://opendatacommunities.org/id/metropolitan-district-council/walsall,WC119-410,31/10/2020,ADULT SOCIAL CARE,ADVANCE HEALTH CARE (UK) LTD,23/10/2020,269.85,73507-Domiciliary Care,THIRD PARTY PAYMENTS,PRIVATE CONTRACTOR,Revenue,,,,,,, 
Walsall Council,http://opendatacommunities.org/id/metropolitan-district-council/walsall,WC119-411,31/10/2020,ADULT SOCIAL CARE,ADVANCE HEALTH CARE (UK) LTD,23/10/2020,359.80,73507-Domiciliary Care,THIRD PARTY PAYMENTS,PRIVATE CONTRACTOR,Revenue,,,,,,, 
Walsall Council,http://opendatacommunities.org/id/metropolitan-district-council/walsall,WC119-412,31/10/2020,ADULT SOCIAL CARE,ADVANCE HEALTH CARE (UK) LTD,23/10/2020,359.80,73507-Domiciliary Care,THIRD PARTY PAYMENTS,PRIVATE CONTRACTOR,Revenue,,,,,,, 
Walsall Council,http://opendatacommunities.org/id/metropolitan-district-council/walsall,WC119-413,31/10/2020,ADULT SOCIAL CARE,ADVANCE HEALTH CARE (UK) LTD,23/10/2020,404.81,73507-Domiciliary Care,THIRD PARTY PAYMENTS,PRIVATE CONTRACTOR,Revenue,,,,,,, 
Walsall Council,http://opendatacommunities.org/id/metropolitan-district-council/walsall,WC119-414,31/10/2020,ADULT SOCIAL CARE,ADVANCE HEALTH CARE (UK) LTD,23/10/2020,485.73,73507-Domiciliary Care,THIRD PARTY PAYMENTS,PRIVATE CONTRACTOR,Revenue,,,,,,, 
Walsall Council,http://opendatacommunities.org/id/metropolitan-district-council/walsall,WC119-415,31/10/2020,ADULT SOCIAL CARE,ADVANCE HEALTH CARE (UK) LTD,23/10/2020,824.97,73507-Domiciliary Care,THIRD PARTY PAYMENTS,PRIVATE CONTRACTOR,Revenue,,,,,,, 
Walsall Council,http://opendatacommunities.org/id/metropolitan-district-council/walsall,WC119-416,31/10/2020,ADULT SOCIAL CARE,ADVANCE HEALTH CARE (UK) LTD,23/10/2020,485.73,73507-Domiciliary Care,THIRD PARTY PAYMENTS,PRIVATE CONTRACTOR,Revenue,,,,,,, 
Walsall Council,http://opendatacommunities.org/id/metropolitan-district-council/walsall,WC119-417,31/10/2020,ADULT SOCIAL CARE,ADVANCE HEALTH CARE (UK) LTD,23/10/2020,485.73,73507-Domiciliary Care,THIRD PARTY PAYMENTS,PRIVATE CONTRACTOR,Revenue,,,,,,, 
Walsall Council,http://opendatacommunities.org/id/metropolitan-district-council/walsall,WC119-418,31/10/2020,ADULT SOCIAL CARE,ADVANCE HEALTH CARE (UK) LTD,23/10/2020,431.76,73507-Domiciliary Care,THIRD PARTY PAYMENTS,PRIVATE CONTRACTOR,Revenue,,,,,,, 
Walsall Council,http://opendatacommunities.org/id/metropolitan-district-council/walsall,WC119-419,31/10/2020,ADULT SOCIAL CARE,ADVANCE HEALTH CARE (UK) LTD,23/10/2020,539.70,73507-Domiciliary Care,THIRD PARTY PAYMENTS,PRIVATE CONTRACTOR,Revenue,,,,,,, 
Walsall Council,http://opendatacommunities.org/id/metropolitan-district-council/walsall,WC119-420,31/10/2020,ADULT SOCIAL CARE,ADVANCE HEALTH CARE (UK) LTD,23/10/2020,431.76,73507-Domiciliary Care,THIRD PARTY PAYMENTS,PRIVATE CONTRACTOR,Revenue,,,,,,, 
Walsall Council,http://opendatacommunities.org/id/metropolitan-district-council/walsall,WC119-421,31/10/2020,ADULT SOCIAL CARE,ADVANCE HEALTH CARE (UK) LTD,23/10/2020,431.76,73507-Domiciliary Care,THIRD PARTY PAYMENTS,PRIVATE CONTRACTOR,Revenue,,,,,,, 
Walsall Council,http://opendatacommunities.org/id/metropolitan-district-council/walsall,WC119-422,31/10/2020,ADULT SOCIAL CARE,ADVANCE HEALTH CARE (UK) LTD,23/10/2020,323.82,73507-Domiciliary Care,THIRD PARTY PAYMENTS,PRIVATE CONTRACTOR,Revenue,,,,,,, 
Walsall Council,http://opendatacommunities.org/id/metropolitan-district-council/walsall,WC119-423,31/10/2020,ADULT SOCIAL CARE,ADVANCE HEALTH CARE (UK) LTD,23/10/2020,"3,255.96",73507-Domiciliary Care,THIRD PARTY PAYMENTS,PRIVATE CONTRACTOR,Revenue,,,,,,, 
Walsall Council,http://opendatacommunities.org/id/metropolitan-district-council/walsall,WC119-424,31/10/2020,ADULT SOCIAL CARE,ADVANCE HEALTH CARE (UK) LTD,23/10/2020,377.79,73507-Domiciliary Care,THIRD PARTY PAYMENTS,PRIVATE CONTRACTOR,Revenue,,,,,,, 
Walsall Council,http://opendatacommunities.org/id/metropolitan-district-council/walsall,WC119-425,31/10/2020,ADULT SOCIAL CARE,ADVANCE HEALTH CARE (UK) LTD,23/10/2020,-323.82,73507-Domiciliary Care,THIRD PARTY PAYMENTS,PRIVATE CONTRACTOR,Revenue,,,,,,, 
Walsall Council,http://opendatacommunities.org/id/metropolitan-district-council/walsall,WC119-426,31/10/2020,ADULT SOCIAL CARE,ADVANCE HEALTH CARE (UK) LTD,23/10/2020,485.73,73507-Domiciliary Care,THIRD PARTY PAYMENTS,PRIVATE CONTRACTOR,Revenue,,,,,,, 
Walsall Council,http://opendatacommunities.org/id/metropolitan-district-council/walsall,WC119-427,31/10/2020,ADULT SOCIAL CARE,ADVANCE HEALTH CARE (UK) LTD,23/10/2020,593.67,73507-Domiciliary Care,THIRD PARTY PAYMENTS,PRIVATE CONTRACTOR,Revenue,,,,,,, 
Walsall Council,http://opendatacommunities.org/id/metropolitan-district-council/walsall,WC119-428,31/10/2020,ADULT SOCIAL CARE,ADVANCE HEALTH CARE (UK) LTD,23/10/2020,485.80,73507-Domiciliary Care,THIRD PARTY PAYMENTS,PRIVATE CONTRACTOR,Revenue,,,,,,, 
Walsall Council,http://opendatacommunities.org/id/metropolitan-district-council/walsall,WC119-429,31/10/2020,ADULT SOCIAL CARE,ADVANCE HEALTH CARE (UK) LTD,23/10/2020,501.15,73507-Domiciliary Care,THIRD PARTY PAYMENTS,PRIVATE CONTRACTOR,Revenue,,,,,,, 
Walsall Council,http://opendatacommunities.org/id/metropolitan-district-council/walsall,WC119-430,31/10/2020,ADULT SOCIAL CARE,ADVANCE HEALTH CARE (UK) LTD,23/10/2020,431.76,73507-Domiciliary Care,THIRD PARTY PAYMENTS,PRIVATE CONTRACTOR,Revenue,,,,,,, 
Walsall Council,http://opendatacommunities.org/id/metropolitan-district-council/walsall,WC119-431,31/10/2020,ADULT SOCIAL CARE,ADVANCE HEALTH CARE (UK) LTD,23/10/2020,431.76,73507-Domiciliary Care,THIRD PARTY PAYMENTS,PRIVATE CONTRACTOR,Revenue,,,,,,, 
Walsall Council,http://opendatacommunities.org/id/metropolitan-district-council/walsall,WC119-432,31/10/2020,ADULT SOCIAL CARE,ADVANCE HEALTH CARE (UK) LTD,23/10/2020,323.82,73507-Domiciliary Care,THIRD PARTY PAYMENTS,PRIVATE CONTRACTOR,Revenue,,,,,,, 
Walsall Council,http://opendatacommunities.org/id/metropolitan-district-council/walsall,WC119-433,31/10/2020,ADULT SOCIAL CARE,ADVANCE HEALTH CARE (UK) LTD,23/10/2020,485.73,73507-Domiciliary Care,THIRD PARTY PAYMENTS,PRIVATE CONTRACTOR,Revenue,,,,,,, 
Walsall Council,http://opendatacommunities.org/id/metropolitan-district-council/walsall,WC119-434,31/10/2020,ADULT SOCIAL CARE,ADVANCE HEALTH CARE (UK) LTD,23/10/2020,339.24,73507-Domiciliary Care,THIRD PARTY PAYMENTS,PRIVATE CONTRACTOR,Revenue,,,,,,, 
Walsall Council,http://opendatacommunities.org/id/metropolitan-district-council/walsall,WC119-435,31/10/2020,ADULT SOCIAL CARE,ADVANCE HEALTH CARE (UK) LTD,23/10/2020,359.80,73507-Domiciliary Care,THIRD PARTY PAYMENTS,PRIVATE CONTRACTOR,Revenue,,,,,,, 
Walsall Council,http://opendatacommunities.org/id/metropolitan-district-council/walsall,WC119-436,31/10/2020,ADULT SOCIAL CARE,ADVANCE HEALTH CARE (UK) LTD,23/10/2020,701.61,73507-Domiciliary Care,THIRD PARTY PAYMENTS,PRIVATE CONTRACTOR,Revenue,,,,,,, 
Walsall Council,http://opendatacommunities.org/id/metropolitan-district-council/walsall,WC119-437,31/10/2020,ADULT SOCIAL CARE,ADVANCE HEALTH CARE (UK) LTD,23/10/2020,431.76,73507-Domiciliary Care,THIRD PARTY PAYMENTS,PRIVATE CONTRACTOR,Revenue,,,,,,, 
Walsall Council,http://opendatacommunities.org/id/metropolitan-district-council/walsall,WC119-438,31/10/2020,ADULT SOCIAL CARE,ADVANCE HEALTH CARE (UK) LTD,23/10/2020,431.76,73507-Domiciliary Care,THIRD PARTY PAYMENTS,PRIVATE CONTRACTOR,Revenue,,,,,,, 
Walsall Council,http://opendatacommunities.org/id/metropolitan-district-council/walsall,WC119-439,31/10/2020,ADULT SOCIAL CARE,ADVANCE HEALTH CARE (UK) LTD,23/10/2020,485.73,73507-Domiciliary Care,THIRD PARTY PAYMENTS,PRIVATE CONTRACTOR,Revenue,,,,,,, 
Walsall Council,http://opendatacommunities.org/id/metropolitan-district-council/walsall,WC119-440,31/10/2020,ADULT SOCIAL CARE,ADVANCE HEALTH CARE (UK) LTD,23/10/2020,277.56,73507-Domiciliary Care,THIRD PARTY PAYMENTS,PRIVATE CONTRACTOR,Revenue,,,,,,, 
Walsall Council,http://opendatacommunities.org/id/metropolitan-district-council/walsall,WC119-441,31/10/2020,ADULT SOCIAL CARE,ADVANCE HEALTH CARE (UK) LTD,23/10/2020,485.73,73507-Domiciliary Care,THIRD PARTY PAYMENTS,PRIVATE CONTRACTOR,Revenue,,,,,,, 
Walsall Council,http://opendatacommunities.org/id/metropolitan-district-council/walsall,WC119-442,31/10/2020,ADULT SOCIAL CARE,ADVANCE HEALTH CARE (UK) LTD,23/10/2020,323.82,73507-Domiciliary Care,THIRD PARTY PAYMENTS,PRIVATE CONTRACTOR,Revenue,,,,,,, 
Walsall Council,http://opendatacommunities.org/id/metropolitan-district-council/walsall,WC119-443,31/10/2020,ADULT SOCIAL CARE,ADVANCE HEALTH CARE (UK) LTD,23/10/2020,439.47,73507-Domiciliary Care,THIRD PARTY PAYMENTS,PRIVATE CONTRACTOR,Revenue,,,,,,, 
Walsall Council,http://opendatacommunities.org/id/metropolitan-district-council/walsall,WC119-444,31/10/2020,ADULT SOCIAL CARE,ADVANCE HEALTH CARE (UK) LTD,23/10/2020,701.61,73507-Domiciliary Care,THIRD PARTY PAYMENTS,PRIVATE CONTRACTOR,Revenue,,,,,,, 
Walsall Council,http://opendatacommunities.org/id/metropolitan-district-council/walsall,WC119-445,31/10/2020,ADULT SOCIAL CARE,ADVANCE HEALTH CARE (UK) LTD,23/10/2020,485.73,73507-Domiciliary Care,THIRD PARTY PAYMENTS,PRIVATE CONTRACTOR,Revenue,,,,,,, 
Walsall Council,http://opendatacommunities.org/id/metropolitan-district-council/walsall,WC119-446,31/10/2020,ADULT SOCIAL CARE,ADVANCE HEALTH CARE (UK) LTD,23/10/2020,824.97,73507-Domiciliary Care,THIRD PARTY PAYMENTS,PRIVATE CONTRACTOR,Revenue,,,,,,, 
Walsall Council,http://opendatacommunities.org/id/metropolitan-district-council/walsall,WC119-447,31/10/2020,ADULT SOCIAL CARE,ADVANCE HEALTH CARE (UK) LTD,23/10/2020,485.73,73507-Domiciliary Care,THIRD PARTY PAYMENTS,PRIVATE CONTRACTOR,Revenue,,,,,,, 
Walsall Council,http://opendatacommunities.org/id/metropolitan-district-council/walsall,WC119-448,31/10/2020,ADULT SOCIAL CARE,ADVANCE HEALTH CARE (UK) LTD,23/10/2020,485.73,73507-Domiciliary Care,THIRD PARTY PAYMENTS,PRIVATE CONTRACTOR,Revenue,,,,,,, 
Walsall Council,http://opendatacommunities.org/id/metropolitan-district-council/walsall,WC119-449,31/10/2020,ADULT SOCIAL CARE,ADVANCE HEALTH CARE (UK) LTD,23/10/2020,359.80,73507-Domiciliary Care,THIRD PARTY PAYMENTS,PRIVATE CONTRACTOR,Revenue,,,,,,, 
Walsall Council,http://opendatacommunities.org/id/metropolitan-district-council/walsall,WC119-450,31/10/2020,ADULT SOCIAL CARE,ADVANCE HEALTH CARE (UK) LTD,23/10/2020,404.81,73507-Domiciliary Care,THIRD PARTY PAYMENTS,PRIVATE CONTRACTOR,Revenue,,,,,,, 
Walsall Council,http://opendatacommunities.org/id/metropolitan-district-council/walsall,WC119-451,31/10/2020,ADULT SOCIAL CARE,ADVANCE HEALTH CARE (UK) LTD,23/10/2020,485.80,73507-Domiciliary Care,THIRD PARTY PAYMENTS,PRIVATE CONTRACTOR,Revenue,,,,,,, 
Walsall Council,http://opendatacommunities.org/id/metropolitan-district-council/walsall,WC119-452,31/10/2020,ADULT SOCIAL CARE,ADVANCE HEALTH CARE (UK) LTD,23/10/2020,501.15,73507-Domiciliary Care,THIRD PARTY PAYMENTS,PRIVATE CONTRACTOR,Revenue,,,,,,, 
Walsall Council,http://opendatacommunities.org/id/metropolitan-district-council/walsall,WC119-453,31/10/2020,ADULT SOCIAL CARE,ADVANCE HEALTH CARE (UK) LTD,23/10/2020,431.76,73507-Domiciliary Care,THIRD PARTY PAYMENTS,PRIVATE CONTRACTOR,Revenue,,,,,,, 
Walsall Council,http://opendatacommunities.org/id/metropolitan-district-council/walsall,WC119-454,31/10/2020,ADULT SOCIAL CARE,ADVANCE HEALTH CARE (UK) LTD,23/10/2020,431.76,73507-Domiciliary Care,THIRD PARTY PAYMENTS,PRIVATE CONTRACTOR,Revenue,,,,,,, 
Walsall Council,http://opendatacommunities.org/id/metropolitan-district-council/walsall,WC119-455,31/10/2020,ADULT SOCIAL CARE,ADVANCE HEALTH CARE (UK) LTD,23/10/2020,431.76,73507-Domiciliary Care,THIRD PARTY PAYMENTS,PRIVATE CONTRACTOR,Revenue,,,,,,, 
Walsall Council,http://opendatacommunities.org/id/metropolitan-district-council/walsall,WC119-456,31/10/2020,ADULT SOCIAL CARE,ADVANCE HEALTH CARE (UK) LTD,23/10/2020,431.76,73507-Domiciliary Care,THIRD PARTY PAYMENTS,PRIVATE CONTRACTOR,Revenue,,,,,,, 
Walsall Council,http://opendatacommunities.org/id/metropolitan-district-council/walsall,WC119-457,31/10/2020,ADULT SOCIAL CARE,ADVANCE HEALTH CARE (UK) LTD,23/10/2020,539.70,73507-Domiciliary Care,THIRD PARTY PAYMENTS,PRIVATE CONTRACTOR,Revenue,,,,,,, 
Walsall Council,http://opendatacommunities.org/id/metropolitan-district-council/walsall,WC119-458,31/10/2020,ADULT SOCIAL CARE,ADVANCE HEALTH CARE (UK) LTD,23/10/2020,431.76,73507-Domiciliary Care,THIRD PARTY PAYMENTS,PRIVATE CONTRACTOR,Revenue,,,,,,, 
Walsall Council,http://opendatacommunities.org/id/metropolitan-district-council/walsall,WC119-459,31/10/2020,ADULT SOCIAL CARE,ADVANCE HEALTH CARE (UK) LTD,23/10/2020,462.60,73507-Domiciliary Care,THIRD PARTY PAYMENTS,PRIVATE CONTRACTOR,Revenue,,,,,,, 
Walsall Council,http://opendatacommunities.org/id/metropolitan-district-council/walsall,WC119-460,31/10/2020,ADULT SOCIAL CARE,ADVANCE HEALTH CARE (UK) LTD,23/10/2020,524.28,73507-Domiciliary Care,THIRD PARTY PAYMENTS,PRIVATE CONTRACTOR,Revenue,,,,,,, 
Walsall Council,http://opendatacommunities.org/id/metropolitan-district-council/walsall,WC119-461,31/10/2020,ADULT SOCIAL CARE,ADVANCE HEALTH CARE (UK) LTD,23/10/2020,593.88,73507-Domiciliary Care,THIRD PARTY PAYMENTS,PRIVATE CONTRACTOR,Revenue,,,,,,, 
Walsall Council,http://opendatacommunities.org/id/metropolitan-district-council/walsall,WC119-462,31/10/2020,ADULT SOCIAL CARE,ADVANCE HEALTH CARE (UK) LTD,23/10/2020,485.73,73507-Domiciliary Care,THIRD PARTY PAYMENTS,PRIVATE CONTRACTOR,Revenue,,,,,,, 
Walsall Council,http://opendatacommunities.org/id/metropolitan-district-council/walsall,WC119-463,31/10/2020,ADULT SOCIAL CARE,ADVANCE HEALTH CARE (UK) LTD,23/10/2020,863.52,73507-Domiciliary Care,THIRD PARTY PAYMENTS,PRIVATE CONTRACTOR,Revenue,,,,,,, 
Walsall Council,http://opendatacommunities.org/id/metropolitan-district-council/walsall,WC119-464,31/10/2020,ADULT SOCIAL CARE,ADVANCE HEALTH CARE (UK) LTD,23/10/2020,323.82,73507-Domiciliary Care,THIRD PARTY PAYMENTS,PRIVATE CONTRACTOR,Revenue,,,,,,, 
Walsall Council,http://opendatacommunities.org/id/metropolitan-district-council/walsall,WC119-465,31/10/2020,ADULT SOCIAL CARE,ADVANCE HEALTH CARE (UK) LTD,23/10/2020,431.76,73507-Domiciliary Care,THIRD PARTY PAYMENTS,PRIVATE CONTRACTOR,Revenue,,,,,,, 
Walsall Council,http://opendatacommunities.org/id/metropolitan-district-council/walsall,WC119-466,31/10/2020,ADULT SOCIAL CARE,ADVANCE HEALTH CARE (UK) LTD,23/10/2020,485.73,73507-Domiciliary Care,THIRD PARTY PAYMENTS,PRIVATE CONTRACTOR,Revenue,,,,,,, 
Walsall Council,http://opendatacommunities.org/id/metropolitan-district-council/walsall,WC119-467,31/10/2020,ADULT SOCIAL CARE,ADVANCE HEALTH CARE (UK) LTD,23/10/2020,485.73,73507-Domiciliary Care,THIRD PARTY PAYMENTS,PRIVATE CONTRACTOR,Revenue,,,,,,, 
Walsall Council,http://opendatacommunities.org/id/metropolitan-district-council/walsall,WC119-468,31/10/2020,ADULT SOCIAL CARE,ADVANCE HEALTH CARE (UK) LTD,23/10/2020,377.79,73507-Domiciliary Care,THIRD PARTY PAYMENTS,PRIVATE CONTRACTOR,Revenue,,,,,,, 
Walsall Council,http://opendatacommunities.org/id/metropolitan-district-council/walsall,WC119-469,31/10/2020,ADULT SOCIAL CARE,ADVANCE HEALTH CARE (UK) LTD,23/10/2020,300.69,73507-Domiciliary Care,THIRD PARTY PAYMENTS,PRIVATE CONTRACTOR,Revenue,,,,,,, 
Walsall Council,http://opendatacommunities.org/id/metropolitan-district-council/walsall,WC119-470,31/10/2020,ADULT SOCIAL CARE,ADVANCE HEALTH CARE (UK) LTD,23/10/2020,377.79,73507-Domiciliary Care,THIRD PARTY PAYMENTS,PRIVATE CONTRACTOR,Revenue,,,,,,, 
Walsall Council,http://opendatacommunities.org/id/metropolitan-district-council/walsall,WC119-471,31/10/2020,ADULT SOCIAL CARE,ADVANCE HEALTH CARE (UK) LTD,23/10/2020,485.73,73507-Domiciliary Care,THIRD PARTY PAYMENTS,PRIVATE CONTRACTOR,Revenue,,,,,,, 
Walsall Council,http://opendatacommunities.org/id/metropolitan-district-council/walsall,WC119-472,31/10/2020,ADULT SOCIAL CARE,ADVANCE HEALTH CARE (UK) LTD,23/10/2020,485.73,73507-Domiciliary Care,THIRD PARTY PAYMENTS,PRIVATE CONTRACTOR,Revenue,,,,,,, 
Walsall Council,http://opendatacommunities.org/id/metropolitan-district-council/walsall,WC119-473,31/10/2020,ADULT SOCIAL CARE,ADVANCE HEALTH CARE (UK) LTD,23/10/2020,639.93,73507-Domiciliary Care,THIRD PARTY PAYMENTS,PRIVATE CONTRACTOR,Revenue,,,,,,, 
Walsall Council,http://opendatacommunities.org/id/metropolitan-district-council/walsall,WC119-474,31/10/2020,ADULT SOCIAL CARE,ADVANCE HEALTH CARE (UK) LTD,23/10/2020,431.76,73507-Domiciliary Care,THIRD PARTY PAYMENTS,PRIVATE CONTRACTOR,Revenue,,,,,,, 
Walsall Council,http://opendatacommunities.org/id/metropolitan-district-council/walsall,WC119-475,31/10/2020,ADULT SOCIAL CARE,ADVANCE HEALTH CARE (UK) LTD,23/10/2020,323.82,73507-Domiciliary Care,THIRD PARTY PAYMENTS,PRIVATE CONTRACTOR,Revenue,,,,,,, 
Walsall Council,http://opendatacommunities.org/id/metropolitan-district-council/walsall,WC119-476,31/10/2020,ADULT SOCIAL CARE,ADVANCE HEALTH CARE (UK) LTD,23/10/2020,431.76,73507-Domiciliary Care,THIRD PARTY PAYMENTS,PRIVATE CONTRACTOR,Revenue,,,,,,, 
Walsall Council,http://opendatacommunities.org/id/metropolitan-district-council/walsall,WC119-477,31/10/2020,ADULT SOCIAL CARE,ADVANCE HEALTH CARE (UK) LTD,23/10/2020,485.73,73507-Domiciliary Care,THIRD PARTY PAYMENTS,PRIVATE CONTRACTOR,Revenue,,,,,,, 
Walsall Council,http://opendatacommunities.org/id/metropolitan-district-council/walsall,WC119-478,31/10/2020,ADULT SOCIAL CARE,ADVANCE HEALTH CARE (UK) LTD,23/10/2020,593.67,73507-Domiciliary Care,THIRD PARTY PAYMENTS,PRIVATE CONTRACTOR,Revenue,,,,,,, 
Walsall Council,http://opendatacommunities.org/id/metropolitan-district-council/walsall,WC119-479,31/10/2020,ADULT SOCIAL CARE,ADVANCE HEALTH CARE (UK) LTD,23/10/2020,377.79,73507-Domiciliary Care,THIRD PARTY PAYMENTS,PRIVATE CONTRACTOR,Revenue,,,,,,, 
Walsall Council,http://opendatacommunities.org/id/metropolitan-district-council/walsall,WC119-480,31/10/2020,ADULT SOCIAL CARE,ADVANCE HEALTH CARE (UK) LTD,23/10/2020,359.80,73507-Domiciliary Care,THIRD PARTY PAYMENTS,PRIVATE CONTRACTOR,Revenue,,,,,,, 
Walsall Council,http://opendatacommunities.org/id/metropolitan-district-council/walsall,WC119-481,31/10/2020,ADULT SOCIAL CARE,ADVANCE HEALTH CARE (UK) LTD,28/10/2020,485.73,73025-Professional Services-Priv Contractor & Other Agencies,THIRD PARTY PAYMENTS,PRIVATE CONTRACTOR,Revenue,,,,,,, 
Walsall Council,http://opendatacommunities.org/id/metropolitan-district-council/walsall,WC119-482,31/10/2020,ADULT SOCIAL CARE,ADVANCE HEALTH CARE (UK) LTD,28/10/2020,485.73,73025-Professional Services-Priv Contractor & Other Agencies,THIRD PARTY PAYMENTS,PRIVATE CONTRACTOR,Revenue,,,,,,, 
Walsall Council,http://opendatacommunities.org/id/metropolitan-district-council/walsall,WC119-483,31/10/2020,ADULT SOCIAL CARE,ADVANCE HEALTH CARE (UK) LTD,28/10/2020,262.14,73025-Professional Services-Priv Contractor & Other Agencies,THIRD PARTY PAYMENTS,PRIVATE CONTRACTOR,Revenue,,,,,,, 
Walsall Council,http://opendatacommunities.org/id/metropolitan-district-council/walsall,WC119-484,31/10/2020,ADULT SOCIAL CARE,ADVANCE HEALTH CARE (UK) LTD,28/10/2020,485.73,73025-Professional Services-Priv Contractor & Other Agencies,THIRD PARTY PAYMENTS,PRIVATE CONTRACTOR,Revenue,,,,,,, 
Walsall Council,http://opendatacommunities.org/id/metropolitan-district-council/walsall,WC119-485,31/10/2020,ADULT SOCIAL CARE,ADVANCE HEALTH CARE (UK) LTD,28/10/2020,485.73,73025-Professional Services-Priv Contractor & Other Agencies,THIRD PARTY PAYMENTS,PRIVATE CONTRACTOR,Revenue,,,,,,, 
Walsall Council,http://opendatacommunities.org/id/metropolitan-district-council/walsall,WC119-486,31/10/2020,ADULT SOCIAL CARE,ADVANCE HEALTH CARE (UK) LTD,28/10/2020,485.73,73025-Professional Services-Priv Contractor & Other Agencies,THIRD PARTY PAYMENTS,PRIVATE CONTRACTOR,Revenue,,,,,,, 
Walsall Council,http://opendatacommunities.org/id/metropolitan-district-council/walsall,WC119-487,31/10/2020,ADULT SOCIAL CARE,ADVANCE HEALTH CARE (UK) LTD,28/10/2020,562.83,73025-Professional Services-Priv Contractor & Other Agencies,THIRD PARTY PAYMENTS,PRIVATE CONTRACTOR,Revenue,,,,,,, 
Walsall Council,http://opendatacommunities.org/id/metropolitan-district-council/walsall,WC119-488,31/10/2020,ADULT SOCIAL CARE,ADVANCE HEALTH CARE (UK) LTD,28/10/2020,485.73,73025-Professional Services-Priv Contractor & Other Agencies,THIRD PARTY PAYMENTS,PRIVATE CONTRACTOR,Revenue,,,,,,, 
Walsall Council,http://opendatacommunities.org/id/metropolitan-district-council/walsall,WC119-489,31/10/2020,ADULT SOCIAL CARE,ADVANCE HEALTH CARE (UK) LTD,28/10/2020,485.73,73025-Professional Services-Priv Contractor & Other Agencies,THIRD PARTY PAYMENTS,PRIVATE CONTRACTOR,Revenue,,,,,,, 
Walsall Council,http://opendatacommunities.org/id/metropolitan-district-council/walsall,WC119-490,31/10/2020,ADULT SOCIAL CARE,ADVANCE HEALTH CARE (UK) LTD,28/10/2020,377.79,73025-Professional Services-Priv Contractor & Other Agencies,THIRD PARTY PAYMENTS,PRIVATE CONTRACTOR,Revenue,,,,,,, 
Walsall Council,http://opendatacommunities.org/id/metropolitan-district-council/walsall,WC119-491,31/10/2020,ADULT SOCIAL CARE,ADVANCE HEALTH CARE (UK) LTD,28/10/2020,447.18,73025-Professional Services-Priv Contractor & Other Agencies,THIRD PARTY PAYMENTS,PRIVATE CONTRACTOR,Revenue,,,,,,, 
Walsall Council,http://opendatacommunities.org/id/metropolitan-district-council/walsall,WC119-492,31/10/2020,ADULT SOCIAL CARE,ADVANCE HEALTH CARE (UK) LTD,28/10/2020,485.73,73025-Professional Services-Priv Contractor & Other Agencies,THIRD PARTY PAYMENTS,PRIVATE CONTRACTOR,Revenue,,,,,,, 
Walsall Council,http://opendatacommunities.org/id/metropolitan-district-council/walsall,WC119-493,31/10/2020,ADULT SOCIAL CARE,ADVANCE HEALTH CARE (UK) LTD,28/10/2020,485.73,73025-Professional Services-Priv Contractor & Other Agencies,THIRD PARTY PAYMENTS,PRIVATE CONTRACTOR,Revenue,,,,,,, 
Walsall Council,http://opendatacommunities.org/id/metropolitan-district-council/walsall,WC119-494,31/10/2020,ADULT SOCIAL CARE,ADVANCE HEALTH CARE (UK) LTD,28/10/2020,485.73,73025-Professional Services-Priv Contractor & Other Agencies,THIRD PARTY PAYMENTS,PRIVATE CONTRACTOR,Revenue,,,,,,, 
Walsall Council,http://opendatacommunities.org/id/metropolitan-district-council/walsall,WC119-495,31/10/2020,ADULT SOCIAL CARE,ADVANCE HEALTH CARE (UK) LTD,28/10/2020,485.73,73025-Professional Services-Priv Contractor & Other Agencies,THIRD PARTY PAYMENTS,PRIVATE CONTRACTOR,Revenue,,,,,,, 
Walsall Council,http://opendatacommunities.org/id/metropolitan-district-council/walsall,WC119-496,31/10/2020,ADULT SOCIAL CARE,ADVANCE HEALTH CARE (UK) LTD,28/10/2020,485.73,73025-Professional Services-Priv Contractor & Other Agencies,THIRD PARTY PAYMENTS,PRIVATE CONTRACTOR,Revenue,,,,,,, 
Walsall Council,http://opendatacommunities.org/id/metropolitan-district-council/walsall,WC119-497,31/10/2020,ADULT SOCIAL CARE,ADVANCE HEALTH CARE (UK) LTD,28/10/2020,485.73,73025-Professional Services-Priv Contractor & Other Agencies,THIRD PARTY PAYMENTS,PRIVATE CONTRACTOR,Revenue,,,,,,, 
Walsall Council,http://opendatacommunities.org/id/metropolitan-district-council/walsall,WC119-498,31/10/2020,ADULT SOCIAL CARE,ADVANCE HEALTH CARE (UK) LTD,28/10/2020,485.73,73025-Professional Services-Priv Contractor & Other Agencies,THIRD PARTY PAYMENTS,PRIVATE CONTRACTOR,Revenue,,,,,,, 
Walsall Council,http://opendatacommunities.org/id/metropolitan-district-council/walsall,WC119-499,31/10/2020,ADULT SOCIAL CARE,ADVANCE HEALTH CARE (UK) LTD,28/10/2020,485.73,73025-Professional Services-Priv Contractor & Other Agencies,THIRD PARTY PAYMENTS,PRIVATE CONTRACTOR,Revenue,,,,,,, 
Walsall Council,http://opendatacommunities.org/id/metropolitan-district-council/walsall,WC119-500,31/10/2020,ADULT SOCIAL CARE,ADVANCE HEALTH CARE (UK) LTD,28/10/2020,485.73,73025-Professional Services-Priv Contractor & Other Agencies,THIRD PARTY PAYMENTS,PRIVATE CONTRACTOR,Revenue,,,,,,, 
Walsall Council,http://opendatacommunities.org/id/metropolitan-district-council/walsall,WC119-501,31/10/2020,ADULT SOCIAL CARE,ADVANCE HEALTH CARE (UK) LTD,28/10/2020,308.40,73025-Professional Services-Priv Contractor & Other Agencies,THIRD PARTY PAYMENTS,PRIVATE CONTRACTOR,Revenue,,,,,,, 
Walsall Council,http://opendatacommunities.org/id/metropolitan-district-council/walsall,WC119-502,31/10/2020,ADULT SOCIAL CARE,ADVANCE HEALTH CARE (UK) LTD,29/10/2020,485.73,73025-Professional Services-Priv Contractor & Other Agencies,THIRD PARTY PAYMENTS,PRIVATE CONTRACTOR,Revenue,,,,,,, 
Walsall Council,http://opendatacommunities.org/id/metropolitan-district-council/walsall,WC119-503,31/10/2020,ADULT SOCIAL CARE,ADVANCE HEALTH CARE (UK) LTD,29/10/2020,323.82,73025-Professional Services-Priv Contractor & Other Agencies,THIRD PARTY PAYMENTS,PRIVATE CONTRACTOR,Revenue,,,,,,, 
Walsall Council,http://opendatacommunities.org/id/metropolitan-district-council/walsall,WC119-504,31/10/2020,ADULT SOCIAL CARE,ADVANCE HEALTH CARE (UK) LTD,29/10/2020,485.73,73025-Professional Services-Priv Contractor & Other Agencies,THIRD PARTY PAYMENTS,PRIVATE CONTRACTOR,Revenue,,,,,,, 
Walsall Council,http://opendatacommunities.org/id/metropolitan-district-council/walsall,WC119-505,31/10/2020,ADULT SOCIAL CARE,ADVANCE HEALTH CARE (UK) LTD,29/10/2020,485.73,73025-Professional Services-Priv Contractor & Other Agencies,THIRD PARTY PAYMENTS,PRIVATE CONTRACTOR,Revenue,,,,,,, 
Walsall Council,http://opendatacommunities.org/id/metropolitan-district-council/walsall,WC119-506,31/10/2020,ADULT SOCIAL CARE,ADVANCE HEALTH CARE (UK) LTD,29/10/2020,485.73,73025-Professional Services-Priv Contractor & Other Agencies,THIRD PARTY PAYMENTS,PRIVATE CONTRACTOR,Revenue,,,,,,, 
Walsall Council,http://opendatacommunities.org/id/metropolitan-district-council/walsall,WC119-507,31/10/2020,ADULT SOCIAL CARE,ADVANCE HEALTH CARE (UK) LTD,29/10/2020,308.40,73025-Professional Services-Priv Contractor & Other Agencies,THIRD PARTY PAYMENTS,PRIVATE CONTRACTOR,Revenue,,,,,,, 
Walsall Council,http://opendatacommunities.org/id/metropolitan-district-council/walsall,WC119-508,31/10/2020,ADULT SOCIAL CARE,ADVANCE PHARMA LTD T/A PLECK PHARMACY,26/10/2020,655.20,63253-Payment to Contractors,SUPPLIES & SERVICES,SERVICES,Revenue,,,,,,, 
Walsall Council,http://opendatacommunities.org/id/metropolitan-district-council/walsall,WC119-509,31/10/2020,ADULT SOCIAL CARE,ADVANCE PHARMA LTD T/A PLECK PHARMACY,26/10/2020,734.18,63253-Payment to Contractors,SUPPLIES & SERVICES,SERVICES,Revenue,,,,,,, 
Walsall Council,http://opendatacommunities.org/id/metropolitan-district-council/walsall,WC119-510,31/10/2020,ADULT SOCIAL CARE,ADVANCE PHARMA LTD T/A PLECK PHARMACY,26/10/2020,655.20,63253-Payment to Contractors,SUPPLIES & SERVICES,SERVICES,Revenue,,,,,,, 
Walsall Council,http://opendatacommunities.org/id/metropolitan-district-council/walsall,WC119-511,31/10/2020,RESOURCES AND TRANSFORMATION,ADVANCED CHILD CARE ASSESSMENTS LTD,29/10/2020,805.86,73014-School Only Payments - Catering,THIRD PARTY PAYMENTS,INDEPENDENT UNIT WITHIN COUNCIL,Revenue,,,,,,, 
Walsall Council,http://opendatacommunities.org/id/metropolitan-district-council/walsall,WC119-512,31/10/2020,CHILDRENS,ADVENTURELAND DAY NURSERY,16/10/2020,319.20,66505-Other-Grants to Other Orgs,SUPPLIES & SERVICES,GRANTS (EXP) & SUBSCRIPTIONS,Revenue,,,,,,, 
Walsall Council,http://opendatacommunities.org/id/metropolitan-district-council/walsall,WC119-513,31/10/2020,CHILDRENS,ADVENTURELAND DAY NURSERY,23/10/2020,640.00,77200-Transfer Payments-Other Schoolchildren/Student Related Items,TRANSFER PAYMENTS,SCHOOLCHILDREN/STUDENTS,Revenue,,,,,,, 
Walsall Council,http://opendatacommunities.org/id/metropolitan-district-council/walsall,WC119-514,31/10/2020,ADULT SOCIAL CARE,ADVINIA CARE HOMES LTD - HAMMERWICH HALL CARE HOME,22/10/2020,"2,044.00",73500-Residential,THIRD PARTY PAYMENTS,PRIVATE CONTRACTOR,Revenue,,,,,,, 
Walsall Council,http://opendatacommunities.org/id/metropolitan-district-council/walsall,WC119-515,31/10/2020,ADULT SOCIAL CARE,ADVINIA CARE HOMES LTD - HAMMERWICH HALL CARE HOME,22/10/2020,"2,308.00",73501-Residential EMI,THIRD PARTY PAYMENTS,PRIVATE CONTRACTOR,Revenue,,,,,,, 
Walsall Council,http://opendatacommunities.org/id/metropolitan-district-council/walsall,WC119-516,31/10/2020,ADULT SOCIAL CARE,ADVINIA CARE HOMES LTD - HAMMERWICH HALL CARE HOME,30/10/2020,"3,099.24",73025-Professional Services-Priv Contractor & Other Agencies,THIRD PARTY PAYMENTS,PRIVATE CONTRACTOR,Revenue,,,,,,, 
Walsall Council,http://opendatacommunities.org/id/metropolitan-district-council/walsall,WC119-517,31/10/2020,ADULT SOCIAL CARE,ADVOCACY MATTERS LIMITED,30/10/2020,"14,709.64",73025-Professional Services-Priv Contractor & Other Agencies,THIRD PARTY PAYMENTS,PRIVATE CONTRACTOR,Revenue,,,,,,, 
Walsall Council,http://opendatacommunities.org/id/metropolitan-district-council/walsall,WC119-518,31/10/2020,RESOURCES AND TRANSFORMATION,AFRICAN FRENCH SPEAKING COMMUNITY SUPPORT,05/10/2020,"4,892.90",66500-Grants to Other Orgs,ESF Community Grants,SUPPLIES & SERVICES,Revenue,,,,,,, 
Walsall Council,http://opendatacommunities.org/id/metropolitan-district-council/walsall,WC119-519,31/10/2020,ECONOMY & ENVIRONMENT,AGRIGEM LTD,22/10/2020,-327.20,60500-Materials,SUPPLIES & SERVICES,EQUIPMENT FURNITURE & MATERIALS,Revenue,,,,,,, 
Walsall Council,http://opendatacommunities.org/id/metropolitan-district-council/walsall,WC119-520,31/10/2020,ECONOMY & ENVIRONMENT,AGRIGEM LTD,22/10/2020,320.00,60500-Materials,SUPPLIES & SERVICES,EQUIPMENT FURNITURE & MATERIALS,Revenue,,,,,,, 
Walsall Council,http://opendatacommunities.org/id/metropolitan-district-council/walsall,WC119-521,31/10/2020,ECONOMY & ENVIRONMENT,AGRIGEM LTD,22/10/2020,327.20,60500-Materials,SUPPLIES & SERVICES,EQUIPMENT FURNITURE & MATERIALS,Revenue,,,,,,, 
Walsall Council,http://opendatacommunities.org/id/metropolitan-district-council/walsall,WC119-522,31/10/2020,CHILDRENS,ALASDAIR CANT & ASSOCIATES LIMITED,19/10/2020,"16,935.75",73025-Professional Services-Priv Contractor & Other Agencies,THIRD PARTY PAYMENTS,PRIVATE CONTRACTOR,Revenue,,,,,,, 
Walsall Council,http://opendatacommunities.org/id/metropolitan-district-council/walsall,WC119-523,31/10/2020,ECONOMY & ENVIRONMENT,ALDERBROOK HEALTHCARE LTD,05/10/2020,"3,391.70",63000-Professional Fees & Services,Coroners Service,SUPPLIES & SERVICES,Revenue,,,,,,, 
Walsall Council,http://opendatacommunities.org/id/metropolitan-district-council/walsall,WC119-524,31/10/2020,ADULT SOCIAL CARE,ALDERGROVE MANOR LTD,22/10/2020,"2,308.00",73501-Residential EMI,THIRD PARTY PAYMENTS,PRIVATE CONTRACTOR,Revenue,,,,,,, 
Walsall Council,http://opendatacommunities.org/id/metropolitan-district-council/walsall,WC119-525,31/10/2020,ADULT SOCIAL CARE,ALDERGROVE MANOR LTD,22/10/2020,"2,308.00",73501-Residential EMI,THIRD PARTY PAYMENTS,PRIVATE CONTRACTOR,Revenue,,,,,,, 
Walsall Council,http://opendatacommunities.org/id/metropolitan-district-council/walsall,WC119-526,31/10/2020,CHILDRENS,ALDRIDGE & BARONS LIMITED,08/10/2020,"1,447.80",52000-Hire of Vehicle with Driver,Home To School Transport,TRANSPORT,Revenue,,,,,,, 
Walsall Council,http://opendatacommunities.org/id/metropolitan-district-council/walsall,WC119-527,31/10/2020,CHILDRENS,ALDRIDGE & BARONS LIMITED,08/10/2020,"1,749.60",52000-Hire of Vehicle with Driver,Home To School Transport,TRANSPORT,Revenue,,,,,,, 
Walsall Council,http://opendatacommunities.org/id/metropolitan-district-council/walsall,WC119-528,31/10/2020,CHILDRENS,ALDRIDGE & BARONS LIMITED,08/10/2020,"1,440.00",52000-Hire of Vehicle with Driver,Home To School Transport,TRANSPORT,Revenue,,,,,,, 
Walsall Council,http://opendatacommunities.org/id/metropolitan-district-council/walsall,WC119-529,31/10/2020,CHILDRENS,ALDRIDGE & BARONS LIMITED,08/10/2020,"1,872.00",52000-Hire of Vehicle with Driver,Home To School Transport,TRANSPORT,Revenue,,,,,,, 
Walsall Council,http://opendatacommunities.org/id/metropolitan-district-council/walsall,WC119-530,31/10/2020,CHILDRENS,ALDRIDGE & BARONS LIMITED,08/10/2020,"1,602.25",52000-Hire of Vehicle with Driver,Home To School Transport,TRANSPORT,Revenue,,,,,,, 
Walsall Council,http://opendatacommunities.org/id/metropolitan-district-council/walsall,WC119-531,31/10/2020,CHILDRENS,ALDRIDGE & BARONS LIMITED,08/10/2020,894.60,52000-Hire of Vehicle with Driver,Home To School Transport,TRANSPORT,Revenue,,,,,,, 
Walsall Council,http://opendatacommunities.org/id/metropolitan-district-council/walsall,WC119-532,31/10/2020,CHILDRENS,ALDRIDGE & BARONS LIMITED,08/10/2020,"1,268.40",52000-Hire of Vehicle with Driver,Home To School Transport,TRANSPORT,Revenue,,,,,,, 
Walsall Council,http://opendatacommunities.org/id/metropolitan-district-council/walsall,WC119-533,31/10/2020,CHILDRENS,ALDRIDGE & BARONS LIMITED,08/10/2020,"1,440.00",52000-Hire of Vehicle with Driver,Home To School Transport,TRANSPORT,Revenue,,,,,,, 
Walsall Council,http://opendatacommunities.org/id/metropolitan-district-council/walsall,WC119-534,31/10/2020,CHILDRENS,ALDRIDGE & BARONS LIMITED,08/10/2020,"1,487.70",52000-Hire of Vehicle with Driver,Home To School Transport,TRANSPORT,Revenue,,,,,,, 
Walsall Council,http://opendatacommunities.org/id/metropolitan-district-council/walsall,WC119-535,31/10/2020,CHILDRENS,ALDRIDGE & BARONS LIMITED,08/10/2020,"2,172.60",52000-Hire of Vehicle with Driver,Home To School Transport,TRANSPORT,Revenue,,,,,,, 
Walsall Council,http://opendatacommunities.org/id/metropolitan-district-council/walsall,WC119-536,31/10/2020,CHILDRENS,ALDRIDGE & BARONS LIMITED,08/10/2020,"1,862.00",52000-Hire of Vehicle with Driver,Home To School Transport,TRANSPORT,Revenue,,,,,,, 
Walsall Council,http://opendatacommunities.org/id/metropolitan-district-council/walsall,WC119-537,31/10/2020,CHILDRENS,ALDRIDGE & BARONS LIMITED,08/10/2020,"1,062.00",52000-Hire of Vehicle with Driver,Home To School Transport,TRANSPORT,Revenue,,,,,,, 
Walsall Council,http://opendatacommunities.org/id/metropolitan-district-council/walsall,WC119-538,31/10/2020,CHILDRENS,ALDRIDGE & BARONS LIMITED,08/10/2020,696.00,52000-Hire of Vehicle with Driver,Home To School Transport,TRANSPORT,Revenue,,,,,,, 
Walsall Council,http://opendatacommunities.org/id/metropolitan-district-council/walsall,WC119-539,31/10/2020,CHILDRENS,ALDRIDGE & BARONS LIMITED,08/10/2020,"1,083.00",52000-Hire of Vehicle with Driver,Home To School Transport,TRANSPORT,Revenue,,,,,,, 
Walsall Council,http://opendatacommunities.org/id/metropolitan-district-council/walsall,WC119-540,31/10/2020,CHILDRENS,ALDRIDGE & BARONS LIMITED,08/10/2020,"1,786.00",52000-Hire of Vehicle with Driver,Home To School Transport,TRANSPORT,Revenue,,,,,,, 
Walsall Council,http://opendatacommunities.org/id/metropolitan-district-council/walsall,WC119-541,31/10/2020,CHILDRENS,ALDRIDGE & BARONS LIMITED,08/10/2020,"1,428.80",52000-Hire of Vehicle with Driver,Home To School Transport,TRANSPORT,Revenue,,,,,,, 
Walsall Council,http://opendatacommunities.org/id/metropolitan-district-council/walsall,WC119-542,31/10/2020,CHILDRENS,ALDRIDGE & BARONS LIMITED,08/10/2020,"1,896.00",52000-Hire of Vehicle with Driver,Home To School Transport,TRANSPORT,Revenue,,,,,,, 
Walsall Council,http://opendatacommunities.org/id/metropolitan-district-council/walsall,WC119-543,31/10/2020,CHILDRENS,ALDRIDGE & BARONS LIMITED,08/10/2020,350.00,52000-Hire of Vehicle with Driver,Home To School Transport,TRANSPORT,Revenue,,,,,,, 
Walsall Council,http://opendatacommunities.org/id/metropolitan-district-council/walsall,WC119-544,31/10/2020,CHILDRENS,ALDRIDGE & BARONS LIMITED,08/10/2020,"1,436.40",52000-Hire of Vehicle with Driver,Home To School Transport,TRANSPORT,Revenue,,,,,,, 
Walsall Council,http://opendatacommunities.org/id/metropolitan-district-council/walsall,WC119-545,31/10/2020,CHILDRENS,ALDRIDGE & BARONS LIMITED,08/10/2020,"1,900.00",52000-Hire of Vehicle with Driver,Home To School Transport,TRANSPORT,Revenue,,,,,,, 
Walsall Council,http://opendatacommunities.org/id/metropolitan-district-council/walsall,WC119-546,31/10/2020,CHILDRENS,ALDRIDGE & BARONS LIMITED,08/10/2020,"1,010.00",52000-Hire of Vehicle with Driver,Home To School Transport,TRANSPORT,Revenue,,,,,,, 
Walsall Council,http://opendatacommunities.org/id/metropolitan-district-council/walsall,WC119-547,31/10/2020,CHILDRENS,ALDRIDGE & BARONS LIMITED,08/10/2020,"1,140.00",52000-Hire of Vehicle with Driver,Home To School Transport,TRANSPORT,Revenue,,,,,,, 
Walsall Council,http://opendatacommunities.org/id/metropolitan-district-council/walsall,WC119-548,31/10/2020,CHILDRENS,ALDRIDGE & BARONS LIMITED,08/10/2020,"1,725.28",52000-Hire of Vehicle with Driver,Home To School Transport,TRANSPORT,Revenue,,,,,,, 
Walsall Council,http://opendatacommunities.org/id/metropolitan-district-council/walsall,WC119-549,31/10/2020,CHILDRENS,ALDRIDGE & BARONS LIMITED,08/10/2020,"2,400.00",52000-Hire of Vehicle with Driver,Home To School Transport,TRANSPORT,Revenue,,,,,,, 
Walsall Council,http://opendatacommunities.org/id/metropolitan-district-council/walsall,WC119-550,31/10/2020,CHILDRENS,ALDRIDGE & BARONS LIMITED,08/10/2020,"1,462.00",52000-Hire of Vehicle with Driver,Home To School Transport,TRANSPORT,Revenue,,,,,,, 
Walsall Council,http://opendatacommunities.org/id/metropolitan-district-council/walsall,WC119-551,31/10/2020,CHILDRENS,ALDRIDGE & BARONS LIMITED,08/10/2020,"1,325.44",52000-Hire of Vehicle with Driver,Home To School Transport,TRANSPORT,Revenue,,,,,,, 
Walsall Council,http://opendatacommunities.org/id/metropolitan-district-council/walsall,WC119-552,31/10/2020,CHILDRENS,ALDRIDGE & BARONS LIMITED,08/10/2020,"1,140.00",52000-Hire of Vehicle with Driver,Home To School Transport,TRANSPORT,Revenue,,,,,,, 
Walsall Council,http://opendatacommunities.org/id/metropolitan-district-council/walsall,WC119-553,31/10/2020,CHILDRENS,ALDRIDGE & BARONS LIMITED,12/10/2020,"3,825.00",52000-Hire of Vehicle with Driver,TRANSPORT,DIRECT TRANSPORT COSTS,Revenue,,,,,,, 
Walsall Council,http://opendatacommunities.org/id/metropolitan-district-council/walsall,WC119-554,31/10/2020,ADULT SOCIAL CARE,ALEXANDRA HOUSE CARE SERVICES LTD T/A STONEBRIDGE NURSING HOME,22/10/2020,"7,361.12",73500-Residential,THIRD PARTY PAYMENTS,PRIVATE CONTRACTOR,Revenue,,,,,,, 
Walsall Council,http://opendatacommunities.org/id/metropolitan-district-council/walsall,WC119-555,31/10/2020,CHILDRENS CAPITAL,ALFRED BAGNALL & SONS (MIDLANDS) LTD,15/10/2020,"1,242.00",01006-Site Works Contractors,CAPITAL,"NEW CONSTRUCTION,CONVERSION & RENOVATION",Revenue,,,,,,, 
Walsall Council,http://opendatacommunities.org/id/metropolitan-district-council/walsall,WC119-556,31/10/2020,RESOURCES AND TRANSFORMATION,ALLIED PUBLICITY SERVICES (MANCHESTER) LIMITED T/A APS GROUP,01/10/2020,"1,659.78",62000-External Printing Services,Blue Badges,SUPPLIES & SERVICES,Revenue,,,,,,, 
Walsall Council,http://opendatacommunities.org/id/metropolitan-district-council/walsall,WC119-557,31/10/2020,ADULT SOCIAL CARE,ALMA COURT,05/10/2020,"15,509.15",73025-Professional Services-Priv Contractor & Other Agencies,Transitional Care Support Team,THIRD PARTY PAYMENTS,Revenue,,,,,,, 
Walsall Council,http://opendatacommunities.org/id/metropolitan-district-council/walsall,WC119-558,31/10/2020,ADULT SOCIAL CARE,ALMA COURT,12/10/2020,"6,428.57",73025-Professional Services-Priv Contractor & Other Agencies,THIRD PARTY PAYMENTS,PRIVATE CONTRACTOR,Revenue,,,,,,, 
Walsall Council,http://opendatacommunities.org/id/metropolitan-district-council/walsall,WC119-559,31/10/2020,ADULT SOCIAL CARE,ALMA COURT,12/10/2020,"6,642.86",73025-Professional Services-Priv Contractor & Other Agencies,THIRD PARTY PAYMENTS,PRIVATE CONTRACTOR,Revenue,,,,,,, 
Walsall Council,http://opendatacommunities.org/id/metropolitan-district-council/walsall,WC119-560,31/10/2020,ADULT SOCIAL CARE,ALMA COURT,12/10/2020,"-6,642.86",73025-Professional Services-Priv Contractor & Other Agencies,THIRD PARTY PAYMENTS,PRIVATE CONTRACTOR,Revenue,,,,,,, 
Walsall Council,http://opendatacommunities.org/id/metropolitan-district-council/walsall,WC119-561,31/10/2020,ADULT SOCIAL CARE,ALMA COURT,12/10/2020,"6,642.86",73025-Professional Services-Priv Contractor & Other Agencies,THIRD PARTY PAYMENTS,PRIVATE CONTRACTOR,Revenue,,,,,,, 
Walsall Council,http://opendatacommunities.org/id/metropolitan-district-council/walsall,WC119-562,31/10/2020,ADULT SOCIAL CARE,ALMA COURT,12/10/2020,"6,428.57",73025-Professional Services-Priv Contractor & Other Agencies,THIRD PARTY PAYMENTS,PRIVATE CONTRACTOR,Revenue,,,,,,, 
Walsall Council,http://opendatacommunities.org/id/metropolitan-district-council/walsall,WC119-563,31/10/2020,ADULT SOCIAL CARE,ALMA COURT,20/10/2020,"6,884.58",73025-Professional Services-Priv Contractor & Other Agencies,THIRD PARTY PAYMENTS,PRIVATE CONTRACTOR,Revenue,,,,,,, 
Walsall Council,http://opendatacommunities.org/id/metropolitan-district-council/walsall,WC119-564,31/10/2020,ADULT SOCIAL CARE,ALMA COURT,22/10/2020,"4,737.92",73503-Nursing EMI,THIRD PARTY PAYMENTS,PRIVATE CONTRACTOR,Revenue,,,,,,, 
Walsall Council,http://opendatacommunities.org/id/metropolitan-district-council/walsall,WC119-565,31/10/2020,ADULT SOCIAL CARE,ALMA COURT,22/10/2020,"6,553.60",73500-Residential,THIRD PARTY PAYMENTS,PRIVATE CONTRACTOR,Revenue,,,,,,, 
Walsall Council,http://opendatacommunities.org/id/metropolitan-district-council/walsall,WC119-566,31/10/2020,ADULT SOCIAL CARE,ALMA COURT,22/10/2020,"5,939.20",73503-Nursing EMI,THIRD PARTY PAYMENTS,PRIVATE CONTRACTOR,Revenue,,,,,,, 
Walsall Council,http://opendatacommunities.org/id/metropolitan-district-council/walsall,WC119-567,31/10/2020,ADULT SOCIAL CARE,ALMA COURT,22/10/2020,"1,142.51",73502-Nursing,THIRD PARTY PAYMENTS,PRIVATE CONTRACTOR,Revenue,,,,,,, 
Walsall Council,http://opendatacommunities.org/id/metropolitan-district-council/walsall,WC119-568,31/10/2020,ADULT SOCIAL CARE,ALPHA HEALTH CARE LTD,08/10/2020,"5,766.37",73503-Nursing EMI,Physical Support,THIRD PARTY PAYMENTS,Revenue,,,,,,, 
Walsall Council,http://opendatacommunities.org/id/metropolitan-district-council/walsall,WC119-569,31/10/2020,ADULT SOCIAL CARE,ALPHA HEALTH CARE LTD,08/10/2020,761.01,73503-Nursing EMI,Physical Support,THIRD PARTY PAYMENTS,Revenue,,,,,,, 
Walsall Council,http://opendatacommunities.org/id/metropolitan-district-council/walsall,WC119-570,31/10/2020,ADULT SOCIAL CARE,ALPHA HEALTH CARE LTD,12/10/2020,"7,500.00",73025-Professional Services-Priv Contractor & Other Agencies,THIRD PARTY PAYMENTS,PRIVATE CONTRACTOR,Revenue,,,,,,, 
Walsall Council,http://opendatacommunities.org/id/metropolitan-district-council/walsall,WC119-571,31/10/2020,ADULT SOCIAL CARE,ALPHA HEALTH CARE LTD,12/10/2020,"4,071.43",73025-Professional Services-Priv Contractor & Other Agencies,THIRD PARTY PAYMENTS,PRIVATE CONTRACTOR,Revenue,,,,,,, 
Walsall Council,http://opendatacommunities.org/id/metropolitan-district-council/walsall,WC119-572,31/10/2020,ADULT SOCIAL CARE,ALPHA HEALTH CARE LTD,22/10/2020,"2,881.84",73503-Nursing EMI,THIRD PARTY PAYMENTS,PRIVATE CONTRACTOR,Revenue,,,,,,, 
Walsall Council,http://opendatacommunities.org/id/metropolitan-district-council/walsall,WC119-573,31/10/2020,ADULT SOCIAL CARE,ALPHA HEALTH CARE LTD,22/10/2020,"2,044.00",73500-Residential,THIRD PARTY PAYMENTS,PRIVATE CONTRACTOR,Revenue,,,,,,, 
Walsall Council,http://opendatacommunities.org/id/metropolitan-district-council/walsall,WC119-574,31/10/2020,ADULT SOCIAL CARE,ALPHA HEALTH CARE LTD,22/10/2020,"3,035.72",73501-Residential EMI,THIRD PARTY PAYMENTS,PRIVATE CONTRACTOR,Revenue,,,,,,, 
Walsall Council,http://opendatacommunities.org/id/metropolitan-district-council/walsall,WC119-575,31/10/2020,ADULT SOCIAL CARE,ALPHA HEALTH CARE LTD,22/10/2020,"2,696.00",73503-Nursing EMI,THIRD PARTY PAYMENTS,PRIVATE CONTRACTOR,Revenue,,,,,,, 
Walsall Council,http://opendatacommunities.org/id/metropolitan-district-council/walsall,WC119-576,31/10/2020,ADULT SOCIAL CARE,ALPHA HEALTH CARE LTD,22/10/2020,"2,937.88",73503-Nursing EMI,THIRD PARTY PAYMENTS,PRIVATE CONTRACTOR,Revenue,,,,,,, 
Walsall Council,http://opendatacommunities.org/id/metropolitan-district-council/walsall,WC119-577,31/10/2020,ADULT SOCIAL CARE,ALPHA HEALTH CARE LTD,22/10/2020,"2,308.00",73501-Residential EMI,THIRD PARTY PAYMENTS,PRIVATE CONTRACTOR,Revenue,,,,,,, 
Walsall Council,http://opendatacommunities.org/id/metropolitan-district-council/walsall,WC119-578,31/10/2020,ADULT SOCIAL CARE,ALPHA HEALTH CARE LTD,22/10/2020,"3,180.00",73501-Residential EMI,THIRD PARTY PAYMENTS,PRIVATE CONTRACTOR,Revenue,,,,,,, 
Walsall Council,http://opendatacommunities.org/id/metropolitan-district-council/walsall,WC119-579,31/10/2020,ADULT SOCIAL CARE,ALPHA HEALTH CARE LTD,22/10/2020,"7,000.00",73503-Nursing EMI,THIRD PARTY PAYMENTS,PRIVATE CONTRACTOR,Revenue,,,,,,, 
Walsall Council,http://opendatacommunities.org/id/metropolitan-district-council/walsall,WC119-580,31/10/2020,ADULT SOCIAL CARE,ALPHA HEALTH CARE LTD,22/10/2020,"2,831.48",73501-Residential EMI,THIRD PARTY PAYMENTS,PRIVATE CONTRACTOR,Revenue,,,,,,, 
Walsall Council,http://opendatacommunities.org/id/metropolitan-district-council/walsall,WC119-581,31/10/2020,ADULT SOCIAL CARE,ALPHA HEALTH CARE LTD,22/10/2020,"2,881.80",73503-Nursing EMI,THIRD PARTY PAYMENTS,PRIVATE CONTRACTOR,Revenue,,,,,,, 
Walsall Council,http://opendatacommunities.org/id/metropolitan-district-council/walsall,WC119-582,31/10/2020,ADULT SOCIAL CARE,ALPHA HEALTH CARE LTD,22/10/2020,"2,696.00",73503-Nursing EMI,THIRD PARTY PAYMENTS,PRIVATE CONTRACTOR,Revenue,,,,,,, 
Walsall Council,http://opendatacommunities.org/id/metropolitan-district-council/walsall,WC119-583,31/10/2020,ADULT SOCIAL CARE,ALPHA HEALTH CARE LTD,22/10/2020,514.28,73503-Nursing EMI,THIRD PARTY PAYMENTS,PRIVATE CONTRACTOR,Revenue,,,,,,, 
Walsall Council,http://opendatacommunities.org/id/metropolitan-district-council/walsall,WC119-584,31/10/2020,ADULT SOCIAL CARE,ALPHA HEALTH CARE LTD,22/10/2020,"2,308.00",73501-Residential EMI,THIRD PARTY PAYMENTS,PRIVATE CONTRACTOR,Revenue,,,,,,, 
Walsall Council,http://opendatacommunities.org/id/metropolitan-district-council/walsall,WC119-585,31/10/2020,ADULT SOCIAL CARE,ALPHA HEALTH CARE LTD,22/10/2020,"2,396.00",73502-Nursing,THIRD PARTY PAYMENTS,PRIVATE CONTRACTOR,Revenue,,,,,,, 
Walsall Council,http://opendatacommunities.org/id/metropolitan-district-council/walsall,WC119-586,31/10/2020,ADULT SOCIAL CARE,ALPHA HEALTH CARE LTD,22/10/2020,"2,696.00",73503-Nursing EMI,THIRD PARTY PAYMENTS,PRIVATE CONTRACTOR,Revenue,,,,,,, 
Walsall Council,http://opendatacommunities.org/id/metropolitan-district-council/walsall,WC119-587,31/10/2020,ADULT SOCIAL CARE,ALPHA HEALTH CARE LTD,22/10/2020,"2,696.00",73503-Nursing EMI,THIRD PARTY PAYMENTS,PRIVATE CONTRACTOR,Revenue,,,,,,, 
Walsall Council,http://opendatacommunities.org/id/metropolitan-district-council/walsall,WC119-588,31/10/2020,ADULT SOCIAL CARE,ALPHA HEALTH CARE LTD,22/10/2020,"2,881.80",73503-Nursing EMI,THIRD PARTY PAYMENTS,PRIVATE CONTRACTOR,Revenue,,,,,,, 
Walsall Council,http://opendatacommunities.org/id/metropolitan-district-council/walsall,WC119-589,31/10/2020,ADULT SOCIAL CARE,ALPHA HEALTH CARE LTD,22/10/2020,"3,290.36",73503-Nursing EMI,THIRD PARTY PAYMENTS,PRIVATE CONTRACTOR,Revenue,,,,,,, 
Walsall Council,http://opendatacommunities.org/id/metropolitan-district-council/walsall,WC119-590,31/10/2020,ADULT SOCIAL CARE,ALPHA HEALTH CARE LTD,22/10/2020,"2,837.76",73503-Nursing EMI,THIRD PARTY PAYMENTS,PRIVATE CONTRACTOR,Revenue,,,,,,, 
Walsall Council,http://opendatacommunities.org/id/metropolitan-district-council/walsall,WC119-591,31/10/2020,ADULT SOCIAL CARE,ALPHA HEALTH CARE LTD,22/10/2020,"2,937.76",73502-Nursing,THIRD PARTY PAYMENTS,PRIVATE CONTRACTOR,Revenue,,,,,,, 
Walsall Council,http://opendatacommunities.org/id/metropolitan-district-council/walsall,WC119-592,31/10/2020,ADULT SOCIAL CARE,ALPHA HEALTH CARE LTD,22/10/2020,"3,180.00",73500-Residential,THIRD PARTY PAYMENTS,PRIVATE CONTRACTOR,Revenue,,,,,,, 
Walsall Council,http://opendatacommunities.org/id/metropolitan-district-council/walsall,WC119-593,31/10/2020,ADULT SOCIAL CARE,ALPHA HEALTH CARE LTD,22/10/2020,"3,180.00",73501-Residential EMI,THIRD PARTY PAYMENTS,PRIVATE CONTRACTOR,Revenue,,,,,,,Y
Walsall Council,http://opendatacommunities.org/id/metropolitan-district-council/walsall,WC119-594,31/10/2020,ADULT SOCIAL CARE,ALPHA HEALTH CARE LTD,22/10/2020,"3,066.43",73500-Residential,THIRD PARTY PAYMENTS,PRIVATE CONTRACTOR,Revenue,,,,,,, 
Walsall Council,http://opendatacommunities.org/id/metropolitan-district-council/walsall,WC119-595,31/10/2020,ADULT SOCIAL CARE,ALPHA HEALTH CARE LTD,22/10/2020,"13,156.00",73503-Nursing EMI,THIRD PARTY PAYMENTS,PRIVATE CONTRACTOR,Revenue,,,,,,, 
Walsall Council,http://opendatacommunities.org/id/metropolitan-district-council/walsall,WC119-596,31/10/2020,ADULT SOCIAL CARE,ALPHA HEALTH CARE LTD,22/10/2020,"2,225.57",73501-Residential EMI,THIRD PARTY PAYMENTS,PRIVATE CONTRACTOR,Revenue,,,,,,, 
Walsall Council,http://opendatacommunities.org/id/metropolitan-district-council/walsall,WC119-597,31/10/2020,CHILDRENS,ALPHA TRAINING ACADEMY UK LTD,13/10/2020,"7,242.00",63000-Professional Fees & Services,SUPPLIES & SERVICES,SERVICES,Revenue,,,,,,, 
Walsall Council,http://opendatacommunities.org/id/metropolitan-district-council/walsall,WC119-598,31/10/2020,CHILDRENS,ALPHA TRAINING ACADEMY UK LTD,21/10/2020,"2,625.00",60500-Materials,SUPPLIES & SERVICES,EQUIPMENT FURNITURE & MATERIALS,Revenue,,,,,,, 
Walsall Council,http://opendatacommunities.org/id/metropolitan-district-council/walsall,WC119-599,31/10/2020,RESOURCES AND TRANSFORMATION,ALPHABIOLABS,05/10/2020,389.20,73014-School Only Payments - Catering,Social Care Team,THIRD PARTY PAYMENTS,Revenue,,,,,,, 
Walsall Council,http://opendatacommunities.org/id/metropolitan-district-council/walsall,WC119-600,31/10/2020,RESOURCES AND TRANSFORMATION,ALPHABIOLABS,09/10/2020,268.50,73014-School Only Payments - Catering,Social Care Team,THIRD PARTY PAYMENTS,Revenue,,,,,,, 
Walsall Council,http://opendatacommunities.org/id/metropolitan-district-council/walsall,WC119-601,31/10/2020,ECONOMY & ENVIRONMENT,AMETHYST HORTICULTURE LTD,14/10/2020,"29,830.00",41000-Grounds Maintenance,PREMISES,GROUNDS MAINTENANCE,Revenue,,,,,,, 
Walsall Council,http://opendatacommunities.org/id/metropolitan-district-council/walsall,WC119-602,31/10/2020,ECONOMY & ENVIRONMENT,AMEY LG LIMITED,20/10/2020,597.09,60008-Repair & Maintenance of Furniture & Equipment,SUPPLIES & SERVICES,EQUIPMENT FURNITURE & MATERIALS,Revenue,,,,,,, 
Walsall Council,http://opendatacommunities.org/id/metropolitan-district-council/walsall,WC119-603,31/10/2020,ECONOMY & ENVIRONMENT,AMEY LG LIMITED,27/10/2020,"1,883.77",60500-Materials,SUPPLIES & SERVICES,EQUIPMENT FURNITURE & MATERIALS,Revenue,,,,,,, 
Walsall Council,http://opendatacommunities.org/id/metropolitan-district-council/walsall,WC119-604,31/10/2020,ECONOMY & ENVIRONMENT,AMEY LG LIMITED,29/10/2020,"1,007.12",73025-Professional Services-Priv Contractor & Other Agencies,THIRD PARTY PAYMENTS,PRIVATE CONTRACTOR,Revenue,,,,,,, 
Walsall Council,http://opendatacommunities.org/id/metropolitan-district-council/walsall,WC119-605,31/10/2020,ECONOMY & ENVIRONMENT,AMEY LG LIMITED,29/10/2020,440.38,73025-Professional Services-Priv Contractor & Other Agencies,THIRD PARTY PAYMENTS,PRIVATE CONTRACTOR,Revenue,,,,,,, 
Walsall Council,http://opendatacommunities.org/id/metropolitan-district-council/walsall,WC119-606,31/10/2020,ECONOMY & ENVIRONMENT,AMEY LG LIMITED,29/10/2020,934.39,73025-Professional Services-Priv Contractor & Other Agencies,THIRD PARTY PAYMENTS,PRIVATE CONTRACTOR,Revenue,,,,,,, 
Walsall Council,http://opendatacommunities.org/id/metropolitan-district-council/walsall,WC119-607,31/10/2020,ECONOMY & ENVIRONMENT,AMEY LG LIMITED,29/10/2020,991.21,73025-Professional Services-Priv Contractor & Other Agencies,THIRD PARTY PAYMENTS,PRIVATE CONTRACTOR,Revenue,,,,,,, 
Walsall Council,http://opendatacommunities.org/id/metropolitan-district-council/walsall,WC119-608,31/10/2020,ECONOMY & ENVIRONMENT,AMEY LG LIMITED,29/10/2020,"1,033.83",73025-Professional Services-Priv Contractor & Other Agencies,THIRD PARTY PAYMENTS,PRIVATE CONTRACTOR,Revenue,,,,,,, 
Walsall Council,http://opendatacommunities.org/id/metropolitan-district-council/walsall,WC119-609,31/10/2020,CHILDRENS,AMG NURSING CARE SERVICES,27/10/2020,"1,861.40",63000-Professional Fees & Services,SUPPLIES & SERVICES,SERVICES,Revenue,,,,,,, 
Walsall Council,http://opendatacommunities.org/id/metropolitan-district-council/walsall,WC119-610,31/10/2020,CHILDRENS,AMG NURSING CARE SERVICES,27/10/2020,"2,324.08",63000-Professional Fees & Services,SUPPLIES & SERVICES,SERVICES,Revenue,,,,,,, 
Walsall Council,http://opendatacommunities.org/id/metropolitan-district-council/walsall,WC119-611,31/10/2020,CHILDRENS,AMG NURSING CARE SERVICES,29/10/2020,"2,829.84",63000-Professional Fees & Services,SUPPLIES & SERVICES,SERVICES,Revenue,,,,,,, 
Walsall Council,http://opendatacommunities.org/id/metropolitan-district-council/walsall,WC119-612,31/10/2020,CHILDRENS,AMG NURSING CARE SERVICES,29/10/2020,"2,644.72",63000-Professional Fees & Services,SUPPLIES & SERVICES,SERVICES,Revenue,,,,,,, 
Walsall Council,http://opendatacommunities.org/id/metropolitan-district-council/walsall,WC119-613,31/10/2020,CHILDRENS,AMG NURSING CARE SERVICES,29/10/2020,"2,644.72",63000-Professional Fees & Services,SUPPLIES & SERVICES,SERVICES,Revenue,,,,,,, 
Walsall Council,http://opendatacommunities.org/id/metropolitan-district-council/walsall,WC119-614,31/10/2020,CHILDRENS,AMG NURSING CARE SERVICES,29/10/2020,"2,630.48",63000-Professional Fees & Services,SUPPLIES & SERVICES,SERVICES,Revenue,,,,,,, 
Walsall Council,http://opendatacommunities.org/id/metropolitan-district-council/walsall,WC119-615,31/10/2020,CHILDRENS,AMG NURSING CARE SERVICES,30/10/2020,"2,480.20",63000-Professional Fees & Services,SUPPLIES & SERVICES,SERVICES,Revenue,,,,,,, 
Walsall Council,http://opendatacommunities.org/id/metropolitan-district-council/walsall,WC119-616,31/10/2020,CHILDRENS,AMG NURSING CARE SERVICES,30/10/2020,"2,459.60",63000-Professional Fees & Services,SUPPLIES & SERVICES,SERVICES,Revenue,,,,,,, 
Walsall Council,http://opendatacommunities.org/id/metropolitan-district-council/walsall,WC119-617,31/10/2020,CHILDRENS,AMG NURSING CARE SERVICES,30/10/2020,"2,644.72",63000-Professional Fees & Services,SUPPLIES & SERVICES,SERVICES,Revenue,,,,,,, 
Walsall Council,http://opendatacommunities.org/id/metropolitan-district-council/walsall,WC119-618,31/10/2020,ADULT SOCIAL CARE,ANCHOR CAREHOMES LTD - HARDEN HALL,22/10/2020,"2,308.00",73501-Residential EMI,THIRD PARTY PAYMENTS,PRIVATE CONTRACTOR,Revenue,,,,,,, 
Walsall Council,http://opendatacommunities.org/id/metropolitan-district-council/walsall,WC119-619,31/10/2020,ADULT SOCIAL CARE,ANCHOR CAREHOMES LTD - HARDEN HALL,22/10/2020,"2,308.00",73501-Residential EMI,THIRD PARTY PAYMENTS,PRIVATE CONTRACTOR,Revenue,,,,,,, 
Walsall Council,http://opendatacommunities.org/id/metropolitan-district-council/walsall,WC119-620,31/10/2020,ADULT SOCIAL CARE,ANCHOR CAREHOMES LTD - HARDEN HALL,22/10/2020,"-23,108.21",73501-Residential EMI,THIRD PARTY PAYMENTS,PRIVATE CONTRACTOR,Revenue,,,,,,, 
Walsall Council,http://opendatacommunities.org/id/metropolitan-district-council/walsall,WC119-621,31/10/2020,ADULT SOCIAL CARE,ANCHOR CAREHOMES LTD - HARDEN HALL,22/10/2020,"2,648.00",73501-Residential EMI,THIRD PARTY PAYMENTS,PRIVATE CONTRACTOR,Revenue,,,,,,, 
Walsall Council,http://opendatacommunities.org/id/metropolitan-district-council/walsall,WC119-622,31/10/2020,ADULT SOCIAL CARE,ANCHOR CAREHOMES LTD - HARDEN HALL,22/10/2020,"2,044.00",73500-Residential,THIRD PARTY PAYMENTS,PRIVATE CONTRACTOR,Revenue,,,,,,, 
Walsall Council,http://opendatacommunities.org/id/metropolitan-district-council/walsall,WC119-623,31/10/2020,ADULT SOCIAL CARE,ANCHOR CAREHOMES LTD - HARDEN HALL,22/10/2020,"2,308.00",73501-Residential EMI,THIRD PARTY PAYMENTS,PRIVATE CONTRACTOR,Revenue,,,,,,, 
Walsall Council,http://opendatacommunities.org/id/metropolitan-district-council/walsall,WC119-624,31/10/2020,ADULT SOCIAL CARE,ANCHOR CAREHOMES LTD - HARDEN HALL,22/10/2020,"2,308.00",73501-Residential EMI,THIRD PARTY PAYMENTS,PRIVATE CONTRACTOR,Revenue,,,,,,, 
Walsall Council,http://opendatacommunities.org/id/metropolitan-district-council/walsall,WC119-625,31/10/2020,ADULT SOCIAL CARE,ANCHOR CAREHOMES LTD - HARDEN HALL,22/10/2020,"2,044.00",73500-Residential,THIRD PARTY PAYMENTS,PRIVATE CONTRACTOR,Revenue,,,,,,, 
Walsall Council,http://opendatacommunities.org/id/metropolitan-district-council/walsall,WC119-626,31/10/2020,ADULT SOCIAL CARE,ANCHOR CAREHOMES LTD - HARDEN HALL,22/10/2020,"2,044.00",73500-Residential,THIRD PARTY PAYMENTS,PRIVATE CONTRACTOR,Revenue,,,,,,, 
Walsall Council,http://opendatacommunities.org/id/metropolitan-district-council/walsall,WC119-627,31/10/2020,ADULT SOCIAL CARE,ANCHOR CAREHOMES LTD - HARDEN HALL,22/10/2020,"2,308.00",73501-Residential EMI,THIRD PARTY PAYMENTS,PRIVATE CONTRACTOR,Revenue,,,,,,, 
Walsall Council,http://opendatacommunities.org/id/metropolitan-district-council/walsall,WC119-628,31/10/2020,ADULT SOCIAL CARE,ANCHOR CAREHOMES LTD - HARDEN HALL,22/10/2020,"2,308.00",73501-Residential EMI,THIRD PARTY PAYMENTS,PRIVATE CONTRACTOR,Revenue,,,,,,, 
Walsall Council,http://opendatacommunities.org/id/metropolitan-district-council/walsall,WC119-629,31/10/2020,ADULT SOCIAL CARE,ANCHOR CAREHOMES LTD - HARDEN HALL,22/10/2020,"2,308.00",73501-Residential EMI,THIRD PARTY PAYMENTS,PRIVATE CONTRACTOR,Revenue,,,,,,, 
Walsall Council,http://opendatacommunities.org/id/metropolitan-district-council/walsall,WC119-630,31/10/2020,ADULT SOCIAL CARE,ANCHOR CAREHOMES LTD - HARDEN HALL,22/10/2020,"2,308.00",73501-Residential EMI,THIRD PARTY PAYMENTS,PRIVATE CONTRACTOR,Revenue,,,,,,, 
Walsall Council,http://opendatacommunities.org/id/metropolitan-district-council/walsall,WC119-631,31/10/2020,ADULT SOCIAL CARE,ANCHOR CAREHOMES LTD - HARDEN HALL,22/10/2020,"2,358.96",73501-Residential EMI,THIRD PARTY PAYMENTS,PRIVATE CONTRACTOR,Revenue,,,,,,, 
Walsall Council,http://opendatacommunities.org/id/metropolitan-district-council/walsall,WC119-632,31/10/2020,ADULT SOCIAL CARE,ANCHOR CAREHOMES LTD - HARDEN HALL,22/10/2020,"1,978.29",73501-Residential EMI,THIRD PARTY PAYMENTS,PRIVATE CONTRACTOR,Revenue,,,,,,, 
Walsall Council,http://opendatacommunities.org/id/metropolitan-district-council/walsall,WC119-633,31/10/2020,ADULT SOCIAL CARE,ANCHOR CAREHOMES LTD - HARDEN HALL,22/10/2020,"2,266.12",73500-Residential,THIRD PARTY PAYMENTS,PRIVATE CONTRACTOR,Revenue,,,,,,, 
Walsall Council,http://opendatacommunities.org/id/metropolitan-district-council/walsall,WC119-634,31/10/2020,ADULT SOCIAL CARE,ANCHOR CAREHOMES LTD - HARDEN HALL,22/10/2020,"2,332.24",73501-Residential EMI,THIRD PARTY PAYMENTS,PRIVATE CONTRACTOR,Revenue,,,,,,, 
Walsall Council,http://opendatacommunities.org/id/metropolitan-district-council/walsall,WC119-635,31/10/2020,ADULT SOCIAL CARE,ANCHOR CAREHOMES LTD - HARDEN HALL,22/10/2020,"2,312.24",73501-Residential EMI,THIRD PARTY PAYMENTS,PRIVATE CONTRACTOR,Revenue,,,,,,, 
Walsall Council,http://opendatacommunities.org/id/metropolitan-district-council/walsall,WC119-636,31/10/2020,ADULT SOCIAL CARE,ANCHOR CAREHOMES LTD - HARDEN HALL,22/10/2020,"2,308.00",73501-Residential EMI,THIRD PARTY PAYMENTS,PRIVATE CONTRACTOR,Revenue,,,,,,, 
Walsall Council,http://opendatacommunities.org/id/metropolitan-district-council/walsall,WC119-637,31/10/2020,ADULT SOCIAL CARE,ANCHOR CAREHOMES LTD - HARDEN HALL,22/10/2020,"2,308.00",73501-Residential EMI,THIRD PARTY PAYMENTS,PRIVATE CONTRACTOR,Revenue,,,,,,, 
Walsall Council,http://opendatacommunities.org/id/metropolitan-district-council/walsall,WC119-638,31/10/2020,ADULT SOCIAL CARE,ANCHOR CAREHOMES LTD - HARDEN HALL,22/10/2020,"2,054.96",73500-Residential,THIRD PARTY PAYMENTS,PRIVATE CONTRACTOR,Revenue,,,,,,, 
Walsall Council,http://opendatacommunities.org/id/metropolitan-district-council/walsall,WC119-639,31/10/2020,ADULT SOCIAL CARE,ANCHOR CAREHOMES LTD - HARDEN HALL,22/10/2020,"2,308.00",73501-Residential EMI,THIRD PARTY PAYMENTS,PRIVATE CONTRACTOR,Revenue,,,,,,, 
Walsall Council,http://opendatacommunities.org/id/metropolitan-district-council/walsall,WC119-640,31/10/2020,ADULT SOCIAL CARE,ANCHOR CAREHOMES LTD - HARDEN HALL,22/10/2020,"2,332.24",73501-Residential EMI,THIRD PARTY PAYMENTS,PRIVATE CONTRACTOR,Revenue,,,,,,, 
Walsall Council,http://opendatacommunities.org/id/metropolitan-district-council/walsall,WC119-641,31/10/2020,ADULT SOCIAL CARE,ANCHOR CAREHOMES LTD - HARDEN HALL,22/10/2020,"2,271.48",73501-Residential EMI,THIRD PARTY PAYMENTS,PRIVATE CONTRACTOR,Revenue,,,,,,, 
Walsall Council,http://opendatacommunities.org/id/metropolitan-district-council/walsall,WC119-642,31/10/2020,ADULT SOCIAL CARE,ANCHOR CAREHOMES LTD - HARDEN HALL,22/10/2020,"2,044.00",73500-Residential,THIRD PARTY PAYMENTS,PRIVATE CONTRACTOR,Revenue,,,,,,, 
Walsall Council,http://opendatacommunities.org/id/metropolitan-district-council/walsall,WC119-643,31/10/2020,ADULT SOCIAL CARE,ANCHOR CAREHOMES LTD - HARDEN HALL,22/10/2020,"2,312.24",73501-Residential EMI,THIRD PARTY PAYMENTS,PRIVATE CONTRACTOR,Revenue,,,,,,, 
Walsall Council,http://opendatacommunities.org/id/metropolitan-district-council/walsall,WC119-644,31/10/2020,ADULT SOCIAL CARE,ANCHOR CAREHOMES LTD - HARDEN HALL,22/10/2020,"2,308.00",73501-Residential EMI,THIRD PARTY PAYMENTS,PRIVATE CONTRACTOR,Revenue,,,,,,, 
Walsall Council,http://opendatacommunities.org/id/metropolitan-district-council/walsall,WC119-645,31/10/2020,ADULT SOCIAL CARE,ANCHOR CAREHOMES LTD - HARDEN HALL,22/10/2020,"2,332.24",73501-Residential EMI,THIRD PARTY PAYMENTS,PRIVATE CONTRACTOR,Revenue,,,,,,, 
Walsall Council,http://opendatacommunities.org/id/metropolitan-district-council/walsall,WC119-646,31/10/2020,ADULT SOCIAL CARE,ANCHOR CAREHOMES LTD - HARDEN HALL,22/10/2020,"2,308.00",73501-Residential EMI,THIRD PARTY PAYMENTS,PRIVATE CONTRACTOR,Revenue,,,,,,, 
Walsall Council,http://opendatacommunities.org/id/metropolitan-district-council/walsall,WC119-647,31/10/2020,ADULT SOCIAL CARE,ANCHOR CAREHOMES LTD - HARDEN HALL,22/10/2020,"2,044.00",73500-Residential,THIRD PARTY PAYMENTS,PRIVATE CONTRACTOR,Revenue,,,,,,, 
Walsall Council,http://opendatacommunities.org/id/metropolitan-district-council/walsall,WC119-648,31/10/2020,ADULT SOCIAL CARE,ANCHOR CAREHOMES LTD - HARDEN HALL,22/10/2020,"2,094.96",73500-Residential,THIRD PARTY PAYMENTS,PRIVATE CONTRACTOR,Revenue,,,,,,, 
Walsall Council,http://opendatacommunities.org/id/metropolitan-district-council/walsall,WC119-649,31/10/2020,ADULT SOCIAL CARE,ANCHOR CAREHOMES LTD - HARDEN HALL,22/10/2020,"2,332.24",73501-Residential EMI,THIRD PARTY PAYMENTS,PRIVATE CONTRACTOR,Revenue,,,,,,, 
Walsall Council,http://opendatacommunities.org/id/metropolitan-district-council/walsall,WC119-650,31/10/2020,ADULT SOCIAL CARE,ANCHOR CAREHOMES LTD - HARDEN HALL,22/10/2020,"2,308.00",73501-Residential EMI,THIRD PARTY PAYMENTS,PRIVATE CONTRACTOR,Revenue,,,,,,, 
Walsall Council,http://opendatacommunities.org/id/metropolitan-district-council/walsall,WC119-651,31/10/2020,ADULT SOCIAL CARE,ANCHOR CAREHOMES LTD - HARDEN HALL,22/10/2020,"2,308.00",73501-Residential EMI,THIRD PARTY PAYMENTS,PRIVATE CONTRACTOR,Revenue,,,,,,, 
Walsall Council,http://opendatacommunities.org/id/metropolitan-district-council/walsall,WC119-652,31/10/2020,ADULT SOCIAL CARE,ANCHOR CAREHOMES LTD - HARDEN HALL,22/10/2020,"2,044.00",73500-Residential,THIRD PARTY PAYMENTS,PRIVATE CONTRACTOR,Revenue,,,,,,,Y
Walsall Council,http://opendatacommunities.org/id/metropolitan-district-council/walsall,WC119-653,31/10/2020,CHILDRENS CAPITAL,ANDREWS ELECTRICAL LTD,14/10/2020,"2,300.00",01006-Site Works Contractors,CAPITAL,"NEW CONSTRUCTION,CONVERSION & RENOVATION",Revenue,,,,,,, 
Walsall Council,http://opendatacommunities.org/id/metropolitan-district-council/walsall,WC119-654,31/10/2020,ADULT SOCIAL CARE,ANSON COURT RESIDENTIAL HOME,22/10/2020,"2,164.00",73500-Residential,THIRD PARTY PAYMENTS,PRIVATE CONTRACTOR,Revenue,,,,,,, 
Walsall Council,http://opendatacommunities.org/id/metropolitan-district-council/walsall,WC119-655,31/10/2020,ADULT SOCIAL CARE,ANSON COURT RESIDENTIAL HOME,22/10/2020,"2,308.00",73501-Residential EMI,THIRD PARTY PAYMENTS,PRIVATE CONTRACTOR,Revenue,,,,,,, 
Walsall Council,http://opendatacommunities.org/id/metropolitan-district-council/walsall,WC119-656,31/10/2020,ADULT SOCIAL CARE,ANSON COURT RESIDENTIAL HOME,22/10/2020,"2,308.00",73501-Residential EMI,THIRD PARTY PAYMENTS,PRIVATE CONTRACTOR,Revenue,,,,,,, 
Walsall Council,http://opendatacommunities.org/id/metropolitan-district-council/walsall,WC119-657,31/10/2020,ADULT SOCIAL CARE,ANSON COURT RESIDENTIAL HOME,22/10/2020,"2,308.00",73501-Residential EMI,THIRD PARTY PAYMENTS,PRIVATE CONTRACTOR,Revenue,,,,,,, 
Walsall Council,http://opendatacommunities.org/id/metropolitan-district-council/walsall,WC119-658,31/10/2020,ADULT SOCIAL CARE,ANSON COURT RESIDENTIAL HOME,22/10/2020,"1,164.43",73501-Residential EMI,THIRD PARTY PAYMENTS,PRIVATE CONTRACTOR,Revenue,,,,,,, 
Walsall Council,http://opendatacommunities.org/id/metropolitan-district-council/walsall,WC119-659,31/10/2020,ADULT SOCIAL CARE,ANSON COURT RESIDENTIAL HOME,22/10/2020,"2,172.24",73500-Residential,THIRD PARTY PAYMENTS,PRIVATE CONTRACTOR,Revenue,,,,,,, 
Walsall Council,http://opendatacommunities.org/id/metropolitan-district-council/walsall,WC119-660,31/10/2020,ADULT SOCIAL CARE,ANSON COURT RESIDENTIAL HOME,22/10/2020,"2,044.00",73500-Residential,THIRD PARTY PAYMENTS,PRIVATE CONTRACTOR,Revenue,,,,,,, 
Walsall Council,http://opendatacommunities.org/id/metropolitan-district-council/walsall,WC119-661,31/10/2020,ADULT SOCIAL CARE,ANSON COURT RESIDENTIAL HOME,22/10/2020,"2,308.00",73501-Residential EMI,THIRD PARTY PAYMENTS,PRIVATE CONTRACTOR,Revenue,,,,,,, 
Walsall Council,http://opendatacommunities.org/id/metropolitan-district-council/walsall,WC119-662,31/10/2020,ADULT SOCIAL CARE,ANSON COURT RESIDENTIAL HOME,22/10/2020,"2,308.00",73501-Residential EMI,THIRD PARTY PAYMENTS,PRIVATE CONTRACTOR,Revenue,,,,,,,Y
Walsall Council,http://opendatacommunities.org/id/metropolitan-district-council/walsall,WC119-663,31/10/2020,ADULT SOCIAL CARE,ANSON COURT RESIDENTIAL HOME,22/10/2020,"2,308.00",73501-Residential EMI,THIRD PARTY PAYMENTS,PRIVATE CONTRACTOR,Revenue,,,,,,,Y
Walsall Council,http://opendatacommunities.org/id/metropolitan-district-council/walsall,WC119-664,31/10/2020,ADULT SOCIAL CARE,ANSON COURT RESIDENTIAL HOME,22/10/2020,"2,308.00",73501-Residential EMI,THIRD PARTY PAYMENTS,PRIVATE CONTRACTOR,Revenue,,,,,,,Y
Walsall Council,http://opendatacommunities.org/id/metropolitan-district-council/walsall,WC119-665,31/10/2020,ADULT SOCIAL CARE,ANSON COURT RESIDENTIAL HOME,22/10/2020,"2,308.00",73501-Residential EMI,THIRD PARTY PAYMENTS,PRIVATE CONTRACTOR,Revenue,,,,,,,Y
Walsall Council,http://opendatacommunities.org/id/metropolitan-district-council/walsall,WC119-666,31/10/2020,ECONOMY & ENVIRONMENT,APCOA PARKING SERVICES (UK) LTD,01/10/2020,"30,794.09",73025-Professional Services-Priv Contractor & Other Agencies,Parking Services ,THIRD PARTY PAYMENTS,Revenue,,,,,,,Y
Walsall Council,http://opendatacommunities.org/id/metropolitan-district-council/walsall,WC119-667,31/10/2020,ECONOMY & ENVIRONMENT,APCOA PARKING SERVICES (UK) LTD,09/10/2020,"51,083.99",73025-Professional Services-Priv Contractor & Other Agencies,Parking Services ,THIRD PARTY PAYMENTS,Revenue,,,,,,,Y
Walsall Council,http://opendatacommunities.org/id/metropolitan-district-council/walsall,WC119-668,31/10/2020,CHILDRENS,APP CARZ,08/10/2020,"1,344.00",52000-Hire of Vehicle with Driver,Home To School Transport,TRANSPORT,Revenue,,,,,,,Y
Walsall Council,http://opendatacommunities.org/id/metropolitan-district-council/walsall,WC119-669,31/10/2020,CHILDRENS,APP CARZ,08/10/2020,960.00,52000-Hire of Vehicle with Driver,Home To School Transport,TRANSPORT,Revenue,,,,,,, 
Walsall Council,http://opendatacommunities.org/id/metropolitan-district-council/walsall,WC119-670,31/10/2020,CHILDRENS,APP CARZ,08/10/2020,418.00,52000-Hire of Vehicle with Driver,Home To School Transport,TRANSPORT,Revenue,,,,,,, 
Walsall Council,http://opendatacommunities.org/id/metropolitan-district-council/walsall,WC119-671,31/10/2020,CHILDRENS,APP CARZ,08/10/2020,570.00,52000-Hire of Vehicle with Driver,Home To School Transport,TRANSPORT,Revenue,,,,,,, 
Walsall Council,http://opendatacommunities.org/id/metropolitan-district-council/walsall,WC119-672,31/10/2020,CHILDRENS,APP CARZ,08/10/2020,896.00,52000-Hire of Vehicle with Driver,Home To School Transport,TRANSPORT,Revenue,,,,,,, 
Walsall Council,http://opendatacommunities.org/id/metropolitan-district-council/walsall,WC119-673,31/10/2020,CHILDRENS,APP CARZ,08/10/2020,710.60,52000-Hire of Vehicle with Driver,Home To School Transport,TRANSPORT,Revenue,,,,,,, 
Walsall Council,http://opendatacommunities.org/id/metropolitan-district-council/walsall,WC119-674,31/10/2020,CHILDRENS,APP CARZ,08/10/2020,728.00,52000-Hire of Vehicle with Driver,Home To School Transport,TRANSPORT,Revenue,,,,,,, 
Walsall Council,http://opendatacommunities.org/id/metropolitan-district-council/walsall,WC119-675,31/10/2020,CHILDRENS,APP CARZ,08/10/2020,484.00,52000-Hire of Vehicle with Driver,Home To School Transport,TRANSPORT,Revenue,,,,,,, 
Walsall Council,http://opendatacommunities.org/id/metropolitan-district-council/walsall,WC119-676,31/10/2020,CHILDRENS,APP CARZ,08/10/2020,632.40,52000-Hire of Vehicle with Driver,Home To School Transport,TRANSPORT,Revenue,,,,,,, 
Walsall Council,http://opendatacommunities.org/id/metropolitan-district-council/walsall,WC119-677,31/10/2020,CHILDRENS,APP CARZ,08/10/2020,900.00,52000-Hire of Vehicle with Driver,Home To School Transport,TRANSPORT,Revenue,,,,,,, 
Walsall Council,http://opendatacommunities.org/id/metropolitan-district-council/walsall,WC119-678,31/10/2020,CHILDRENS,APP CARZ,08/10/2020,374.00,52000-Hire of Vehicle with Driver,Home To School Transport,TRANSPORT,Revenue,,,,,,, 
Walsall Council,http://opendatacommunities.org/id/metropolitan-district-council/walsall,WC119-679,31/10/2020,CHILDRENS,APP CARZ,14/10/2020,"4,631.00",52000-Hire of Vehicle with Driver,TRANSPORT,DIRECT TRANSPORT COSTS,Revenue,,,,,,, 
Walsall Council,http://opendatacommunities.org/id/metropolitan-district-council/walsall,WC119-680,31/10/2020,ECONOMY & ENVIRONMENT,AQUAMO LTD,22/10/2020,"1,282.00",60008-Repair & Maintenance of Furniture & Equipment,SUPPLIES & SERVICES,EQUIPMENT FURNITURE & MATERIALS,Revenue,,,,,,, 
Walsall Council,http://opendatacommunities.org/id/metropolitan-district-council/walsall,WC119-681,31/10/2020,ADULT SOCIAL CARE,ARBORETUM NURSING HOME.,02/10/2020,"11,920.00",73025-Professional Services-Priv Contractor & Other Agencies,Transitional Care Support Team,THIRD PARTY PAYMENTS,Revenue,,,,,,, 
Walsall Council,http://opendatacommunities.org/id/metropolitan-district-council/walsall,WC119-682,31/10/2020,ADULT SOCIAL CARE,ARBORETUM NURSING HOME.,02/10/2020,"11,920.00",73025-Professional Services-Priv Contractor & Other Agencies,Transitional Care Support Team,THIRD PARTY PAYMENTS,Revenue,,,,,,, 
Walsall Council,http://opendatacommunities.org/id/metropolitan-district-council/walsall,WC119-683,31/10/2020,ADULT SOCIAL CARE,ARBORETUM NURSING HOME.,02/10/2020,"1,702.86",73025-Professional Services-Priv Contractor & Other Agencies,Transitional Care Support Team,THIRD PARTY PAYMENTS,Revenue,,,,,,, 
Walsall Council,http://opendatacommunities.org/id/metropolitan-district-council/walsall,WC119-684,31/10/2020,ADULT SOCIAL CARE,ARBORETUM NURSING HOME.,02/10/2020,"-2,287.43",73025-Professional Services-Priv Contractor & Other Agencies,Transitional Care Support Team,THIRD PARTY PAYMENTS,Revenue,,,,,,, 
Walsall Council,http://opendatacommunities.org/id/metropolitan-district-council/walsall,WC119-685,31/10/2020,ADULT SOCIAL CARE,ARBORETUM NURSING HOME.,02/10/2020,-457.49,73025-Professional Services-Priv Contractor & Other Agencies,Transitional Care Support Team,THIRD PARTY PAYMENTS,Revenue,,,,,,, 
Walsall Council,http://opendatacommunities.org/id/metropolitan-district-council/walsall,WC119-686,31/10/2020,ADULT SOCIAL CARE,ARBORETUM NURSING HOME.,09/10/2020,"3,202.40",73025-Professional Services-Priv Contractor & Other Agencies,Transitional Care Support Team,THIRD PARTY PAYMENTS,Revenue,,,,,,, 
Walsall Council,http://opendatacommunities.org/id/metropolitan-district-council/walsall,WC119-687,31/10/2020,ADULT SOCIAL CARE,ARBORETUM NURSING HOME.,09/10/2020,"2,430.00",73025-Professional Services-Priv Contractor & Other Agencies,Transitional Care Support Team,THIRD PARTY PAYMENTS,Revenue,,,,,,, 
Walsall Council,http://opendatacommunities.org/id/metropolitan-district-council/walsall,WC119-688,31/10/2020,ADULT SOCIAL CARE,ARBORETUM NURSING HOME.,09/10/2020,-462.86,73025-Professional Services-Priv Contractor & Other Agencies,Transitional Care Support Team,THIRD PARTY PAYMENTS,Revenue,,,,,,, 
Walsall Council,http://opendatacommunities.org/id/metropolitan-district-council/walsall,WC119-689,31/10/2020,ADULT SOCIAL CARE,ARBORETUM NURSING HOME.,22/10/2020,"2,396.00",73502-Nursing,THIRD PARTY PAYMENTS,PRIVATE CONTRACTOR,Revenue,,,,,,, 
Walsall Council,http://opendatacommunities.org/id/metropolitan-district-council/walsall,WC119-690,31/10/2020,ADULT SOCIAL CARE,ARBORETUM NURSING HOME.,22/10/2020,"2,396.00",73502-Nursing,THIRD PARTY PAYMENTS,PRIVATE CONTRACTOR,Revenue,,,,,,, 
Walsall Council,http://opendatacommunities.org/id/metropolitan-district-council/walsall,WC119-691,31/10/2020,ADULT SOCIAL CARE,ARBORETUM NURSING HOME.,22/10/2020,"2,396.00",73502-Nursing,THIRD PARTY PAYMENTS,PRIVATE CONTRACTOR,Revenue,,,,,,, 
Walsall Council,http://opendatacommunities.org/id/metropolitan-district-council/walsall,WC119-692,31/10/2020,ADULT SOCIAL CARE,ARBORETUM NURSING HOME.,22/10/2020,"2,552.00",73502-Nursing,THIRD PARTY PAYMENTS,PRIVATE CONTRACTOR,Revenue,,,,,,, 
Walsall Council,http://opendatacommunities.org/id/metropolitan-district-council/walsall,WC119-693,31/10/2020,ADULT SOCIAL CARE,ARBORETUM NURSING HOME.,22/10/2020,"2,396.00",73502-Nursing,THIRD PARTY PAYMENTS,PRIVATE CONTRACTOR,Revenue,,,,,,, 
Walsall Council,http://opendatacommunities.org/id/metropolitan-district-council/walsall,WC119-694,31/10/2020,ADULT SOCIAL CARE,ARBORETUM NURSING HOME.,22/10/2020,"2,576.00",73502-Nursing,THIRD PARTY PAYMENTS,PRIVATE CONTRACTOR,Revenue,,,,,,, 
Walsall Council,http://opendatacommunities.org/id/metropolitan-district-council/walsall,WC119-695,31/10/2020,ADULT SOCIAL CARE,ARBORETUM NURSING HOME.,22/10/2020,"2,396.00",73502-Nursing,THIRD PARTY PAYMENTS,PRIVATE CONTRACTOR,Revenue,,,,,,, 
Walsall Council,http://opendatacommunities.org/id/metropolitan-district-council/walsall,WC119-696,31/10/2020,ADULT SOCIAL CARE,ARBORETUM NURSING HOME.,22/10/2020,"2,396.00",73502-Nursing,THIRD PARTY PAYMENTS,PRIVATE CONTRACTOR,Revenue,,,,,,, 
Walsall Council,http://opendatacommunities.org/id/metropolitan-district-council/walsall,WC119-697,31/10/2020,ADULT SOCIAL CARE,ARBORETUM NURSING HOME.,22/10/2020,"2,396.00",73502-Nursing,THIRD PARTY PAYMENTS,PRIVATE CONTRACTOR,Revenue,,,,,,, 
Walsall Council,http://opendatacommunities.org/id/metropolitan-district-council/walsall,WC119-698,31/10/2020,ADULT SOCIAL CARE,ARBORETUM NURSING HOME.,22/10/2020,"2,576.00",73502-Nursing,THIRD PARTY PAYMENTS,PRIVATE CONTRACTOR,Revenue,,,,,,, 
Walsall Council,http://opendatacommunities.org/id/metropolitan-district-council/walsall,WC119-699,31/10/2020,ADULT SOCIAL CARE,ARBORETUM NURSING HOME.,22/10/2020,"2,396.00",73502-Nursing,THIRD PARTY PAYMENTS,PRIVATE CONTRACTOR,Revenue,,,,,,, 
Walsall Council,http://opendatacommunities.org/id/metropolitan-district-council/walsall,WC119-700,31/10/2020,ADULT SOCIAL CARE,ARBORETUM NURSING HOME.,22/10/2020,"2,396.00",73502-Nursing,THIRD PARTY PAYMENTS,PRIVATE CONTRACTOR,Revenue,,,,,,,Y
Walsall Council,http://opendatacommunities.org/id/metropolitan-district-council/walsall,WC119-701,31/10/2020,ADULT SOCIAL CARE,ARBORETUM NURSING HOME.,22/10/2020,"2,576.00",73502-Nursing,THIRD PARTY PAYMENTS,PRIVATE CONTRACTOR,Revenue,,,,,,,Y
Walsall Council,http://opendatacommunities.org/id/metropolitan-district-council/walsall,WC119-702,31/10/2020,ADULT SOCIAL CARE,ARBORETUM NURSING HOME.,22/10/2020,"2,396.00",73502-Nursing,THIRD PARTY PAYMENTS,PRIVATE CONTRACTOR,Revenue,,,,,,, 
Walsall Council,http://opendatacommunities.org/id/metropolitan-district-council/walsall,WC119-703,31/10/2020,ADULT SOCIAL CARE,ARBORETUM NURSING HOME.,22/10/2020,"2,396.00",73502-Nursing,THIRD PARTY PAYMENTS,PRIVATE CONTRACTOR,Revenue,,,,,,,Y
Walsall Council,http://opendatacommunities.org/id/metropolitan-district-council/walsall,WC119-704,31/10/2020,ADULT SOCIAL CARE,ARBORETUM NURSING HOME.,26/10/2020,800.60,73025-Professional Services-Priv Contractor & Other Agencies,THIRD PARTY PAYMENTS,PRIVATE CONTRACTOR,Revenue,,,,,,,Y
Walsall Council,http://opendatacommunities.org/id/metropolitan-district-council/walsall,WC119-705,31/10/2020,ADULT SOCIAL CARE,ARBORETUM NURSING HOME.,26/10/2020,"11,920.00",73025-Professional Services-Priv Contractor & Other Agencies,THIRD PARTY PAYMENTS,PRIVATE CONTRACTOR,Revenue,,,,,,,Y
Walsall Council,http://opendatacommunities.org/id/metropolitan-district-council/walsall,WC119-706,31/10/2020,ADULT SOCIAL CARE,ARBORETUM NURSING HOME.,26/10/2020,"2,980.00",73025-Professional Services-Priv Contractor & Other Agencies,THIRD PARTY PAYMENTS,PRIVATE CONTRACTOR,Revenue,,,,,,,Y
Walsall Council,http://opendatacommunities.org/id/metropolitan-district-council/walsall,WC119-707,31/10/2020,ADULT SOCIAL CARE,ARBORETUM NURSING HOME.,26/10/2020,"2,401.80",73025-Professional Services-Priv Contractor & Other Agencies,THIRD PARTY PAYMENTS,PRIVATE CONTRACTOR,Revenue,,,,,,,Y
Walsall Council,http://opendatacommunities.org/id/metropolitan-district-council/walsall,WC119-708,31/10/2020,ADULT SOCIAL CARE,ARBORETUM NURSING HOME.,26/10/2020,425.71,73025-Professional Services-Priv Contractor & Other Agencies,THIRD PARTY PAYMENTS,PRIVATE CONTRACTOR,Revenue,,,,,,,Y
Walsall Council,http://opendatacommunities.org/id/metropolitan-district-council/walsall,WC119-709,31/10/2020,ADULT SOCIAL CARE,ARBORETUM NURSING HOME.,27/10/2020,"2,980.00",73025-Professional Services-Priv Contractor & Other Agencies,THIRD PARTY PAYMENTS,PRIVATE CONTRACTOR,Revenue,,,,,,,Y
Walsall Council,http://opendatacommunities.org/id/metropolitan-district-council/walsall,WC119-710,31/10/2020,ADULT SOCIAL CARE,ARBORETUM NURSING HOME.,27/10/2020,"3,206.40",73025-Professional Services-Priv Contractor & Other Agencies,THIRD PARTY PAYMENTS,PRIVATE CONTRACTOR,Revenue,,,,,,,Y
Walsall Council,http://opendatacommunities.org/id/metropolitan-district-council/walsall,WC119-711,31/10/2020,ADULT SOCIAL CARE,ARBORETUM NURSING HOME.,27/10/2020,"2,980.00",73025-Professional Services-Priv Contractor & Other Agencies,THIRD PARTY PAYMENTS,PRIVATE CONTRACTOR,Revenue,,,,,,, 
Walsall Council,http://opendatacommunities.org/id/metropolitan-district-council/walsall,WC119-712,31/10/2020,ADULT SOCIAL CARE,ARBORETUM NURSING HOME.,27/10/2020,"2,235.00",73025-Professional Services-Priv Contractor & Other Agencies,THIRD PARTY PAYMENTS,PRIVATE CONTRACTOR,Revenue,,,,,,, 
Walsall Council,http://opendatacommunities.org/id/metropolitan-district-council/walsall,WC119-713,31/10/2020,ADULT SOCIAL CARE,ARBORETUM NURSING HOME.,27/10/2020,"2,980.00",73025-Professional Services-Priv Contractor & Other Agencies,THIRD PARTY PAYMENTS,PRIVATE CONTRACTOR,Revenue,,,,,,, 
Walsall Council,http://opendatacommunities.org/id/metropolitan-district-council/walsall,WC119-714,31/10/2020,ADULT SOCIAL CARE,ARBORETUM NURSING HOME.,28/10/2020,"1,490.00",73025-Professional Services-Priv Contractor & Other Agencies,THIRD PARTY PAYMENTS,PRIVATE CONTRACTOR,Revenue,,,,,,, 
Walsall Council,http://opendatacommunities.org/id/metropolitan-district-council/walsall,WC119-715,31/10/2020,ADULT SOCIAL CARE,ARBORETUM NURSING HOME.,28/10/2020,"1,490.00",73025-Professional Services-Priv Contractor & Other Agencies,THIRD PARTY PAYMENTS,PRIVATE CONTRACTOR,Revenue,,,,,,, 
Walsall Council,http://opendatacommunities.org/id/metropolitan-district-council/walsall,WC119-716,31/10/2020,ADULT SOCIAL CARE,ARBORETUM NURSING HOME.,28/10/2020,-638.57,73025-Professional Services-Priv Contractor & Other Agencies,THIRD PARTY PAYMENTS,PRIVATE CONTRACTOR,Revenue,,,,,,, 
Walsall Council,http://opendatacommunities.org/id/metropolitan-district-council/walsall,WC119-717,31/10/2020,ECONOMY & ENVIRONMENT CAPITAL,ARCADIS,12/10/2020,"6,996.77",01029-Surveyors Fees,CAPITAL,"NEW CONSTRUCTION,CONVERSION & RENOVATION",Revenue,,,,,,, 
Walsall Council,http://opendatacommunities.org/id/metropolitan-district-council/walsall,WC119-718,31/10/2020,ECONOMY & ENVIRONMENT,ARCADIS,12/10/2020,"16,000.00",63102-Consultant Fees,SUPPLIES & SERVICES,SERVICES,Revenue,,,,,,, 
Walsall Council,http://opendatacommunities.org/id/metropolitan-district-council/walsall,WC119-719,31/10/2020,ECONOMY & ENVIRONMENT,ARCADIS,12/10/2020,"16,000.00",63102-Consultant Fees,SUPPLIES & SERVICES,SERVICES,Revenue,,,,,,, 
Walsall Council,http://opendatacommunities.org/id/metropolitan-district-council/walsall,WC119-720,31/10/2020,ECONOMY & ENVIRONMENT,ARCADIS,12/10/2020,"16,077.50",63102-Consultant Fees,SUPPLIES & SERVICES,SERVICES,Revenue,,,,,,, 
Walsall Council,http://opendatacommunities.org/id/metropolitan-district-council/walsall,WC119-721,31/10/2020,ECONOMY & ENVIRONMENT,ARCADIS,12/10/2020,"16,077.50",63102-Consultant Fees,SUPPLIES & SERVICES,SERVICES,Revenue,,,,,,, 
Walsall Council,http://opendatacommunities.org/id/metropolitan-district-council/walsall,WC119-722,31/10/2020,ECONOMY & ENVIRONMENT,ARCADIS,12/10/2020,"5,750.00",63102-Consultant Fees,SUPPLIES & SERVICES,SERVICES,Revenue,,,,,,, 
Walsall Council,http://opendatacommunities.org/id/metropolitan-district-council/walsall,WC119-723,31/10/2020,ECONOMY & ENVIRONMENT,ARD EUROPE LTD,30/10/2020,"2,000.00",62008-Outwork Print & Design,SUPPLIES & SERVICES,PRINTING STATIONERY & GENERAL OFFICE,Revenue,,,,,,, 
Walsall Council,http://opendatacommunities.org/id/metropolitan-district-council/walsall,WC119-724,31/10/2020,ECONOMY & ENVIRONMENT,ARD EUROPE LTD,30/10/2020,"2,000.00",63000-Professional Fees & Services,SUPPLIES & SERVICES,SERVICES,Revenue,,,,,,, 
Walsall Council,http://opendatacommunities.org/id/metropolitan-district-council/walsall,WC119-725,31/10/2020,ADULT SOCIAL CARE,ASH GRANGE CARE HOME,22/10/2020,"2,396.00",73502-Nursing,THIRD PARTY PAYMENTS,PRIVATE CONTRACTOR,Revenue,,,,,,, 
Walsall Council,http://opendatacommunities.org/id/metropolitan-district-council/walsall,WC119-726,31/10/2020,ADULT SOCIAL CARE,ASH GRANGE CARE HOME,22/10/2020,"2,396.00",73502-Nursing,THIRD PARTY PAYMENTS,PRIVATE CONTRACTOR,Revenue,,,,,,, 
Walsall Council,http://opendatacommunities.org/id/metropolitan-district-council/walsall,WC119-727,31/10/2020,ADULT SOCIAL CARE,ASH GRANGE CARE HOME,22/10/2020,"2,396.00",73502-Nursing,THIRD PARTY PAYMENTS,PRIVATE CONTRACTOR,Revenue,,,,,,, 
Walsall Council,http://opendatacommunities.org/id/metropolitan-district-council/walsall,WC119-728,31/10/2020,ADULT SOCIAL CARE,ASH GRANGE CARE HOME,22/10/2020,"2,396.00",73502-Nursing,THIRD PARTY PAYMENTS,PRIVATE CONTRACTOR,Revenue,,,,,,, 
Walsall Council,http://opendatacommunities.org/id/metropolitan-district-council/walsall,WC119-729,31/10/2020,ADULT SOCIAL CARE,ASH GRANGE CARE HOME,22/10/2020,"2,044.00",73500-Residential,THIRD PARTY PAYMENTS,PRIVATE CONTRACTOR,Revenue,,,,,,, 
Walsall Council,http://opendatacommunities.org/id/metropolitan-district-council/walsall,WC119-730,31/10/2020,ADULT SOCIAL CARE,ASH GRANGE CARE HOME,22/10/2020,"2,396.00",73502-Nursing,THIRD PARTY PAYMENTS,PRIVATE CONTRACTOR,Revenue,,,,,,, 
Walsall Council,http://opendatacommunities.org/id/metropolitan-district-council/walsall,WC119-731,31/10/2020,ADULT SOCIAL CARE,ASH GRANGE CARE HOME,22/10/2020,"2,396.00",73502-Nursing,THIRD PARTY PAYMENTS,PRIVATE CONTRACTOR,Revenue,,,,,,, 
Walsall Council,http://opendatacommunities.org/id/metropolitan-district-council/walsall,WC119-732,31/10/2020,ADULT SOCIAL CARE,ASH GRANGE CARE HOME,22/10/2020,"2,396.00",73502-Nursing,THIRD PARTY PAYMENTS,PRIVATE CONTRACTOR,Revenue,,,,,,, 
Walsall Council,http://opendatacommunities.org/id/metropolitan-district-council/walsall,WC119-733,31/10/2020,ADULT SOCIAL CARE,ASH GRANGE CARE HOME,22/10/2020,"2,396.00",73502-Nursing,THIRD PARTY PAYMENTS,PRIVATE CONTRACTOR,Revenue,,,,,,, 
Walsall Council,http://opendatacommunities.org/id/metropolitan-district-council/walsall,WC119-734,31/10/2020,ADULT SOCIAL CARE,ASH GRANGE CARE HOME,22/10/2020,"2,396.00",73502-Nursing,THIRD PARTY PAYMENTS,PRIVATE CONTRACTOR,Revenue,,,,,,, 
Walsall Council,http://opendatacommunities.org/id/metropolitan-district-council/walsall,WC119-735,31/10/2020,ADULT SOCIAL CARE,ASH GRANGE CARE HOME,22/10/2020,"2,396.00",73502-Nursing,THIRD PARTY PAYMENTS,PRIVATE CONTRACTOR,Revenue,,,,,,, 
Walsall Council,http://opendatacommunities.org/id/metropolitan-district-council/walsall,WC119-736,31/10/2020,ADULT SOCIAL CARE,ASH GRANGE CARE HOME,22/10/2020,"3,400.00",73500-Residential,THIRD PARTY PAYMENTS,PRIVATE CONTRACTOR,Revenue,,,,,,, 
Walsall Council,http://opendatacommunities.org/id/metropolitan-district-council/walsall,WC119-737,31/10/2020,ADULT SOCIAL CARE,ASH GRANGE CARE HOME,22/10/2020,"2,774.96",73502-Nursing,THIRD PARTY PAYMENTS,PRIVATE CONTRACTOR,Revenue,,,,,,, 
Walsall Council,http://opendatacommunities.org/id/metropolitan-district-council/walsall,WC119-738,31/10/2020,ADULT SOCIAL CARE,ASH GRANGE CARE HOME,22/10/2020,"2,044.00",73500-Residential,THIRD PARTY PAYMENTS,PRIVATE CONTRACTOR,Revenue,,,,,,, 
Walsall Council,http://opendatacommunities.org/id/metropolitan-district-council/walsall,WC119-739,31/10/2020,ADULT SOCIAL CARE,ASH GRANGE CARE HOME,22/10/2020,"2,396.00",73502-Nursing,THIRD PARTY PAYMENTS,PRIVATE CONTRACTOR,Revenue,,,,,,, 
Walsall Council,http://opendatacommunities.org/id/metropolitan-district-council/walsall,WC119-740,31/10/2020,ADULT SOCIAL CARE,ASH GRANGE CARE HOME,22/10/2020,"2,463.72",73502-Nursing,THIRD PARTY PAYMENTS,PRIVATE CONTRACTOR,Revenue,,,,,,, 
Walsall Council,http://opendatacommunities.org/id/metropolitan-district-council/walsall,WC119-741,31/10/2020,ADULT SOCIAL CARE,ASH GRANGE CARE HOME,22/10/2020,"2,396.00",73502-Nursing,THIRD PARTY PAYMENTS,PRIVATE CONTRACTOR,Revenue,,,,,,, 
Walsall Council,http://opendatacommunities.org/id/metropolitan-district-council/walsall,WC119-742,31/10/2020,ADULT SOCIAL CARE,ASH GRANGE CARE HOME,22/10/2020,"2,696.00",73503-Nursing EMI,THIRD PARTY PAYMENTS,PRIVATE CONTRACTOR,Revenue,,,,,,, 
Walsall Council,http://opendatacommunities.org/id/metropolitan-district-council/walsall,WC119-743,31/10/2020,ADULT SOCIAL CARE,ASH GRANGE CARE HOME,22/10/2020,"2,581.16",73500-Residential,THIRD PARTY PAYMENTS,PRIVATE CONTRACTOR,Revenue,,,,,,, 
Walsall Council,http://opendatacommunities.org/id/metropolitan-district-council/walsall,WC119-744,31/10/2020,ADULT SOCIAL CARE,ASH GRANGE CARE HOME,22/10/2020,"2,396.00",73502-Nursing,THIRD PARTY PAYMENTS,PRIVATE CONTRACTOR,Revenue,,,,,,, 
Walsall Council,http://opendatacommunities.org/id/metropolitan-district-council/walsall,WC119-745,31/10/2020,ADULT SOCIAL CARE,ASH GRANGE CARE HOME,22/10/2020,"2,423.72",73502-Nursing,THIRD PARTY PAYMENTS,PRIVATE CONTRACTOR,Revenue,,,,,,, 
Walsall Council,http://opendatacommunities.org/id/metropolitan-district-council/walsall,WC119-746,31/10/2020,ADULT SOCIAL CARE,ASH GRANGE CARE HOME,22/10/2020,"2,696.00",73503-Nursing EMI,THIRD PARTY PAYMENTS,PRIVATE CONTRACTOR,Revenue,,,,,,, 
Walsall Council,http://opendatacommunities.org/id/metropolitan-district-council/walsall,WC119-747,31/10/2020,ADULT SOCIAL CARE,ASH GRANGE CARE HOME,22/10/2020,"2,696.00",73503-Nursing EMI,THIRD PARTY PAYMENTS,PRIVATE CONTRACTOR,Revenue,,,,,,, 
Walsall Council,http://opendatacommunities.org/id/metropolitan-district-council/walsall,WC119-748,31/10/2020,ADULT SOCIAL CARE,ASH GRANGE CARE HOME,22/10/2020,"2,396.00",73502-Nursing,THIRD PARTY PAYMENTS,PRIVATE CONTRACTOR,Revenue,,,,,,, 
Walsall Council,http://opendatacommunities.org/id/metropolitan-district-council/walsall,WC119-749,31/10/2020,ADULT SOCIAL CARE,ASH GRANGE CARE HOME,28/10/2020,"1,285.71",73025-Professional Services-Priv Contractor & Other Agencies,THIRD PARTY PAYMENTS,PRIVATE CONTRACTOR,Revenue,,,,,,, 
Walsall Council,http://opendatacommunities.org/id/metropolitan-district-council/walsall,WC119-750,31/10/2020,ADULT SOCIAL CARE,ASH GRANGE CARE HOME,30/10/2020,"14,028.00",73025-Professional Services-Priv Contractor & Other Agencies,THIRD PARTY PAYMENTS,PRIVATE CONTRACTOR,Revenue,,,,,,, 
Walsall Council,http://opendatacommunities.org/id/metropolitan-district-council/walsall,WC119-751,31/10/2020,ECONOMY & ENVIRONMENT,ASKEWS AND HOLTS LIBRARY SERVICES LTD,05/10/2020,"3,222.29",60501-Library Books,Library Management,SUPPLIES & SERVICES,Revenue,,,,,,, 
Walsall Council,http://opendatacommunities.org/id/metropolitan-district-council/walsall,WC119-752,31/10/2020,ECONOMY & ENVIRONMENT,ASKEWS AND HOLTS LIBRARY SERVICES LTD,14/10/2020,"1,386.61",60501-Library Books,SUPPLIES & SERVICES,EQUIPMENT FURNITURE & MATERIALS,Revenue,,,,,,, 
Walsall Council,http://opendatacommunities.org/id/metropolitan-district-council/walsall,WC119-753,31/10/2020,ADULT SOCIAL CARE,ASPECTS CARE LTD,21/10/2020,417.04,73508-Community Supported Living/Supported Accommodation,THIRD PARTY PAYMENTS,PRIVATE CONTRACTOR,Revenue,,,,,,, 
Walsall Council,http://opendatacommunities.org/id/metropolitan-district-council/walsall,WC119-754,31/10/2020,ADULT SOCIAL CARE,ASPECTS CARE LTD,21/10/2020,503.32,73508-Community Supported Living/Supported Accommodation,THIRD PARTY PAYMENTS,PRIVATE CONTRACTOR,Revenue,,,,,,, 
Walsall Council,http://opendatacommunities.org/id/metropolitan-district-council/walsall,WC119-755,31/10/2020,ADULT SOCIAL CARE,ASPECTS CARE LTD,21/10/2020,503.32,73508-Community Supported Living/Supported Accommodation,THIRD PARTY PAYMENTS,PRIVATE CONTRACTOR,Revenue,,,,,,, 
Walsall Council,http://opendatacommunities.org/id/metropolitan-district-council/walsall,WC119-756,31/10/2020,ADULT SOCIAL CARE,ASPECTS CARE LTD,21/10/2020,790.92,73508-Community Supported Living/Supported Accommodation,THIRD PARTY PAYMENTS,PRIVATE CONTRACTOR,Revenue,,,,,,, 
Walsall Council,http://opendatacommunities.org/id/metropolitan-district-council/walsall,WC119-757,31/10/2020,ADULT SOCIAL CARE,ASPECTS CARE LTD,21/10/2020,316.36,73508-Community Supported Living/Supported Accommodation,THIRD PARTY PAYMENTS,PRIVATE CONTRACTOR,Revenue,,,,,,, 
Walsall Council,http://opendatacommunities.org/id/metropolitan-district-council/walsall,WC119-758,31/10/2020,ADULT SOCIAL CARE,ASPECTS CARE LTD,21/10/2020,"1,078.52",73508-Community Supported Living/Supported Accommodation,THIRD PARTY PAYMENTS,PRIVATE CONTRACTOR,Revenue,,,,,,, 
Walsall Council,http://opendatacommunities.org/id/metropolitan-district-council/walsall,WC119-759,31/10/2020,ADULT SOCIAL CARE,ASPECTS CARE LTD,21/10/2020,517.68,73508-Community Supported Living/Supported Accommodation,THIRD PARTY PAYMENTS,PRIVATE CONTRACTOR,Revenue,,,,,,, 
Walsall Council,http://opendatacommunities.org/id/metropolitan-district-council/walsall,WC119-760,31/10/2020,ADULT SOCIAL CARE,ASPECTS CARE LTD,21/10/2020,460.16,73508-Community Supported Living/Supported Accommodation,THIRD PARTY PAYMENTS,PRIVATE CONTRACTOR,Revenue,,,,,,, 
Walsall Council,http://opendatacommunities.org/id/metropolitan-district-council/walsall,WC119-761,31/10/2020,ADULT SOCIAL CARE,ASPECTS CARE LTD,21/10/2020,402.78,73508-Community Supported Living/Supported Accommodation,THIRD PARTY PAYMENTS,PRIVATE CONTRACTOR,Revenue,,,,,,, 
Walsall Council,http://opendatacommunities.org/id/metropolitan-district-council/walsall,WC119-762,31/10/2020,ADULT SOCIAL CARE,ASPECTS CARE LTD,21/10/2020,560.84,73508-Community Supported Living/Supported Accommodation,THIRD PARTY PAYMENTS,PRIVATE CONTRACTOR,Revenue,,,,,,, 
Walsall Council,http://opendatacommunities.org/id/metropolitan-district-council/walsall,WC119-763,31/10/2020,ADULT SOCIAL CARE,ASPECTS CARE LTD,21/10/2020,517.68,73508-Community Supported Living/Supported Accommodation,THIRD PARTY PAYMENTS,PRIVATE CONTRACTOR,Revenue,,,,,,, 
Walsall Council,http://opendatacommunities.org/id/metropolitan-district-council/walsall,WC119-764,31/10/2020,ADULT SOCIAL CARE,ASPECTS CARE LTD,21/10/2020,575.20,73508-Community Supported Living/Supported Accommodation,THIRD PARTY PAYMENTS,PRIVATE CONTRACTOR,Revenue,,,,,,, 
Walsall Council,http://opendatacommunities.org/id/metropolitan-district-council/walsall,WC119-765,31/10/2020,ADULT SOCIAL CARE,ASPECTS CARE LTD,21/10/2020,790.92,73508-Community Supported Living/Supported Accommodation,THIRD PARTY PAYMENTS,PRIVATE CONTRACTOR,Revenue,,,,,,, 
Walsall Council,http://opendatacommunities.org/id/metropolitan-district-council/walsall,WC119-766,31/10/2020,ADULT SOCIAL CARE,ASSOCIATION OF DIRECTORS OF PUBLIC HEALTH,12/10/2020,"3,250.00",63102-Consultant Fees,SUPPLIES & SERVICES,SERVICES,Revenue,,,,,,, 
Walsall Council,http://opendatacommunities.org/id/metropolitan-district-council/walsall,WC119-767,31/10/2020,ADULT SOCIAL CARE,AURORA GRAPHICS & DISPLAYS LTD,16/10/2020,952.50,62008-Outwork Print & Design,SUPPLIES & SERVICES,PRINTING STATIONERY & GENERAL OFFICE,Revenue,,,,,,,Y
Walsall Council,http://opendatacommunities.org/id/metropolitan-district-council/walsall,WC119-768,31/10/2020,ADULT SOCIAL CARE,AURORA GRAPHICS & DISPLAYS LTD,16/10/2020,266.00,62008-Outwork Print & Design,SUPPLIES & SERVICES,PRINTING STATIONERY & GENERAL OFFICE,Revenue,,,,,,, 
Walsall Council,http://opendatacommunities.org/id/metropolitan-district-council/walsall,WC119-769,31/10/2020,ADULT SOCIAL CARE,AURORA GRAPHICS & DISPLAYS LTD,16/10/2020,-546.24,62008-Outwork Print & Design,SUPPLIES & SERVICES,PRINTING STATIONERY & GENERAL OFFICE,Revenue,,,,,,, 
Walsall Council,http://opendatacommunities.org/id/metropolitan-district-council/walsall,WC119-770,31/10/2020,ADULT SOCIAL CARE,AURORA GRAPHICS & DISPLAYS LTD,16/10/2020,299.68,62008-Outwork Print & Design,SUPPLIES & SERVICES,PRINTING STATIONERY & GENERAL OFFICE,Revenue,,,,,,, 
Walsall Council,http://opendatacommunities.org/id/metropolitan-district-council/walsall,WC119-771,31/10/2020,ADULT SOCIAL CARE,AURORA GRAPHICS & DISPLAYS LTD,16/10/2020,546.24,62008-Outwork Print & Design,SUPPLIES & SERVICES,PRINTING STATIONERY & GENERAL OFFICE,Revenue,,,,,,, 
Walsall Council,http://opendatacommunities.org/id/metropolitan-district-council/walsall,WC119-772,31/10/2020,ADULT SOCIAL CARE,AUTISM WEST MIDLANDS,22/10/2020,"7,344.60",73500-Residential,THIRD PARTY PAYMENTS,PRIVATE CONTRACTOR,Revenue,,,,,,, 
